Workbook

Sheet дата
C1: от 28 марта 2016 г. № | D1: от 18 декабря 2015 г. № 19
A2: Приложение №
A3: 1 | B3: ='1'!A6 -> Источники финансирования дефицита | C3: 1 | D3: 1
A4: 2 | B4: ='2'!$A$6 -> Прогнозируемые объемы доходов в бюджет | C4: 2 | D4: 2
A5: 3 | B5: ='3'!A6 -> Нормативы распределения доходов между бюджетами бюджетной системы | D5: 3
A6: 4 | B6: ='4'!A6 -> Перечень главных администраторов доходов бюджета | D6: 4
A7: 5 | B7: ='5'!A6 -> Перечень главных администраторов и администраторов | D7: 5
A8: 6 | B8: ='6'!A6 -> Распределение бюджетных ассигнований по разделам и подразделам, | C8: 3 | D8: 6
A9: 7 | B9: ='7'!A6 -> Ведомственная структура расходов | C9: 4 | D9: 7
A10: 8 | B10: ='8'!A7 -> публичных нормативных обязательств на 2016 год | D10: 8
A11: 9 | B11: ='9'!A7 -> с заключенными соглашениями на финансовый контроль на 2016 год | D11: 9
A12: 10 | B12: ='10'!A6 -> по осуществлению дорожной деятельности на 2016 год | D12: 10
A13: 11 | B13: ='11'!A9 -> Наименование поселений | D13: 11
A14: 12 | B14: ='11'!A6 -> полномочий исполнительных комитетов поселений, входящих в состав Кукморского муниципального района Республики Татарстан, по распоряжению земельными участками, государственная собственность на которые не разграничена и которые расположены на территориях поселений, при наличии утвержденных правил землепользования и застройки поселений на 2016 год | D14: 12
A15: 13 | B15: ='13'!A6 -> Дотации на сбалансированность поселений в 2016 году | D15: 13
A16: 14 | B16: ='14'!A8 -> актов гражданского состояния на 2016 год | D16: 14
A17: 15 | B17: ='15'!A8 -> где отсутствуют военные комиссариаты на 2016 год | D17: 15
A18: 16 | B18: ='16'!A6 -> Межбюджетные трансферты, получаемые | C18: 5 | D18: 16

Sheet 1
B1: =дата!$A$2&дата!$C$3 -> Приложение №1
B2: к решению Совета Кукморского
B3: муниципального района
B4: =дата!C1 -> от 28 марта 2016 г. №
A6: Источники финансирования дефицита
A7: бюджета Кукморского муниципального района на 2016 год
A8: (рублей)
A9: Наименование показателя | B9: код показателя | C9: Сумма
A10: Источники внутреннего финансирования дефицита бюджета | B10: 01 00 00 00 00 0000 000 | C10: =SUM(C12+C15) -> 1351677.76
A12: Кредитные соглашения и договоры, заключенные от имени Российской Федерации, субъектов Рос-сийской Федерации, муниципальных образований, государственных внебюджетных фондов | B12: 01 02 00 00 05 0000 000 | C12: =SUM(C13+C14) -> 0
A13: Получение кредитов по кредитным соглашениям и договорам, заключенным от имени Российской Федерации, субъектов Российской Федерации, муниципальных образований, государственных внебюджетных фондов | B13: 01 02 00 00 05 0000 710
A14: Погашение кредитов по кредитным соглашениям и договорам, заключенным от имени Российской Федерации, субъектов Российской Федерации, муниципальных образований, государственных внебюджетных фондов | B14: 01 02 00 00 05 0000 810
A15: Изменение остатков средств на счетах по учету средств бюджета | B15: 01 05 00 00 00 0000 000 | C15: =SUM(C16+C19) -> 1351677.76
A16: Увеличение остатков средств бюджетов | B16: 01 05 00 00 00 0000 500 | C16: =SUM(C17) -> -1060194967
A17: Увеличение прочих остатков средств бюджетов | B17: 01 05 02 01 05 0000 510 | C17: =-'2'!D48 -> -1060194967
A18: Уменьшение остатков средств бюджетов | B18: 01 05 00 00 00 0000 600 | C18: =SUM(C19) -> 1061546644
A19: Уменьшение прочих остатков средств бюджетов | B19: 01 05 02 01 05 0000 610 | C19: ='6'!F290 -> 1061546644
A20: Итого по группе "Источники внутреннего финансирования дефицита бюджета" | C20: =SUM(C15+C12) -> 1351677.76
A21: ВСЕГО источников финансирования | C21: =SUM(C20) -> 1351677.76
A24: Глава Района С.Д.Димитриев

Sheet 2
C1: =дата!$A$2&дата!$C$4 -> Приложение №2
C2: к решению Совета Кукморского
C3: муниципального района
C4: =дата!C1 -> от 28 марта 2016 г. №
A6: Прогнозируемые объемы доходов в бюджет
A7: Кукморского муниципального района на 2016 год
D8: (рублей)
A9: Наименование | B9: код дохода | D9: сумма
B11: квд | C11: косгу
A13: НАЛОГОВЫЕ И НЕНАЛОГОВЫЕ ДОХОДЫ | B13: 1.00.00.000.00.0.000 | C13: 0.0.0 | D13: =D14+D18+D25+D27+D29+D31+D33+D16+D23 -> 308169600
A14: НАЛОГИ НА ПРИБЫЛЬ, ДОХОДЫ | B14: 1.01.00.000.00.0.000 | C14: 0.0.0 | D14: =D15 -> 252767000
A15: Налог на доходы физических лиц | B15: 1.01.02.000.01.0.000 | C15: 1.1.0 | D15: 252767000
A16: Налоги на товары (работы, услуги), реализуемые на территории Российской Федерации | B16: 1.03.00.000.00.0.000 | C16: 0.0.0 | D16: =D17 -> 16690600
A17: Акцизы по подакцизным товарам (продукции), производимым на территории Российской Федерации | B17: 1.03.02.000.01.0.000 | C17: 1.1.0 | D17: 16690600
A18: НАЛОГИ НА СОВОКУПНЫЙ ДОХОД | B18: 1.05.00.000.00.0.000 | C18: 0.0.0 | D18: =SUM(D19:D22) -> 28818000
A19: Налог, взимаемый в связи с применением упрощенной системы налогообложения | B19: 1.05.01.000.01.0.000 | C19: 1.1.0 | D19: 6674000
A20: Единый налог на вмененный доход для отдельных видов деятельности | B20: 1.05.02.000.02.0.000 | C20: 1.1.0 | D20: 20115000
A21: Единый сельскохозяйственный налог | B21: 1.05.03.000.01.0.000 | C21: 1.1.0 | D21: =1800000 -> 1800000
A22: Налог, взимаемый в связи с применением патентной системы налогообложения, зачисляемый в бюджеты муниципальных районов | B22: 1.05.04.020.02.0.000 | C22: 1.1.0 | D22: 229000
A23: Налоги, сборы и регулярные платежи за пользо-вание природными ресурсами | B23: 1.07.00.000.00.0.000 | C23: 0.0.0 | D23: =D24 -> 74000
A24: Налог на добычу полезных ископаемых | B24: 1.07.01.000.01.0.000 | C24: 1.1.0 | D24: 74000
A25: ГОСУДАРСТВЕННАЯ ПОШЛИНА | B25: 1.08.00.000.00.0.000 | C25: 0.0.0 | D25: =D26 -> 3625000
A26: Государственная пошлина по делам, рассматриваемым в судах общей юрисдикции, мировыми судьями | B26: 1.08.03.000.01.0.000 | C26: 1.1.0 | D26: 3625000
A27: ДОХОДЫ ОТ ИСПОЛЬЗОВАНИЯ ИМУЩЕСТВА, НАХОДЯЩЕГОСЯ В ГОСУДАРСТВЕННОЙ И МУНИЦИПАЛЬНОЙ СОБСТВЕННОСТИ | B27: 1.11.00.000.00.0.000 | C27: 0.0.0 | D27: =SUM(D28:D28) -> 3273000
A28: Доходы, получаемые в виде арендной либо иной платы за передачу в возмездное пользование государственного и муниципального имущества (за исключением имущества бюджетных и автономных учреждений, а также имущества государственных и муниципальных унитарных предприятий, в том числе казенных) | B28: 1.11.05.000.00.0.000 | C28: 1.2.0 | D28: =2786000+487000 -> 3273000
A29: ПЛАТЕЖИ ПРИ ПОЛЬЗОВАНИИ ПРИРОДНЫМИ РЕСУРСАМИ | B29: 1.12.00.000.00.0.000 | C29: 0.0.0 | D29: =D30 -> 500000
A30: Плата за негативное воздействие на окружающую среду | B30: 1.12.01.000.01.0.000 | C30: 1.2.0 | D30: 500000
A31: ДОХОДЫ ОТ ПРОДАЖИ МАТЕРИАЛЬНЫХ И НЕМАТЕРИАЛЬНЫХ АКТИВОВ | B31: 1.14.00.000.00.0.000 | C31: 0.0.0 | D31: =D32 -> 0
A32: Доходы от продажи земельных участков,государственная собственность на которые не разграничена и которые расположены в границах поселений | B32: 1.14.06.013.10.0.000 | C32: 4.3.0 | D32: 0
A33: ШТРАФЫ, САНКЦИИ, ВОЗМЕЩЕНИЕ УЩЕРБА | B33: 1.16.00.000.00.0.000 | C33: 0.0.0 | D33: =SUM(D34:D41) -> 2422000
A34: Денежные взыскания (штрафы) за административные правонарушения в области налогов и сборов, предусмотренные Кодексом Российской Федерации об административных правонарушениях | B34: 1.16.03.000.00.0.000 | C34: 1.4.0 | D34: 1000
A35: Денежные взыскания (штрафы) за нарушение законодательства о применении контрольно-кассовой техники при осуществлении наличных денежных расчетов и (или) расчетов с использованием платежных карт | B35: 1.16.06.000.01.0.000 | C35: 1.4.0 | D35: 5000
A36: Денежные взыскания (штрафы) за административные правонарушения в области государственного регулирования производства и оборота этилового спирта, алкогольной, спиртосодержащей и табачной продукции | B36: 1.16.08.000.01.0.000 | C36: 1.4.0 | D36: 80000
A37: Денежные взыскания (штрафы) и иные суммы, взыскиваемые с лиц, виновных в совершении преступлений, и в возмещение ущерба имуществу, зачисляемые в бюджеты муниципальных районов | B37: 1.16.21.050.05.0.000 | C37: 1.4.0 | D37: 12000
A38: Денежные взыскания (штрафы) за нарушение законодательства Российской Федерации о недрах, об особо охраняемых природных территориях, об охране и использовании животного мира, об экологической экспертизе, в области охраны окружающей среды, земельного законодательства, лесного законодательства, водного законодательства | B38: 1.16.25.000.00.0.000 | C38: 1.4.0 | D38: 70000
A39: Денежные взыскания (штрафы) за нарушение законодательства в области обеспечения санитарно-эпидемиологического благополучия человека и законодательства в сфере защиты прав потребителей | B39: 1.16.28.000.01.0.000 | C39: 1.4.0 | D39: 350000
A40: Денежные взыскания (штрафы), установленные законами субъектов Российской Федерации за несоблюдение муниципальных правовых актов, зачисляемые в бюжеты муниципальных районов | B40: 1.16.51.030.02.0.000 | C40: 1.4.0 | D40: 80000
A41: Прочие поступления от денежных взысканий (штрафов) и иных сумм в возмещение ущерба, зачисляемые в бюджеты муниципальных районов | B41: 1.16.90.050.05.0.000 | C41: 1.4.0 | D41: 1824000
A42: БЕЗВОЗМЕЗДНЫЕ ПОСТУПЛЕНИЯ | B42: 2.00.00.000.00.0.000 | C42: 0.0.0 | D42: =D43 -> 752025366.7 | E42: =D42-4388000-375000-100000 -> 747162366.7 | F42: рт
A43: БЕЗВОЗМЕЗДНЫЕ ПОСТУПЛЕНИЯ ОТ ДРУГИХ БЮДЖЕТОВ БЮДЖЕТНОЙ СИСТЕМЫ РОССИЙСКОЙ ФЕДЕРАЦИИ | B43: 2.02.00.000.00.0.000 | C43: 0.0.0 | D43: =SUM(D44:D47) -> 752025366.7
A44: Дотации бюджетам субъектов Российской Федерации и муниципальных образований | B44: 2.02.01.000.05.0.000 | C44: 1.5.1 | D44: =SUMIF('16'!$D$13:$D$1399,E44,'16'!$C$13:$C$1399) -> 69862100 | E44: 2.02.01
A45: Субсидии бюджетам субъектов Российской Федерации и муниципальных образований (межбюджетные субсидии) | B45: 2.02.02.000.05.0.000 | C45: 1.5.1 | D45: =SUMIF('16'!$D$13:$D$1399,E45,'16'!$C$13:$C$1399) -> 308549117.7 | E45: 2.02.02
A46: Субвенции бюджетам субъектов Российской Федерации и муниципальных образований | B46: 2.02.03.000.05.0.000 | C46: 1.5.1 | D46: =SUMIF('16'!$D$13:$D$1399,E46,'16'!$C$13:$C$1399) -> 352014349 | E46: 2.02.03
A47: Иные межбюджетные трансферты | B47: 2.02.04.000.05.0.000 | C47: 1.5.1 | D47: =SUMIF('16'!$D$13:$D$1399,E47,'16'!$C$13:$C$1399) -> 21599800 | E47: 2.02.04
A48: ИТОГО | D48: =D42+D13 -> 1060194967
A51: Глава Района С.Д.Димитриев

Sheet 3 (hidden)
C1: =дата!$A$2&дата!$C$5 -> Приложение №
C2: к решению Кукморского
C3: районного Совета
C4: =дата!$C$1 -> от 28 марта 2016 г. №
A6: Нормативы распределения доходов между бюджетами бюджетной системы
A7: Кукморского муниципального района
A8: на 2016 год
C9: (в процентах)
A10: Код | B10: Наименование групп, подгрупп, статей и подстатей доходов | C10: Местные бюджеты
C11: муници-пальных районов | D11: сельских поселений | E11: городских поселений
A12: 1 09 00000 00 0000 000 | B12: Задолженность и перерасчеты по отмененным налогам, сборам и иным обязательным платежам
A13: 1 09 07013 05 0000 110 | B13: Налог на рекламу, мобилизуемый на территориях муниципальных районов | C13: 100
A14: 1 09 07053 05 0000 110 | B14: Прочие местные налоги и сборы, мобилизуемые на территориях муниципальных районов | C14: 100
A15: 1 13 00000 00 0000 000 | B15: Доходы от оказания платных услуг (работ) и компенсации затрат государства
A16: 1 13 01995 05 0000 130 | B16: Прочие доходы от оказания платных услуг (работ) получателями средств бюджетов муниципальных районов | C16: 100
A17: 1 13 01995 10 0000 130 | B17: Прочие доходы от оказания платных услуг (работ) получателями средств бюджетов сельских поселений | D17: 100
A18: 1 13 01995 13 0000 130 | B18: Прочие доходы от оказания платных услуг (работ) получателями средств бюджетов городских поселений | E18: 100
A19: 1 13 02065 05 0000 130 | B19: Доходы, поступающие в порядке возмещения расходов, понесенных в связи с эксплуатацией имущества муниципальных районов | C19: 100
A20: 1 13 02065 10 0000 130 | B20: Доходы, поступающие в порядке возмещения расходов, понесенных в связи с эксплуатацией имущества сельских поселений | D20: 100
A21: 1 13 02065 13 0000 130 | B21: Доходы, поступающие в порядке возмещения расходов, понесенных в связи с эксплуатацией имущества городских поселений | E21: 100
A22: 1 13 02995 05 0000 130 | B22: Прочие доходы от компенсации затрат бюджетов муниципальных районов | C22: 100
A23: 1 13 02995 10 0000 130 | B23: Прочие доходы от компенсации затрат бюджетов сельских поселений | D23: 100
A24: 1 13 02995 13 0000 130 | B24: Прочие доходы от компенсации затрат бюджетов городских поселений | E24: 100
A25: 1 16 00000 00 0000 000 | B25: Штрафы, санкции, возмещение ущерба
A26: 1 16 21050 05 0000 140 | B26: Денежные взыскания (штрафы) и иные суммы, взыскиваемые с лиц, виновных в совершении преступлений, и в возмещение ущерба имуществу, зачисляемые в бюджеты муниципальных районов | C26: 100
A27: 1 16 21050 10 0000 140 | B27: Денежные взыскания (штрафы) и иные суммы, взыскиваемые с лиц, виновных в совершении преступлений, и в возмещение ущерба имуществу, зачисляемые в бюджеты сельских поселений | D27: 100
A28: 1 16 21050 13 0000 140 | B28: Денежные взыскания (штрафы) и иные суммы, взыскиваемые с лиц, виновных в совершении преступлений, и в возмещение ущерба имуществу, зачисляемые в бюджеты городских поселений | E28: 100
A29: 1 16 23051 05 0000 140 | B29: Доходы от возмещения ущерба при возникновении страховых случаев по обязательному страхованию гражданской ответственности, когда выгодоприобретателями выступают получатели средств бюджетов муниципальных районов | C29: 100
A30: 1 16 23052 05 0000 140 | B30: Доходы от возмещения ущерба при возникновении иных страховых случаев, когда выгодоприобретателями выступают получатели средств бюджетов муниципальных районов | C30: 100
A31: 1 16 23051 10 0000 140 | B31: Доходы от возмещения ущерба при возникновении страховых случаев по обязательному страхованию гражданской ответственности, когда выгодоприобретателями выступают получатели средств бюджетов сельских поселений | D31: 100
A32: 1 16 23052 10 0000 140 | B32: Доходы от возмещения ущерба при возникновении иных страховых случаев, когда выгодоприобретателями выступают получатели средств бюджетов сельских поселений | D32: 100
A33: 1 16 23051 13 0000 140 | B33: Доходы от возмещения ущерба при возникновении страховых случаев по обязательному страхованию гражданской ответственности, когда выгодоприобретателями выступают получатели средств бюджетов городских поселений | E33: 100
A34: 1 16 23052 13 0000 140 | B34: Доходы от возмещения ущерба при возникновении иных страховых случаев, когда выгодоприобретателями выступают получатели средств бюджетов городских поселений | E34: 100
A35: 1 16 32000 05 0000 140 | B35: Денежные взыскания, налагаемые в возмещение ущерба, причиненного в результате незаконного или нецелевого использования бюджетных средств (в части бюджетов муниципальных районов) | C35: 100
A36: 1 16 32000 10 0000 140 | B36: Денежные взыскания, налагаемые в возмещение ущерба, причиненного в результате незаконного или нецелевого использования бюджетных средств (в части бюджетов сельских поселений) | D36: 100
A37: 1 16 32000 13 0000 140 | B37: Денежные взыскания, налагаемые в возмещение ущерба, причиненного в результате незаконного или нецелевого использования бюджетных средств (в части бюджетов городских поселений) | E37: 100
A38: 1 16 90050 05 0000 140 | B38: Прочие поступления от денежных взысканий (штрафов) и иных сумм в возмещение ущерба, зачисляемые в бюджеты муниципальных районов | C38: 100
A39: 1 16 90050 10 0000 140 | B39: Прочие поступления от денежных взысканий (штрафов) и иных сумм в возмещение ущерба, зачисляемые в бюджеты сельских поселений | D39: 100
A40: 1 16 90050 13 0000 140 | B40: Прочие поступления от денежных взысканий (штрафов) и иных сумм в возмещение ущерба, зачисляемые в бюджеты городских поселений | E40: 100
A41: 1 17 00000 00 0000 000 | B41: Прочие неналоговые доходы
A42: 1 17 01050 05 0000 180 | B42: Невыясненные поступления, зачисляемые в бюджеты муниципальных районов | C42: 100
A43: 1 17 01050 10 0000 180 | B43: Невыясненные поступления, зачисляемые в бюджеты сельских поселений | D43: 100
A44: 1 17 01050 13 0000 180 | B44: Невыясненные поступления, зачисляемые в бюджеты городских поселений | E44: 100
A45: 1 17 05050 05 0000 180 | B45: Прочие неналоговые доходы бюджетов муниципальных районов | C45: 100
A46: 1 17 05050 10 0000 180 | B46: Прочие неналоговые доходы бюджетов сельских поселений | D46: 100
A47: 1 17 05050 13 0000 180 | B47: Прочие неналоговые доходы бюджетов городских поселений | E47: 100
A48: 1 17 14030 10 0000 180 | B48: Средства самообложения граждан, зачисляемые в бюджеты сельских поселений | D48: 100
A49: 1 17 14030 13 0000 180 | B49: Средства самообложения граждан, зачисляемые в бюджеты городских поселений | E49: 100
A52: Глава Района С.Д.Димитриев

Sheet 4 (hidden)
C1: =дата!$A$2&дата!$C$6 -> Приложение №
C2: к решению Кукморского
A3: Совета народных депутатов | C3: районного Совета
A4: от | C4: =дата!C1 -> от 28 марта 2016 г. №
A6: Перечень главных администраторов доходов бюджета
A7: Кукморского муниципального района на 2016 год - органов местного самоуправления
A8: Кукморского муниципального района
A10: коды бюджетной классификации | C10: Наименование
A11: код администратора доходов | B11: доходов бюджета
A12: Финансово-бюджетная палата Кукморского муниципального района
A13: 605 | B13: 1 08 07174 01 4000 110 | C13: Государственная пошлина за выдачу органом местного самоуправления муниципального района специального разрешения на движение по автомобильным дорогам транспортных средств, осуществляющих перевозки опасных, тяжеловесных и (или) крупногабаритных грузов, зачисляемая в бюджеты муниципальных районов.
A14: 605 | B14: 1 08 07150 01 0000 110 | C14: Государственная пошлина за выдачу разрешения на установку рекламной конструкции
A15: 605 | B15: 1 09 07013 05 0000 110 | C15: Налог на рекламу, мобилизуемый на территориях муниципальных районов
A16: 605 | B16: 1 09 07053 05 0000 110 | C16: Прочие местные налоги и сборы, мобилизуемые на территориях муниципальных районов
A17: 605 | B17: 1 11 02033 05 0000120 | C17: Доходы от размещения временно свободных средств бюджетов муниципальных районов
A18: 605 | B18: 1 11 03050 05 0000 120 | C18: Проценты, полученные от предоставления бюджетных кредитов внутри страны за счет средств бюджетов муниципальных районов
A19: 605 | B19: 1 13 02065 05 0000 130 | C19: Доходы, поступающие в порядке возмещения расходов, понесенных в связи с эксплуатацией имущества муниципальных районов
A20: 605 | B20: 1 13 01995 05 0000 130 | C20: Прочие доходы от оказания платных услуг (работ) получателями средств бюджетов муниципальных районов
A21: 605 | B21: 1 13 02995 05 0000 130 | C21: Прочие доходы от компенсации затрат бюджетов муниципальных районов
A22: 605 | B22: 1 16 18050 05 0000 140 | C22: Денежные взыскания (штрафы)за нарушение бюджетного законодательства (в части бюджетов муниципальных районов).
A23: 605 | B23: 1 16 21050 05 0000 140 | C23: Денежные взыскания (штрафы) и иные суммы, взыскиваемые с лиц, виновных в совершении преступлений, и в возмещение ущерба имуществу, зачисляемые в бюджеты муниципальных районов
A24: 605 | B24: 1 16 23051 05 0000 140 | C24: Доходы от возмещения ущерба при возникновении страховых случаев по обязательному страхованию гражданской ответственности, когда выгодоприобретателями выступают получатели средств бюджетов муниципальных районов
A25: 605 | B25: 1 16 23052 05 0000 140 | C25: Доходы от возмещения ущерба при возникновении иных страховых случаев, когда выгодоприобретателями выступают получатели средств бюджетов муниципальных районов
A26: 605 | B26: 1 16 32000 05 0000 140 | C26: Денежные взыскания, налагаемые в возмещение ущерба, причиненного в результате незаконного или нецелевого использования бюджетных средств (в части бюджетов муниципальных районов)
A27: 605 | B27: 1 16 33050 05 0000 140 | C27: Денежные взыскания (штрафы) за нарушение законодательства Российской Федерации о размещении заказов на поставки товаров, выполнение работ, оказание услуг для нужд муниципальных районов
A28: 605 | B28: 1 16 51030 02 0000 140 | C28: Денежные взыскания (штрафы), установленные законами субъектов Российской Федерации за несоблюдение муниципальных правовых актов, зачисляемые в бюжеты муниципальных районов
A29: 605 | B29: 1 16 90050 05 0000 140 | C29: Прочие поступления от денежных взысканий(штрафов)и иных сумм в возмещение ущерба, зачисляемые в бюджеты муниципальных районов.
A30: 605 | B30: 1 17 01050 05 0000 180 | C30: Невыясненные поступления, зачисляемые в бюджеты муниципальных районов
A31: 605 | B31: 1 17 05050 05 0000 180 | C31: Прочие неналоговые доходы бюджетов муниципальных районов
A32: 605 | B32: 1 17 08000 01 0000 180 | C32: Доходы от привлечения осужденных к оплачиваемому труду (в части прочих поступлений)
A33: 605 | B33: 2 02 01001 05 0000 151 | C33: Дотации бюджетам муниципальных районов на выравнивание бюджетной обеспеченности.
A34: 605 | B34: 2 02 01003 05 0000 151 | C34: Дотации бюджетам муниципальных районов на поддержку мер по обеспечению сбалансированности бюджетов.
A35: 605 | B35: 2 02 01009 05 0000 151 | C35: Дотации бюджетам муниципальных районов на поощрение достижения наилучших показателей деятельности органов местного самоуправления
A36: 605 | B36: 2 02 01999 05 0000 151 | C36: Прочие дотации бюджетам муниципальных районов.
A37: 605 | B37: 2 02 02003 05 0000 151 | C37: Субсидии бюджетам муниципальных районов на реформирование муниципальных финансов.
A38: 605 | B38: 2 02 02008 05 0000 151 | C38: Субсидии бюджетам муниципальных районов на обеспечение жильем молодых семей.
A39: 605 | B39: 2 02 02009 05 0000 151 | C39: Субсидии бюджетам муниципальных районов на государственную поддержку малого и среднего предпринимательства, включая крестьянские (фермерские) хозяйства
A40: 605 | B40: 2 02 02021 05 0000 151 | C40: Субсидии бюджетам муниципальных районов на осуществление капитального ремонта гидротехнических сооружений, находящихся в муниципальной собственности, и бесхозяйных гидротехнических сооружений.
A41: 605 | B41: 2 02 02041 05 0000 151 | C41: Субсидии бюджетам муниципальных районов на строительство и модернизацию автомобильных дорог общего пользования, в том числе дорог в поселениях (за исключением автомобильных дорог федерального значения)
A42: 605 | B42: 2 02 02044 05 0000 151 | C42: Субсидии бюджетам муниципальных районов на обеспечение автомобильными дорогами новых микрорайонов
A43: 605 | B43: 2 02 02046 05 0000 151 | C43: Субсидии бюджетам муниципальных районов на реализацию мероприятий, предусмотренных региональной программой переселения, включенной в Государственную программу по оказанию содействия добровольному переселению в Российскую Федерацию соотечественников, проживающих за рубежом
A44: 605 | B44: 2 02 02051 05 0000 151 | C44: Субсидии бюджетам муниципальных районов на реализацию федеральных целевых программ.
A45: 605 | B45: 2 02 02071 05 0000 151 | C45: Субсидии бюджетам муниципальных районов на предоставление грантов в области науки, культуры, искусства и средств массовой информации
A46: 605 | B46: 2 02 02074 05 0000 151 | C46: Субсидии бюджетам муниципальных районов на совершенствование организации питания учащихся в общеобразовательных учреждениях
A47: 605 | B47: 2 02 02077 05 0000 151 | C47: Субсидии бюджетам муниципальных районов на бюджетные инвестиции в объекты капитального строительства собственности муниципальных образований
A48: 605 | B48: 2 02 02078 05 0000 151 | C48: Субсидии бюджетам муниципальных районов на бюджетные инвестиции для модернизации объектов коммунальной инфраструктуры
A49: 605 | B49: 2 02 02079 05 0000 151 | C49: Субсидии бюджетам муниципальных районов на переселение граждан из жилищного фонда, признанного непригодным для проживания, и (или) жилищного фонда с высоким уровнем износа (более 70 процентов)
A50: 605 | B50: 2 02 02080 05 0000 151 | C50: Субсидии бюджетам муниципальных районов для обеспечения земельных участков коммунальной инфраструктурой в целях жилищного строительства
A51: 605 | B51: 2 02 02081 05 0000 151 | C51: Субсидии бюджетам муниципальных районов на мероприятия по обеспечению жильем иных категорий граждан на основании решений Правительства Российской Федерации
A52: 605 | B52: 2 02 02085 05 0000 151 | C52: Субсидии бюджетам муниципальных районов на осуществление мероприятий по обеспечению жильем граждан Российской Федерации, проживающих в сельской местности
A53: 605 | B53: 2 02 02087 05 0000 151 | C53: Субсидии бюджетам муниципальных районов из бюджетов поселений на решение вопросов местного значения межмуниципального характера
A54: 605 | B54: 2 02 02088 00 0000 151 | C54: Субсидии бюджетам муниципальных образований на обеспечение мероприятий по капитальному ремонту многоквартирных домов и переселению граждан из варийного жилищного фонда за счет средств, поступивших от государственной корпорации Фонд содействия реформированию жилищно-коммунального хозяйства
A55: 605 | B55: 2 02 02088 05 0000 151 | C55: Субсидии бюджетам муниципальных районов на обеспечение мероприятий по капитальному ремонту многоквартирных домов и по переселению граждан из аварийного жилищного фонда за счет средств, поступивших от государственной корпорации Фонд содействия реформированию жилищно-коммунального хозяйства
A56: 605 | B56: 2 02 02088 05 0001 151 | C56: Субсидии бюджетам муниципальных районов на обеспечение мероприятий по капитальному ремонту многоквартирных домов за счет средств, поступивших от государственной корпорации Фонд содействия реформированию жилищно-коммунального хозяйства
A57: 605 | B57: 2 02 02088 05 0002 151 | C57: Субсидии бюджетам муниципальных районов на обеспечение мероприятий по переселению граждан из аварийного жилищного фонда за счет средств, поступивших от государственной корпорации Фонд содействия реформированию жилищно-коммунального хозяйства
A58: 605 | B58: 2 02 02089 00 0000 151 | C58: Субсидии бюджетам муниципальных образований на обеспечение мероприятий по капитальному ремонту многоквартирных домов и переселению граждан из аварийного жилищного фонда за счет средств бюджетов
A59: 605 | B59: 2 02 02089 05 0000 151 | C59: Субсидии бюджетам муниципальных районов на обеспечение мероприятий по капитальному ремонту многоквартирных домов и переселению граждан из аварийного жилищного фонда за счет средств бюджетов
A60: 605 | B60: 2 02 02089 05 0001 151 | C60: Субсидии бюджетам муниципальных районов на обеспечение мероприятий по капитальному ремонту многоквартирных домов за счет средств бюджетов
A61: 605 | B61: 2 02 02089 05 0002 151 | C61: Субсидии бюджетам муниципальных районов на обеспечение мероприятий по переселению граждан из аварийного жилищного фонда за счет средств бюджетов
A62: 605 | B62: 2 02 02999 05 0000 151 | C62: Прочие субсидии бюджетам муниципальных районов
A63: 605 | B63: 2 02 03001 05 0000 151 | C63: Субвенции бюджетам муниципальных районов на оплату жилищно-коммунальных услуг отдельным категориям граждан
A64: 605 | B64: 2 02 03002 05 0000 151 | C64: Субвенции бюджетам муниципальных районов на осуществление полномочий по подготовке проведения статистических переписей
A65: 605 | B65: 2 02 03003 05 0000 151 | C65: Субвенции бюджетам муниципальных районов на государственную регистрацию актов гражданского состояния.
A66: 605 | B66: 2 02 03004 05 0000 151 | C66: Субвенции бюджетам муниципальных районов на обеспечение мер социальной поддержки для лиц, награжденных знаком "Почетный донор СССР", "Почетный донор России"
A67: 605 | B67: 2 02 03005 05 0000 151 | C67: Субвенции бюджетам муниципальных районов на организацию, регулирование и охрану водных биологических ресурсов
A68: 605 | B68: 2 02 03006 05 0000 151 | C68: Субвенции бюджетам муниципальных районов на охрану и использование охотничьих ресурсов
A69: 605 | B69: 2 02 03007 05 0000 151 | C69: Субвенции бюджетам муниципальных районов на составление ( изменение и дополнение ) списков кондидатов в присяжные заседатели федеральных судов общей юрисдикции в Российской Федерации
A70: 605 | B70: 2 02 03012 05 0000 151 | C70: Субвенции бюджетам муниципальных районов на выплаты инвалидам компенсаций страховых премий по договорам обязательного страхования гражданской ответственности владельцев транспортных средств
A71: 605 | B71: 2 02 03013 05 0000 151 | C71: Субвенции бюджетам муниципальных районов на обеспечение мер социальной поддержки реабилитированных лиц и лиц, признанных пострадавшими от политических репрессий
A72: 605 | B72: 2 02 03014 05 0000 151 | C72: Субвенции бюджетам муниципальных районов на поощрение лучших учителей
A73: 605 | B73: 2 02 03015 05 0000 151 | C73: Субвенции бюджетам муниципальных районов на осуществление полномочий по первичному воинскому учету на территориях, где отсутствуют военные комиссариаты
A74: 605 | B74: 2 02 03018 05 0000 151 | C74: Субвенции бюджетам муниципальных районов на осуществление отдельных полномочий в области лесных отношений
A75: 605 | B75: 2 02 03019 05 0000 151 | C75: Субвенции бюджетам муниципальных районов на осуществление отдельных полномочий в области водных отношений
A76: 605 | B76: 2 02 03020 05 0000 151 | C76: Субвенции бюджетам муниципальных районов на выплату единовременного пособия при всех формах устройства детей, лишенных родительского попечения, в семью
A77: 605 | B77: 2 02 03121 05 0000 151 | C77: Субвенции бюджетам муниципальных районов на проведение Всероссийской сельскохозяйственной переписи
A78: 605 | B78: 2 02 03022 05 0000 151 | C78: Субвенции бюджетам муниципальных районов на предоставление гражданам субсидий на оплату жилого помещения и коммунальных услуг
A79: 605 | B79: 2 02 03024 05 0000 151 | C79: Субвенции бюджетам муниципальных районов на выполнение передаваемых полномочий субъектов Российской Федерации
A80: 605 | B80: 2 02 03025 05 0000 151 | C80: Субвенции бюджетам муниципальных районов на реализацию полномочий Российской Федерации по осуществлению социальных выплат безработным гражданам
A81: 605 | B81: 2 02 03026 05 0000 151 | C81: Субвенции бюджетам муниципальных районов на обеспечение жилыми помещениями детей-сирот, детей, оставшихся без попечения родителей, а также детей, находящихся под опекой (попечительством), не имеющих закрепленного жилого помещения
A82: 605 | B82: 2 02 03027 05 0000 151 | C82: Субвенции бюджетам муниципальных районов на содержание ребенка в семье опекуна и приемной семье, а также вознаграждение, причитающееся приемному родителю
A83: 605 | B83: 2 02 03029 05 0000 151 | C83: Субвенции бюджетам муниципальных районов на компенсацию части родительской платы за содержание ребенка в муниципальных образовательных учреждениях, реализующих основную общеобразовательную программу дошкольного образования
A84: 605 | B84: 2 02 03033 05 0000 151 | C84: Субвенции бюджетам муниципальных районов на оздоровление детей
A85: 605 | B85: 2 02 03999 05 0000 151 | C85: Прочие субвенции бюджетам муниципальных районов
A86: 605 | B86: 2 02 04011 05 0000 151 | C86: Межбюджетные трансферты, передаваемые бюджетам муниципальных районов на премирование победителей Всероссийского конкурса на звание "Самый благоустроенный город России"
A87: 605 | B87: 2 02 04012 05 0000 151 | C87: Межбюджетные трансферты, передаваемые бюджетам муниципальных районов для компенсации дополнительных расходов, возникших в результате решений, принятых органами власти другого уровня
A88: 605 | B88: 2 02 04014 05 0000 151 | C88: Межбюджетные трансферты, передаваемые бюджетам муниципальных районов из бюджетов поселений на осуществление части полномочий по решению вопросов местного значения в соответствии с заключенными соглашениями
A89: 605 | B89: 2 02 04052 05 0000 151 | C89: Межбюджетные трансферты, передаваемые бюджетам муниицпальных районов на государственную поддержку муниципальных учреждений культуры, находящихся на территориях сельских поселений
A90: 605 | B90: 2 02 04053 05 0000 151 | C90: Межбюджетные трансферты, передаваемые бюджетам муницпальных районов на государственную поддержку лучших работников муниципальных учреждений культуры, находящихся на территориях сельских поселений
A91: 605 | B91: 2 02 04999 05 0000 151 | C91: Прочие межбюджетные трансферты, передаваемые бюджетам муниципальных районов
A92: 605 | B92: 2 08 05000 05 0000 180 | C92: Перечисления из бюджетов муниципальных районов (в бюджеты муниципальных районов) для осуществления возврата (зачета) излишне уплаченных или излишне взысканных сумм налогов, сборов и иных платежей, а также сумм процентов за несвоевременное осуществление такого возврата и процентов, начисленных на излишне взысканные суммы
A93: 605 | B93: 2 18 05000 05 0000 151 | C93: Доходы бюджетов муниципальных районов от возврата бюджетами бюджетной системы Российской Федерации остатков субсидий, субвенций и иных межбюджетных трансфертов, имеющих целевое назначение, прошлых лет
A94: 605 | B94: 2 18 05010 05 0000 151 | C94: Доходы бюджетов муниципальных районов от возврата остатков субсидий, субвенций и иных межбюджетных трансфертов, имеющих целевое назначение, прошлых лет из бюджетов поселений
A95: 605 | B95: 2 18 05020 05 0000 151 | C95: Доходы бюджетов муниципальных районов от возврата остатков субсидий, субвенций и иных межбюджетных трансфертов, имеющих целевое назначение, прошлых лет из бюджетов государственных внебюджетных фондов
A96: 605 | B96: 2 18 05000 05 0000 180 | C96: Доходы бюджетов муниципальных районов от возврата организациями остатков субсидий прошлых лет
A97: 605 | B97: 2 18 05010 05 0000 180 | C97: Доходы бюджетов муниципальных районов от возврата бюджетными учреждениями остатков субсидий прошлых лет
A98: 605 | B98: 2 18 05020 05 0000 180 | C98: Доходы бюджетов муниципальных районов от возврата автономными учреждениями остатков субсидий прошлых лет
A99: 605 | B99: 2 18 05030 05 0000 180 | C99: Доходы бюджетов муниципальных районов от возврата иными организациями остатков субсидий прошлых лет
A100: 605 | B100: 2 19 05000 05 0000 151 | C100: Возврат остатков субсидий, субвенций и иных межбюджетных трансфертов, имеющих целевое назначение, прошлых лет из бюджетов муниципальных районов
A101: Палата имущественных и земельных отношений Кукморского муниципального района
A102: 606 | B102: 1 08 07150 01 1000 110 | C102: Государственная пошлина за выдачу разрешения на установку рекламной конструкции
A103: 606 | B103: 1 11 02085 05 0000 120 | C103: Доходы от размещения сумм, аккумулируемых в ходе проведения аукционов по продаже акций находящихся в собственности муниципальных районов
A104: 606 | B104: 1 11 05010 00 0000 120 | C104: Доходы, получаемые в виде арендной платы за земельные участки, государственная собственность на которые не разграничена, а также средства от продажи права на заключение договоров аренды указанных земельных участков
A105: 606 | B105: 1 11 05013 05 0000 120 | C105: Доходы, получаемые в виде арендной платы за земельные участки, государственная собственность на которые не разграничена и которые расположены в границах межселенных территорий муниципальных районов, а также средства от продажи права на заключение договоров аренды указанных земельных участков
A106: 606 | B106: 1 11 05013 10 0000 120 | C106: Доходы, получаемые в виде арендной платы за земельные участки, государственная собственность на которые не разграничена и которые расположены в границах сельских поселений, а также средства от продажи права на заключение договоров аренды указанных земельных участков
A107: 606 | B107: 1 11 05013 13 0000 120 | C107: Доходы, получаемые в виде арендной платы за земельные участки, государственная собственность на которые не разграничена и которые расположены в границах городских поселений, а также средства от продажи права на заключение договоров аренды указанных земельных участков
A108: 606 | B108: 1 11 05020 00 0000 120 | C108: Доходы, получаемые в виде арендной платы за земли после разграничения государственной собственности на землю, а также средства от продажи права на заключение договоров аренды указанных земельных участков (за исключением земельных участков бюджетных и автономных учреждений)
A109: 606 | B109: 1 11 05025 05 0000 120 | C109: Доходы, получаемые в виде арендной платы, а также средства от продажи права на заключение договоров аренды за земли, находящиеся в собственности муниципальных районов (за исключением земельных участков муниципальных бюджетных и автономных учреждений)
A110: 606 | B110: 1 11 05025 10 0000 120 | C110: Доходы, получаемые в виде арендной платы, а также средства от продажи права на заключение договоров аренды за земли, находящиеся в собственности сельских поселений (за исключением земельных участков муниципальных бюджетных и автономных учреждений)
A111: 606 | B111: 1 11 05035 05 0000 120 | C111: Доходы от сдачи в аренду имущества, находящегося в оперативном управлении органов управления муниципальных районов и созданных ими учреждений (за исключением имущества муниципальных бюджетных и автономных учреждений)
A112: 606 | B112: 1 11 05075 05 0000 120 | C112: Доходы от сдачи в аренду имущества, составляющего казну муниципальных районов (за исключением земельных участков)
A113: 606 | B113: 1 11 07015 05 0000 120 | C113: Доходы от перечисления части прибыли, остающейся после уплаты налогов и иных обязательных платежей муниципальных унитарных предприятий, созданных муниципальными районами
A114: 606 | B114: 1 11 08050 05 0000 120 | C114: Средства, получаемые от передачи имущества, находящегося в собственности муниципальных районов (за исключением имущества муниципальных бюджетных и автономных учреждений, а также имущества муниципальных унитарных предприятий, в том числе казенных), в залог, в доверительное управление
A115: 606 | B115: 1 11 09040 00 0000 120 | C115: Прочие поступления от использования имущества, находящегося в государственной и муниципальной собственности (за исключением имущества бюджетных и автономных учреждений, а также имущества государственных и муниципальных унитарных предприятий, в том числе казенных)
A116: 606 | B116: 1 11 09045 05 0000 120 | C116: Прочие поступления от использования имущества, находящегося в собственности муниципальных районов (за исключением имущества муниципальных бюджетных и автономных учреждений, а также имущества муниципальных унитарных предприятий, в том числе казенных)
A117: 606 | B117: 1 13 02065 05 0000 130 | C117: Доходы, поступающие в порядке возмещения расходов, понесенных в связи с эксплуатацией имущества муниципальных районов
A118: 606 | B118: 1 13 01995 05 0000 130 | C118: Прочие доходы от оказания платных услуг (работ) получателями средств бюджетов муниципальных районов
A119: 606 | B119: 1 13 02995 05 0000 130 | C119: Прочие доходы от компенсации затрат бюджетов муниципальных районов
A120: 606 | B120: 1 14 01050 05 0000 410 | C120: Доходы от продажи квартир, находящихся в собственности муниципальных районов.
A121: 606 | B121: 1 14 02050 05 0000 410 | C121: Доходы от реализации имущества, находящегося в собственности муниципальных районов (за исключением имущества муниципальных бюджетных и автономных учреждений, а также имущества муниципальных унитарных предприятий, в том числе казенных), в части реализации основных средств по указанному имуществу
A122: 606 | B122: 1 14 02050 05 0000 440 | C122: Доходы от реализации имущества, находящегося в собственности муниципальных районов (за исключением имущества муниципальных бюджетных и автономных учреждений, а также имущества муниципальных унитарных предприятий, в том числе казенных), в части реализации материальных запасов по указанному имуществу
A123: 606 | B123: 1 14 02052 05 0000 410 | C123: Доходы от реализации имущества, находящегося в оперативном управлении учреждений, находящихся в ведении органов управления муниципальных районов (за исключением имущества муниципальных бюджетных и автономных учреждений), в части реализации основных средств по указанному имуществу
A124: 606 | B124: 1 14 02052 05 0000 440 | C124: Доходы от реализации имущества, находящегося в оперативном управлении учреждений, находящихся в ведении органов управления муниципальных районов (за исключением имущества муниципальных бюджетных и автономных учреждений), в части реализации материальных запасов по указанному имуществу
A125: 606 | B125: 1 14 02053 05 0000 410 | C125: Доходы от реализации иного имущества, находящегося в собственности муниципальных районов (за исключением имущества муниципальных бюджетных и автономных учреждений, а также имущества муниципальных унитарных предприятий, в том числе казенных), в части реализации основных средств по указанному имуществу
A126: 606 | B126: 1 14 02053 05 0000 440 | C126: Доходы от реализации иного имущества, находящегося в собственности муниципальных районов (за исключением имущества муниципальных бюджетных и автономных учреждений, а также имущества муниципальных унитарных предприятий, в том числе казенных), в части реализации материальных запасов по указанному имуществу
A127: 606 | B127: 1 14 03050 05 0000 410 | C127: Средства от распоряжения и реализации конфискованного и иного имущества, обращенного в доходы муниципальных районов (в части реализации основных средств по указанному имуществу)
A128: 606 | B128: 1 14 03050 05 0000 440 | C128: Средства от распоряжения и реализации конфискованного и иного имущества, обращенного в доходы муниципальных районов (в части реализации материальных запасов по указанному имуществу)
A129: 606 | B129: 1 14 04050 05 0000 420 | C129: Доходы от продажи нематериальных активов, находящихся в собственности муниципальных районов
A130: 606 | B130: 1 14 06000 00 0000 430 | C130: Доходы от продажи земельных участков, находящихся в государственной и муниципальной собственности (за исключением земельных участков бюджетных и автономных учреждений)
A131: 606 | B131: 1 14 06010 00 0000 430 | C131: Доходы от продажи земельных участков, государственная собственность на которые не разграничена
A132: 606 | B132: 1 14 06013 05 0000 430 | C132: Доходы от продажи земельных участков, государственная собственность на которые не разграничена и которые расположены в границах межселенных территорий муниципальных районов
A133: 606 | B133: 1 14 06013 10 0000 430 | C133: Доходы от продажи земельных участков, государственная собственность на которые не разграничена и которые расположены в границах сельских поселений
A134: 606 | B134: 1 14 06013 13 0000 430 | C134: Доходы от продажи земельных участков, государственная собственность на которые не разграничена и которые расположены в границах городских поселений
A135: 606 | B135: 1 14 06020 00 0000 430 | C135: Доходы от продажи земельных участков, государственная собственность на которые разграничена (за исключением земельных участков бюджетных и автономных учреждений)
A136: 606 | B136: 1 14 06025 05 0000 430 | C136: Доходы от продажи земельных участков, находящихся в собственности муниципальных районов (за исключением земельных участков муниципальных бюджетных и автономных учреждений)
A137: 606 | B137: 1 14 06025 10 0000 430 | C137: Доходы от продажи земельных участков, находящихся в собственности сельских поселений (за исключением земельных участков муниципальных бюджетных и автономных учреждений)
A138: 606 | B138: 1 17 01050 05 0000 180 | C138: Невыясненные поступления, зачисляемые в бюджеты муниципальных районов
A139: 606 | B139: 1 17 02020 05 0000 180 | C139: Возмещение потерь сельскохозяйственного производства, связанных с изъятием сельскохозяйственных угодий, расположенных на межселенных территориях (по обязательствам, возникшим до 1 января 2008 года)
A140: 606 | B140: 1 17 02020 10 0000 180 | C140: Возмещение потерь сельскохозяйственного производства, связанных с изъятием сельскохозяйственных угодий, расположенных на территориях сельских поселений (по обязательствам, возникшим до 1 января 2008 года)
A142: Глава Района С.Д.Димитриев

Sheet 5 (hidden)
C1: =дата!$A$2&дата!$C$7 -> Приложение №
A2: к решению Кукморского районного | C2: к решению Кукморского
A3: Совета народных депутатов | C3: районного Совета
A4: от 24 декабря 2004г. №20 | C4: =дата!C1 -> от 28 марта 2016 г. №
A6: Перечень главных администраторов и администраторов
A7: источников финансирования дефицита бюджета муниципального районна
A8: на 2016 год - органов местного самоуправления
A11: коды бюджетной классификации | C11: Наименование
A12: код администратора источника финансирования | B12: источника финансирования дефицита бюджета
A14: Финансово-бюджетная палата Кукморского муниципального района
A15: 605 | B15: 01 02 00 00 05 0000 710 | C15: Получение кредитов от кредитных организаций бюджетом муниципального района в валюте Российской Федерации
A16: 605 | B16: 01 02 00 00 05 0000 810 | C16: Погашение бюджетом муниципального района кредитов от кредитных организаций в валюте Российской Федерации
A17: 605 | B17: 01 03 00 00 05 0000 710 | C17: Получение кредитов от других бюджетов бюджетной системы Российской Федерации бюджетом муниципального района в валюте Российской Федерации.
A18: 605 | B18: 1 03 00 00 05 0000 810 | C18: Погашение бюджетом муниципального района кредитов от других бюджетов бюджетной системы Российской Федерации в валюте Российской Федерации.
A19: 605 | B19: 01 05 02 01 00 0000 510 | C19: Увеличение прочих остатков денежных средств бюджетов
A20: 605 | B20: 01 05 02 01 00 0000 610 | C20: Уменьшение прочих остатков денежных средств бюджетов
A21: 605 | B21: 01 06 04 00 01 0000 810 | C21: Исполнение государственных гарантии муниципальных районов в валюте Российской Федерации
A22: 605 | B22: 01 06 05 01 05 0000 640 | C22: Возврат бюджетных кредитов, предоставленных юридическим лицам из муниципального бюджета
A25: Глава Района С.Д.Димитриев

Sheet 6
C1: =дата!$A$2&дата!$C$8 -> Приложение №3
C2: к решению Совета Кукморского
C3: муниципального района
C4: =дата!C1 -> от 28 марта 2016 г. №
A6: Распределение бюджетных ассигнований по разделам и подразделам,
A7: целевым статьям и видам расходов классификации расходов бюджетов
A8: бюджета Кукморского муниципального района на 2016 год
F9: (рублей)
A10: Наименование | C10: РЗ, ПР | D10: ЦСР | E10: ВР | F10: Сумма
G11: =SUBTOTAL(9,F13:F12935) -> 6305684811
A13: ОБЩЕГОСУДАРСТВЕННЫЕ ВОПРОСЫ | C13: 0100 | F13: 47254655.5
A14: Функционирование высшего должностного лица субъекта Российской Федерации и муниципального образования | C14: 0102 | F14: 1611000
A15: Непрограммные направления расходов | C15: 0102 | D15: 9900000000 | F15: 1611000
A16: Глава муниципального района | C16: 0102 | D16: 9900002030 | F16: 1611000
A17: Фонд оплаты труда государственных (муниципальных) органов и взносы по обязательному социальному страхованию | C17: 0102 | D17: 9900002030 | E17: 121 | F17: 1237000
A18: Взносы по обязательному социальному страхованию на выплату денежного содержания и иные выплаты работникам государственных (муниципальных) органов | C18: 0102 | D18: 9900002030 | E18: 129 | F18: 374000
A19: Функционирование законодательных (представительных) органов государственной власти и представительных органов муниципальных образований | C19: 0103 | F19: 7150246.69
A20: Непрограммные направления расходов | C20: 0103 | D20: 9900000000 | F20: 7150246.69
A21: Центральный аппарат | C21: 0103 | D21: 9900002040 | F21: 7150246.69
A22: Фонд оплаты труда государственных (муниципальных) органов и взносы по обязательному социальному страхованию | C22: 0103 | D22: 9900002040 | E22: 121 | F22: 3611000
A23: Иные выплаты персоналу государственных (муниципальных) органов, за исключением фонда оплаты труда | C23: 0103 | D23: 9900002040 | E23: 122 | F23: 15619
A24: Взносы по обязательному социальному страхованию на выплату денежного содержания и иные выплаты работникам государственных (муниципальных) органов | C24: 0103 | D24: 9900002040 | E24: 129 | F24: 1091000
A25: Прочая закупка товаров, работ и услуг для обеспечения государственных (муниципальных) нужд | C25: 0103 | D25: 9900002040 | E25: 244 | F25: 2391124.19
A26: Уплата прочих налогов, сборов и иных платежей | C26: 0103 | D26: 9900002040 | E26: 852 | F26: 41503.5
A27: Функционирование Правительства Российской Федерации, высших исполнительных органов государственной власти субъектов Российской Федерации, местных администраций | C27: 0104 | F27: 16697222.71
A28: Муниципальная программа «Развитие образования Кукморского муниципального района Республики Татарстан на 2015 – 2017 годы» | C28: 0104 | D28: 0200000000 | F28: 255700
A29: Подпрограмма «Развитие общего образования на 2015 – 2017 годы» | C29: 0104 | D29: 0220000000 | F29: 255700
A30: Фонд оплаты труда государственных (муниципальных) органов и взносы по обязательному социальному страхованию | C30: 0104 | D30: 0220025300 | E30: 121 | F30: 186600
A31: Взносы по обязательному социальному страхованию на выплату денежного содержания и иные выплаты работникам государственных (муниципальных) органов | C31: 0104 | D31: 0220025300 | E31: 129 | F31: 56000
A32: Прочая закупка товаров, работ и услуг для обеспечения государственных (муниципальных) нужд | C32: 0104 | D32: 0220025300 | E32: 244 | F32: 13100
A33: Непрограммные направления расходов | C33: 0104 | D33: 9900000000 | F33: 16441522.71
A34: Центральный аппарат | C34: 0104 | D34: 9900002040 | F34: 16185822.71
A35: Фонд оплаты труда государственных (муниципальных) органов и взносы по обязательному социальному страхованию | C35: 0104 | D35: 9900002040 | E35: 121 | F35: 9072800
A36: Иные выплаты персоналу государственных (муниципальных) органов, за исключением фонда оплаты труда | C36: 0104 | D36: 9900002040 | E36: 122 | F36: 1932
A37: Взносы по обязательному социальному страхованию на выплату денежного содержания и иные выплаты работникам государственных (муниципальных) органов | C37: 0104 | D37: 9900002040 | E37: 129 | F37: 2739900
A38: Прочая закупка товаров, работ и услуг для обеспечения государственных (муниципальных) нужд | C38: 0104 | D38: 9900002040 | E38: 244 | F38: 4365501.71
A39: Уплата прочих налогов, сборов и иных платежей | C39: 0104 | D39: 9900002040 | E39: 852 | F39: 5689
A40: Реализация государственных полномочий в области молодежной политики | C40: 0104 | D40: 9900025240 | F40: 255700
A41: Фонд оплаты труда государственных (муниципальных) органов и взносы по обязательному социальному страхованию | C41: 0104 | D41: 9900025240 | E41: 121 | F41: 186600
A42: Взносы по обязательному социальному страхованию на выплату денежного содержания и иные выплаты работникам государственных (муниципальных) органов | C42: 0104 | D42: 9900025240 | E42: 129 | F42: 56000
A43: Прочая закупка товаров, работ и услуг для обеспечения государственных (муниципальных) нужд | C43: 0104 | D43: 9900025240 | E43: 244 | F43: 13100
A44: Судебная система | C44: 0105 | F44: 28679
A45: Непрограммные направления расходов | C45: 0105 | D45: 9900000000 | F45: 28679
A46: Составление (изменение) списков кандидатов в присяжные заседатели федеральных судов общей юрисдикции в Российской Федерации за счет средств федерального бюджета | C46: 0105 | D46: 9900051200 | F46: 28679
A47: Прочая закупка товаров, работ и услуг для обеспечения государственных (муниципальных) нужд | C47: 0105 | D47: 9900051200 | E47: 244 | F47: 28679
A48: Обеспечение деятельности финансовых, налоговых и таможенных органов и органов финансового (финансово-бюджетного) надзора | C48: 0106 | F48: 4428152
A49: Муниципальная программа «Управление муниципальными финансами Кукморского муниципального района Республики Татарстан на 2015 – 2017 годы» | C49: 0106 | D49: 1800000000 | F49: 3936162
A50: Фонд оплаты труда государственных (муниципальных) органов и взносы по обязательному социальному страхованию | C50: 0106 | D50: 1800002040 | E50: 121 | F50: 2570000
A51: Взносы по обязательному социальному страхованию на выплату денежного содержания и иные выплаты работникам государственных (муниципальных) органов | C51: 0106 | D51: 1800002040 | E51: 129 | F51: 776000
A52: Прочая закупка товаров, работ и услуг для обеспечения государственных (муниципальных) нужд | C52: 0106 | D52: 1800002040 | E52: 244 | F52: 587862
A53: Уплата прочих налогов, сборов и иных платежей | C53: 0106 | D53: 1800002040 | E53: 852 | F53: 1600
A54: Уплата налога на имущество организаций и земельного налога | C54: 0106 | D54: 1800002950 | E54: 851 | F54: 700
A55: Непрограммные направления расходов | C55: 0106 | D55: 9900000000 | F55: 491990
A56: Центральный аппарат | C56: 0106 | D56: 9900002040 | F56: 491990
A57: Фонд оплаты труда государственных (муниципальных) органов и взносы по обязательному социальному страхованию | C57: 0106 | D57: 9900002040 | E57: 121 | F57: 328000
A58: Иные выплаты персоналу государственных (муниципальных) органов, за исключением фонда оплаты труда | C58: 0106 | D58: 9900002040 | E58: 122 | F58: 16000
A59: Взносы по обязательному социальному страхованию на выплату денежного содержания и иные выплаты работникам государственных (муниципальных) органов | C59: 0106 | D59: 9900002040 | E59: 129 | F59: 99000
A60: Прочая закупка товаров, работ и услуг для обеспечения государственных (муниципальных) нужд | C60: 0106 | D60: 9900002040 | E60: 244 | F60: 48990
A61: Другие общегосударственные вопросы | C61: 0113 | F61: 17339355.1
A62: Муниципальная программа «Социальная поддержка граждан Кукморского муниципального района Республики Татарстан» на 2015 – 2017 годы | C62: 0113 | D62: 0300000000 | F62: 715600
A63: Подпрограмма "Улучшение социально-экономического положения семей" на 2015 – 2020 годы | C63: 0113 | D63: 0350000000 | F63: 715600
A64: Фонд оплаты труда государственных (муниципальных) органов и взносы по обязательному социальному страхованию | C64: 0113 | D64: 0350025330 | E64: 121 | F64: 520000
A65: Иные выплаты персоналу государственных (муниципальных) органов, за исключением фонда оплаты труда | C65: 0113 | D65: 0350025330 | E65: 122 | F65: 1600
A66: Взносы по обязательному социальному страхованию на выплату денежного содержания и иные выплаты работникам государственных (муниципальных) органов | C66: 0113 | D66: 0350025330 | E66: 129 | F66: 157000
A67: Прочая закупка товаров, работ и услуг для обеспечения государственных (муниципальных) нужд | C67: 0113 | D67: 0350025330 | E67: 244 | F67: 37000
A68: Муниципальная программа «Обеспечение общественного порядка и противодействие преступности в Кукморском муниципальном районе на 2015 - 2017 годы" | C68: 0113 | D68: 0600000000 | F68: 15000
A69: Подпрограмма «Профилактика терроризма и экстремизма в Кукморском муниципальном районе на 2015-2016гг.» | C69: 0113 | D69: 0630000000 | F69: 15000
A70: Прочая закупка товаров, работ и услуг для обеспечения государственных (муниципальных) нужд | C70: 0113 | D70: 0630010990 | E70: 244 | F70: 15000
A71: Муниципальная программа «Развитие культуры Кукморского муниципального района Республики Татарстан на 2015 – 2017 годы» | C71: 0113 | D71: 0800000000 | F71: 663522.44
A72: Подпрограмма "Развитие архивного дела на 2015 - 2017 годы" | C72: 0113 | D72: 08Е0000000 | F72: 663522.44
A73: Фонд оплаты труда государственных (муниципальных) органов и взносы по обязательному социальному страхованию | C73: 0113 | D73: 08Е0044020 | E73: 121 | F73: 445000
A74: Взносы по обязательному социальному страхованию на выплату денежного содержания и иные выплаты работникам государственных (муниципальных) органов | C74: 0113 | D74: 08Е0044020 | E74: 129 | F74: 134000
A75: Прочая закупка товаров, работ и услуг для обеспечения государственных (муниципальных) нужд | C75: 0113 | D75: 08Е0044020 | E75: 244 | F75: 84522.44
A76: Муниципальная программа «Управление муниципальным имуществом Кукморского муниципального района Республики Татарстан на 2015 – 2017 годы» | C76: 0113 | D76: 1600000000 | F76: 1521580
A77: Фонд оплаты труда государственных (муниципальных) органов и взносы по обязательному социальному страхованию | C77: 0113 | D77: 1600002040 | E77: 121 | F77: 934000
A78: Взносы по обязательному социальному страхованию на выплату денежного содержания и иные выплаты работникам государственных (муниципальных) органов | C78: 0113 | D78: 1600002040 | E78: 129 | F78: 282000
A79: Прочая закупка товаров, работ и услуг для обеспечения государственных (муниципальных) нужд | C79: 0113 | D79: 1600002040 | E79: 244 | F79: 270580
A80: Уплата налога на имущество организаций и земельного налога | C80: 0113 | D80: 1600002950 | E80: 851 | F80: 35000
A81: Муниципальная программа «Управление муниципальными финансами Кукморского муниципального района Республики Татарстан на 2015 – 2017 годы» | C81: 0113 | D81: 1800000000 | F81: 10593252.93
A82: Уплата налога на имущество организаций и земельного налога | C82: 0113 | D82: 1800002950 | E82: 851 | F82: 2800
A83: Фонд оплаты труда казенных учреждений и взносы по обязательному социальному страхованию | C83: 0113 | D83: 1800029900 | E83: 111 | F83: 7309000
A84: Взносы по обязательному социальному страхованию на выплаты по оплате труда работников и иные выплаты работникам учреждений | C84: 0113 | D84: 1800029900 | E84: 119 | F84: 2207643.95
A85: Прочая закупка товаров, работ и услуг для обеспечения государственных (муниципальных) нужд | C85: 0113 | D85: 1800029900 | E85: 244 | F85: 1070808.98
A86: Уплата прочих налогов, сборов и иных платежей | C86: 0113 | D86: 1800029900 | E86: 852 | F86: 3000
A87: Программа по реализации государственной национальной политики в Кукморском муниципальном районе на 2015-2020 годы | C87: 0113 | D87: 2000000000 | F87: 80000
A88: Прочая закупка товаров, работ и услуг для обеспечения государственных (муниципальных) нужд | C88: 0113 | D88: 2000010990 | E88: 244 | F88: 80000
A89: Государственная программа "Развитие юстиции в Республике Татарстан на 2014 – 2020 годы" | C89: 0113 | D89: 2400000000 | F89: 3000 | G89: =C89&D89&E89 -> 01132400000000
A90: Подпрограмма "Реализация государственной политики в сфере юстиции в Республике Татарстан на 2014 – 2020 годы" | C90: 0113 | D90: 2410000000 | F90: 3000
A91: Прочая закупка товаров, работ и услуг для обеспечения государственных (муниципальных) нужд | C91: 0113 | D91: 2410025390 | E91: 244 | F91: 3000
A92: Муниципальная программа «Реализация антикоррупционной политики в Кукморском муниципальном районе Республики Татарстан на 2015-2020 годы» | C92: 0113 | D92: 2700000000 | F92: 5000
A93: Прочая закупка товаров, работ и услуг для обеспечения государственных (муниципальных) нужд | C93: 0113 | D93: 2700010990 | E93: 244 | F93: 5000
A94: Непрограммные направления расходов | C94: 0113 | D94: 9900000000 | F94: 3742399.73
A95: Уплата налога на имущество организаций и земельного налога | C95: 0113 | D95: 9900002950 | F95: 733226.4
A96: Уплата налога на имущество организаций и земельного налога | C96: 0113 | D96: 9900002950 | E96: 851 | F96: 733226.4
A97: Реализация государственных полномочий по образованию и организации деятельности комиссий по делам несовершеннолетних и защите их прав | C97: 0113 | D97: 9900025260 | F97: 506500 | G97: =C97&D97&E97 -> 01139900025260
A98: Фонд оплаты труда государственных (муниципальных) органов и взносы по обязательному социальному страхованию | C98: 0113 | D98: 9900025260 | E98: 121 | F98: 375000
A99: Взносы по обязательному социальному страхованию на выплату денежного содержания и иные выплаты работникам государственных (муниципальных) органов | C99: 0113 | D99: 9900025260 | E99: 129 | F99: 113000
A100: Прочая закупка товаров, работ и услуг для обеспечения государственных (муниципальных) нужд | C100: 0113 | D100: 9900025260 | E100: 244 | F100: 18500 | G100: =C100&D100&E100 -> 01139900025260244
A101: Реализация государственных полномочий по образованию и организации деятельности административных комиссий | C101: 0113 | D101: 9900025270 | F101: 244900
A102: Фонд оплаты труда государственных (муниципальных) органов и взносы по обязательному социальному страхованию | C102: 0113 | D102: 9900025270 | E102: 121 | F102: 178000
A103: Взносы по обязательному социальному страхованию на выплату денежного содержания и иные выплаты работникам государственных (муниципальных) органов | C103: 0113 | D103: 9900025270 | E103: 129 | F103: 54000
A104: Прочая закупка товаров, работ и услуг для обеспечения государственных (муниципальных) нужд | C104: 0113 | D104: 9900025270 | E104: 244 | F104: 12900
A105: Реализация государственных полномочий в области архивного дела | C105: 0113 | D105: 9900025340 | F105: 55900
A106: Прочая закупка товаров, работ и услуг для обеспечения государственных (муниципальных) нужд | C106: 0113 | D106: 9900025340 | E106: 244 | F106: 55900
A107: Реализация государственных полномочий по определению перечня должностных лиц, уполномоченных составлять протоколы об административных правонарушениях | C107: 0113 | D107: 9900025350 | F107: 370
A108: Прочая закупка товаров, работ и услуг для обеспечения государственных (муниципальных) нужд | C108: 0113 | D108: 9900025350 | E108: 244 | F108: 370 | G108: =C108&D108&E108 -> 01139900025350244
A109: Государственная регистрация актов гражданского состояния за счет средств федерального бюджета | C109: 0113 | D109: 9900059300 | F109: 1654000 | G109: =C109&D109&E109 -> 01139900059300
A110: Фонд оплаты труда государственных (муниципальных) органов и взносы по обязательному социальному страхованию | C110: 0113 | D110: 9900059300 | E110: 121 | F110: 618000
A111: Иные выплаты персоналу государственных (муниципальных) органов, за исключением фонда оплаты труда | C111: 0113 | D111: 9900059300 | E111: 122 | F111: 28000
A112: Взносы по обязательному социальному страхованию на выплату денежного содержания и иные выплаты работникам государственных (муниципальных) органов | C112: 0113 | D112: 9900059300 | E112: 129 | F112: 187000
A113: Прочая закупка товаров, работ и услуг для обеспечения государственных (муниципальных) нужд | C113: 0113 | D113: 9900059300 | E113: 244 | F113: 721000
A114: Субвенции | C114: 0113 | D114: 9900059300 | E114: 530 | F114: 100000
A115: Обеспечение деятельности подведомственных учреждений | C115: 0113 | D115: 9900092990 | F115: 547503.33
A116: Прочая закупка товаров, работ и услуг для обеспечения государственных (муниципальных) нужд | C116: 0113 | D116: 9900092990 | E116: 244 | F116: 541457.84
A117: Уплата прочих налогов, сборов и иных платежей | C117: 0113 | D117: 9900092990 | E117: 852 | F117: 6045.49
A118: НАЦИОНАЛЬНАЯ ОБОРОНА | C118: 0200 | F118: 2352800
A119: Мобилизационная и вневойсковая подготовка | C119: 0203 | F119: 2352800
A120: Непрограммные направления расходов | C120: 0203 | D120: 9900000000 | F120: 2352800
A121: Осуществление первичного воинского учета на территориях, где отсутствуют военные комиссариаты за счет средств федерального бюджета | C121: 0203 | D121: 9900051180 | F121: 2352800
A122: Субвенции | C122: 0203 | D122: 9900051180 | E122: 530 | F122: 2352800
A123: НАЦИОНАЛЬНАЯ БЕЗОПАСНОСТЬ И ПРАВООХРАНИТЕЛЬНАЯ ДЕЯТЕЛЬНОСТЬ | C123: 0300 | F123: 1575500 | G123: =C123&D123&E123 -> 0300
A124: Защита населения и территории от чрезвычайных ситуаций природного и техногенного характера, гражданская оборона | C124: 0309 | F124: 1144200
A125: Муниципальная программа «Защита населения и территорий от чрезвычайных ситуаций, обеспечение пожарной безопасности и безопасности людей на водных объектах в Кукморском муниципальном районе Республики Татарстан на 2015 – 2017 годы» | C125: 0309 | D125: 0700000000 | F125: 1144200
A126: Подпрограмма «Снижение рисков и смягчение последствий чрезвычайных ситуаций природного и техногенного характера в Кукморском муниципальном районе Республики Татарстан на 2015 – 2017 годы» | C126: 0309 | D126: 0720000000 | F126: 1144200
A127: Прочая закупка товаров, работ и услуг для обеспечения государственных (муниципальных) нужд | C127: 0309 | D127: 0720007420 | E127: 244 | F127: 100000 | G127: =C127&D127&E127 -> 03090720007420244
A128: Фонд оплаты труда казенных учреждений и взносы по обязательному социальному страхованию | C128: 0309 | D128: 0720022670 | E128: 111 | F128: 793000
A129: Взносы по обязательному социальному страхованию на выплаты по оплате труда работников и иные выплаты работникам учреждений | C129: 0309 | D129: 0720022670 | E129: 119 | F129: 239000
A130: Прочая закупка товаров, работ и услуг для обеспечения государственных (муниципальных) нужд | C130: 0309 | D130: 0720022670 | E130: 244 | F130: 12200 | G130: =C130&D130&E130 -> 03090720022670244
A131: Другие вопросы в области национальной безопасности и правоохранительной деятельности | C131: 0314 | F131: 431300 | G131: =C131&D131&E131 -> 0314
A132: Муниципальная программа «Обеспечение общественного порядка и противодействие преступности в Кукморском муниципальном районе на 2015 - 2017 годы" | C132: 0314 | D132: 0600000000 | F132: 431300 | G132: =C132&D132&E132 -> 03140600000000
A133: Подпрограмма "Организация деятельности по профилактике правонарушений и преступлений в Республике Татарстан на 2014 – 2020 годы" | C133: 0314 | D133: 0610000000 | F133: 431300 | G133: =C133&D133&E133 -> 03140610000000
A134: Фонд оплаты труда государственных (муниципальных) органов и взносы по обязательному социальному страхованию | C134: 0314 | D134: 0610010990 | E134: 121 | F134: 431300
A135: НАЦИОНАЛЬНАЯ ЭКОНОМИКА | C135: 0400 | F135: 19914317.55
A136: Сельское хозяйство и рыболовство | C136: 0405 | F136: 2101600 | G136: =C136&D136&E136 -> 0405
A137: Непрограммные направления расходов | C137: 0405 | D137: 9900000000 | F137: 2101600
A138: Средства, передаваемые для компенсации дополнительных расходов, возникших в результате решений, принятых органами власти другого уровня | C138: 0405 | D138: 9900025360 | F138: 2101600
A139: Прочая закупка товаров, работ и услуг для обеспечения государственных (муниципальных) нужд | C139: 0405 | D139: 9900025360 | E139: 244 | F139: 2101600 | G139: =C139&D139&E139 -> 04059900025360244
A140: Дорожное хозяйство (дорожные фонды) | C140: 0409 | F140: 17812717.55
A141: Муниципальная программа «Обеспечение качественным жильем и услугами жилищно-коммунального хозяйства населения, благоустройства территории Кукморского муниципального района Республики Татарстан на 2015 - 2017 годы» | C141: 0409 | D141: 0400000000 | F141: 755643.55 | G141: =C141&D141&E141 -> 04090400000000
A142: Подпрограмма «Благоустройство территории Кукморского муниципального района на 2015 – 2017 годы» | C142: 0409 | D142: 0490000000 | F142: 755643.55
A143: Прочая закупка товаров, работ и услуг для обеспечения государственных (муниципальных) нужд | C143: 0409 | D143: 0490078020 | E143: 244 | F143: 755643.55 | G143: =C143&D143&E143 -> 04090490078020244
A144: Непрограммные направления расходов | C144: 0409 | D144: 9900000000 | F144: 366474 | G144: =C144&D144&E144 -> 04099900000000
A145: Межбюджетные трансферты, передаваемые бюджетам муниципальных образований для компенсации дополнительных расходов, возникших в результате решений, принятых органами власти другого уровня | C145: 0409 | D145: 9900025151 | F145: 366474 | G145: =C145&D145&E145 -> 04099900025151
A146: Иные межбюджетные трансферты | C146: 0409 | D146: 9900025151 | E146: 540 | F146: 366474 | G146: =C146&D146&E146 -> 04099900025151540
A147: Строительство, реконструкция и ремонт (текущий и капитальный) автомобильных дорог за счет муниципального Дорожного фонда | C147: 0409 | D147: Д100003650 | F147: 16690600
A148: Прочая закупка товаров, работ и услуг для обеспечения государственных (муниципальных) нужд | C148: 0409 | D148: Д100003650 | E148: 244 | F148: 16690600 | G148: =C148&D148&E148 -> 0409Д100003650244
A149: ЖИЛИЩНО-КОММУНАЛЬНОЕ ХОЗЯЙСТВО | C149: 0500 | F149: 64596491.6
A150: Жилищное хозяйство | C150: 0501 | F150: 60796035.15 | G150: =C150&D150&E150 -> 0501
A151: Муниципальная программа «Обеспечение качественным жильем и услугами жилищно-коммунального хозяйства населения, благоустройства территории Кукморского муниципального района Республики Татарстан на 2015 - 2017 годы» | C151: 0501 | D151: 0400000000 | F151: 60796035.15 | G151: =C151&D151&E151 -> 05010400000000
A152: Подпрограмма "Реализация мероприятий Республиканской адресной программы по переселению граждан из аварийного жилищного фонда в 2014 – 2017 годах" | C152: 0501 | D152: 0440000000 | F152: 41301035.15 | G152: =C152&D152&E152 -> 05010440000000
A153: Иные выплаты населению | C153: 0501 | D153: 0440095020 | E153: 360 | F153: 41301035.15 | G153: =C153&D153&E153 -> 05010440095020360
A154: Подпрограмма «Реализация мероприятий муниципальной программы капитального ремонта общего имущества в многоквартирных домах, расположенных на территории Кукморского муниципального района Республики Татарстан в 2015 – 2017 годах» | C154: 0501 | D154: 0450000000 | F154: 4388000
A155: Субсидии некоммерческим организациям (за исключением государственных (муниципальных) учреждений) | C155: 0501 | D155: 0450096010 | E155: 630 | F155: 4388000 | G155: =C155&D155&E155 -> 05010450096010630
A156: Подпрограмма «Реализация муниципальной политики в сфере архитектуры, градо-строительства, строительства, промышленности строительных материалов, в жилищной сфере и коммунальном хозяйстве на 2015 – 2017 годы» | C156: 0501 | D156: 0480000000 | F156: 15107000
A157: Прочая закупка товаров, работ и услуг для обеспечения государственных (муниципальных) нужд | C157: 0501 | D157: 0480076040 | E157: 244 | F157: 15107000 | G157: =C157&D157&E157 -> 05010480076040244
A158: Коммунальное хозяйство | C158: 0502 | F158: 268059.32
A159: Непрограммные направления расходов | C159: 0502 | D159: 9900000000 | F159: 268059.32 | G159: =C159&D159&E159 -> 05029900000000
A160: Межбюджетные трансферты, передаваемые бюджетам муниципальных образований для компенсации дополнительных расходов, возникших в результате решений, принятых органами власти другого уровня | C160: 0502 | D160: 9900025151 | F160: 268059.32
A161: Иные межбюджетные трансферты | C161: 0502 | D161: 9900025151 | E161: 540 | F161: 268059.32
A162: Благоустройство | C162: 0503 | F162: 3532397.13
A163: Муниципальная программа «Обеспечение качественным жильем и услугами жилищно-коммунального хозяйства населения, благоустройства территории Кукморского муниципального района Республики Татарстан на 2015 - 2017 годы» | C163: 0503 | D163: 0400000000 | F163: 1155000
A164: Подпрограмма «Благоустройство территории Кукморского муниципального района на 2015 – 2017 годы» | C164: 0503 | D164: 0490000000 | F164: 1155000
A165: Прочая закупка товаров, работ и услуг для обеспечения государственных (муниципальных) нужд | C165: 0503 | D165: 0490078040 | E165: 244 | F165: 1155000
A166: Муниципальная программа «Обеспечение общественного порядка и противодействие преступности в Кукморском муниципальном районе на 2015 - 2017 годы" | C166: 0503 | D166: 0600000000 | F166: 1500000
A167: Подпрограмма «Повышение безопасности дорожного движения в Кукморском муниципальном районе на 2015-2020 годы» | C167: 0503 | D167: 0620000000 | F167: 1500000
A168: Прочая закупка товаров, работ и услуг для обеспечения государственных (муниципальных) нужд | C168: 0503 | D168: 0620078020 | E168: 244 | F168: 1500000
A169: Непрограммные направления расходов | C169: 0503 | D169: 9900000000 | F169: 877397.13
A170: Межбюджетные трансферты, передаваемые бюджетам муниципальных образований для компенсации дополнительных расходов, возникших в результате решений, принятых органами власти другого уровня | C170: 0503 | D170: 9900025151 | F170: 877397.13
A171: Иные межбюджетные трансферты | C171: 0503 | D171: 9900025151 | E171: 540 | F171: 877397.13
A172: ОХРАНА ОКРУЖАЮЩЕЙ СРЕДЫ | C172: 0600 | F172: 500000
A173: Охрана объектов растительного и животного мира и среды их обитания | C173: 0603 | F173: 500000 | G173: =C173&D173&E173 -> 0603
A174: Муниципальная программа «Охрана окружающей среды, воспроизводство и использование природных ресурсов Кукморского муниципального района Республики Татарстан на 2015 год» | C174: 0603 | D174: 0900000000 | F174: 500000
A175: Подпрограмма "Регулирование качества окружающей среды Республики Татарстан на 2014 – 2020 годы" | C175: 0603 | D175: 0910000000 | F175: 500000
A176: Прочая закупка товаров, работ и услуг для обеспечения государственных (муниципальных) нужд | C176: 0603 | D176: 0910019100 | E176: 244 | F176: 500000 | G176: =C176&D176&E176 -> 06030910019100244
A177: ОБРАЗОВАНИЕ | C177: 0700 | F177: 782417178.4
A178: Дошкольное образование | C178: 0701 | F178: 185173066.6
A179: Муниципальная программа «Развитие образования Кукморского муниципального района Республики Татарстан на 2015 – 2017 годы» | C179: 0701 | D179: 0200000000 | F179: 183805066.6
A180: Подпрограмма «Развитие дошкольного образования на 2015 – 2017 годы» | C180: 0701 | D180: 0210000000 | F180: 183805066.6 | G180: =C180&D180&E180 -> 07010210000000
A181: Субсидии бюджетным учреждениям на финансовое обеспечение государственного (муниципального) задания на оказание государственных (муниципальных) услуг (выполнение работ) | C181: 0701 | D181: 0210025370 | E181: 611 | F181: 68240600 | G181: =C181&D181&E181 -> 07010210025370611
A182: Субсидии бюджетным учреждениям на финансовое обеспечение государственного (муниципального) задания на оказание государственных (муниципальных) услуг (выполнение работ) | C182: 0701 | D182: 0210042000 | E182: 611 | F182: 115564466.6
A183: Муниципальная программа «Обеспечение общественного порядка и противодействие преступности в Кукморском муниципальном районе на 2015 - 2017 годы" | C183: 0701 | D183: 0600000000 | F183: 1368000 | G183: =C183&D183&E183 -> 07010600000000
A184: Подпрограмма «Профилактика терроризма и экстремизма в Кукморском муниципальном районе на 2015-2016гг.» | C184: 0701 | D184: 0630000000 | F184: 1368000
A185: Субсидии бюджетным учреждениям на финансовое обеспечение государственного (муниципального) задания на оказание государственных (муниципальных) услуг (выполнение работ) | C185: 0701 | D185: 0630010990 | E185: 611 | F185: 1368000 | G185: =C185&D185&E185 -> 07010630010990611
A186: Общее образование | C186: 0702 | F186: 572577086
A187: Муниципальная программа «Развитие образования Кукморского муниципального района Республики Татарстан на 2015 – 2017 годы» | C187: 0702 | D187: 0200000000 | F187: 570598258.6 | G187: =C187&D187&E187 -> 07020200000000
A188: Подпрограмма «Развитие общего образования на 2015 – 2017 годы» | C188: 0702 | D188: 0220000000 | F188: 498980156.5 | G188: =C188&D188&E188 -> 07020220000000
A189: Субсидии бюджетным учреждениям на финансовое обеспечение государственного (муниципального) задания на оказание государственных (муниципальных) услуг (выполнение работ) | C189: 0702 | D189: 0220025280 | E189: 611 | F189: 268287800 | G189: =C189&D189&E189 -> 07020220025280611
A190: Субсидии бюджетным учреждениям на финансовое обеспечение государственного (муниципального) задания на оказание государственных (муниципальных) услуг (выполнение работ) | C190: 0702 | D190: 0220042100 | E190: 611 | F190: 230675001.4 | G190: =C190&D190&E190 -> 07020220042100611
A191: Субсидии бюджетным учреждениям на финансовое обеспечение государственного (муниципального) задания на оказание государственных (муниципальных) услуг (выполнение работ) | C191: 0702 | D191: 0220043620 | E191: 611 | F191: 17355.12
A192: Подпрограмма «Развитие дополнительного образования на 2015 – 2017 годы» | C192: 0702 | D192: 0230000000 | F192: 71618102.13 | G192: =C192&D192&E192 -> 07020230000000
A193: Субсидии бюджетным учреждениям на финансовое обеспечение государственного (муниципального) задания на оказание государственных (муниципальных) услуг (выполнение работ) | C193: 0702 | D193: 0230042310 | E193: 611 | F193: 17676701.07
A194: Субсидии бюджетным учреждениям на финансовое обеспечение государственного (муниципального) задания на оказание государственных (муниципальных) услуг (выполнение работ) | C194: 0702 | D194: 0230042320 | E194: 611 | F194: 13607515.62
A195: Субсидии бюджетным учреждениям на финансовое обеспечение государственного (муниципального) задания на оказание государственных (муниципальных) услуг (выполнение работ) | C195: 0702 | D195: 0230042330 | E195: 611 | F195: 40333885.44
A196: Муниципальная программа «Обеспечение общественного порядка и противодействие преступности в Кукморском муниципальном районе на 2015 - 2017 годы" | C196: 0702 | D196: 0600000000 | F196: 1944000 | G196: =C196&D196&E196 -> 07020600000000
A197: Подпрограмма «Профилактика терроризма и экстремизма в Кукморском муниципальном районе на 2015-2016гг.» | C197: 0702 | D197: 0630000000 | F197: 1944000
A198: Субсидии бюджетным учреждениям на финансовое обеспечение государственного (муниципального) задания на оказание государственных (муниципальных) услуг (выполнение работ) | C198: 0702 | D198: 0630010990 | E198: 611 | F198: 1944000
A199: Муниципальная программа «Развитие молодежной политики, физической культуры и спорта в Кукморском муниципальном районе Республики Татарстан на 2015 – 2017 годы» | C199: 0702 | D199: 1000000000 | F199: 34827.4 | G199: =C199&D199&E199 -> 07021000000000
A200: Подпрограмма «Развитие физической культуры и спорта в Кукморском муниципальном районе Республики Татарстан на 2015 – 2017 годы» | C200: 0702 | D200: 1010000000 | F200: 34827.4 | G200: =C200&D200&E200 -> 07021010000000
A201: Фонд оплаты труда государственных (муниципальных) органов и взносы по обязательному социальному страхованию | C201: 0702 | D201: 1010042330 | E201: 121 | F201: 34827.4
A202: Молодежная политика и оздоровление детей | C202: 0707 | F202: 11923468.33
... 89 more rows

Sheet 7
C1: =дата!$A$2&дата!$C$9 -> Приложение №4
C2: к решению Совета Кукморского
C3: муниципального района
C4: =дата!C1 -> от 28 марта 2016 г. №
A6: Ведомственная структура расходов
A7: бюджета Кукморского муниципального района на 2016 год
F8: (рублей)
A9: Наименование | B9: КВСР | C9: Рз, ПР | D9: ЦСР | E9: ВР | F9: Сумма
A12: Исполнительный комитет Кукморского муниципального района Республики Татарстан | B12: 601 | F12: 114219631 | G12: =F12-свод16!I13*1000 -> -887392839
A13: ОБЩЕГОСУДАРСТВЕННЫЕ ВОПРОСЫ | B13: 601 | C13: 0100 | F13: 28341752.27
A14: Функционирование Правительства Российской Федерации, высших исполнительных органов государственной власти субъектов Российской Федерации, местных администраций | B14: 601 | C14: 0104 | F14: 13322887.57
A15: Непрограммные направления расходов | B15: 601 | C15: 0104 | D15: 9900000000 | F15: 13322887.57
A16: Центральный аппарат | B16: 601 | C16: 0104 | D16: 9900002040 | F16: 13322887.57
A17: Фонд оплаты труда государственных (муниципальных) органов и взносы по обязательному социальному страхованию | B17: 601 | C17: 0104 | D17: 9900002040 | E17: 121 | F17: 6963000 | G17: =C17&D17&E17 -> 01049900002040121
A18: Иные выплаты персоналу государственных (муниципальных) органов, за исключением фонда оплаты труда | B18: 601 | C18: 0104 | D18: 9900002040 | E18: 122 | F18: 1932 | G18: 01049900002040122
A19: Взносы по обязательному социальному страхованию на выплату денежного содержания и иные выплаты работникам государственных (муниципальных) органов | B19: 601 | C19: 0104 | D19: 9900002040 | E19: 129 | F19: 2102900 | G19: 01049900002040129
A20: Прочая закупка товаров, работ и услуг для обеспечения государственных (муниципальных) нужд | B20: 601 | C20: 0104 | D20: 9900002040 | E20: 244 | F20: 4255008.57 | G20: 01049900002040244
A21: Уплата прочих налогов, сборов и иных платежей | B21: 601 | C21: 0104 | D21: 9900002040 | E21: 852 | F21: 47
A22: Судебная система | B22: 601 | C22: 0105 | F22: 28679 | G22: 0105
A23: Непрограммные направления расходов | B23: 601 | C23: 0105 | D23: 9900000000 | F23: 28679
A24: Составление (изменение) списков кандидатов в присяжные заседатели федеральных судов общей юрисдикции в Российской Федерации за счет средств федерального бюджета | B24: 601 | C24: 0105 | D24: 9900051200 | F24: 28679
A25: Прочая закупка товаров, работ и услуг для обеспечения государственных (муниципальных) нужд | B25: 601 | C25: 0105 | D25: 9900051200 | E25: 244 | F25: 28679
A26: Другие общегосударственные вопросы | B26: 601 | C26: 0113 | F26: 14990185.7 | G26: =C26&D26&E26 -> 0113
A27: Муниципальная программа «Социальная поддержка граждан Кукморского муниципального района Республики Татарстан» на 2015 – 2017 годы | B27: 601 | C27: 0113 | D27: 0300000000 | F27: 715600 | G27: 01130300000000
A28: Подпрограмма "Улучшение социально-экономического положения семей" на 2015 – 2020 годы | B28: 601 | C28: 0113 | D28: 0350000000 | F28: 715600 | G28: 01130350000000
A29: Фонд оплаты труда государственных (муниципальных) органов и взносы по обязательному социальному страхованию | B29: 601 | C29: 0113 | D29: 0350025330 | E29: 121 | F29: 520000 | G29: 01130350025330121
A30: Иные выплаты персоналу государственных (муниципальных) органов, за исключением фонда оплаты труда | B30: 601 | C30: 0113 | D30: 0350025330 | E30: 122 | F30: 1600
A31: Взносы по обязательному социальному страхованию на выплату денежного содержания и иные выплаты работникам государственных (муниципальных) органов | B31: 601 | C31: 0113 | D31: 0350025330 | E31: 129 | F31: 157000
A32: Прочая закупка товаров, работ и услуг для обеспечения государственных (муниципальных) нужд | B32: 601 | C32: 0113 | D32: 0350025330 | E32: 244 | F32: 37000
A33: Муниципальная программа «Обеспечение общественного порядка и противодействие преступности в Кукморском муниципальном районе на 2015 - 2017 годы" | B33: 601 | C33: 0113 | D33: 0600000000 | F33: 15000 | G33: =C33&D33&E33 -> 01130600000000
A34: Подпрограмма «Профилактика терроризма и экстремизма в Кукморском муниципальном районе на 2015-2016гг.» | B34: 601 | C34: 0113 | D34: 0630000000 | F34: 15000
A35: Прочая закупка товаров, работ и услуг для обеспечения государственных (муниципальных) нужд | B35: 601 | C35: 0113 | D35: 0630010990 | E35: 244 | F35: 15000
A36: Муниципальная программа «Развитие культуры Кукморского муниципального района Республики Татарстан на 2015 – 2017 годы» | B36: 601 | C36: 0113 | D36: 0800000000 | F36: 663522.44
A37: Подпрограмма "Развитие архивного дела на 2015 - 2017 годы" | B37: 601 | C37: 0113 | D37: 08Е0000000 | F37: 663522.44
A38: Фонд оплаты труда государственных (муниципальных) органов и взносы по обязательному социальному страхованию | B38: 601 | C38: 0113 | D38: 08Е0044020 | E38: 121 | F38: 445000 | G38: =C38&D38&E38 -> 011308Е0044020121
A39: Взносы по обязательному социальному страхованию на выплату денежного содержания и иные выплаты работникам государственных (муниципальных) органов | B39: 601 | C39: 0113 | D39: 08Е0044020 | E39: 129 | F39: 134000
A40: Прочая закупка товаров, работ и услуг для обеспечения государственных (муниципальных) нужд | B40: 601 | C40: 0113 | D40: 08Е0044020 | E40: 244 | F40: 84522.44 | G40: =C40&D40&E40 -> 011308Е0044020244
A41: Муниципальная программа «Управление муниципальными финансами Кукморского муниципального района Республики Татарстан на 2015 – 2017 годы» | B41: 601 | C41: 0113 | D41: 1800000000 | F41: 10373252.93 | G41: 01131800000000
A42: Уплата налога на имущество организаций и земельного налога | B42: 601 | C42: 0113 | D42: 1800002950 | E42: 851 | F42: 2800 | G42: 01131800002950851
A43: Фонд оплаты труда казенных учреждений и взносы по обязательному социальному страхованию | B43: 601 | C43: 0113 | D43: 1800029900 | E43: 111 | F43: 7140000 | G43: 01131800029900111
A44: Взносы по обязательному социальному страхованию на выплаты по оплате труда работников и иные выплаты работникам учреждений | B44: 601 | C44: 0113 | D44: 1800029900 | E44: 119 | F44: 2156643.95
A45: Прочая закупка товаров, работ и услуг для обеспечения государственных (муниципальных) нужд | B45: 601 | C45: 0113 | D45: 1800029900 | E45: 244 | F45: 1070808.98
A46: Уплата прочих налогов, сборов и иных платежей | B46: 601 | C46: 0113 | D46: 1800029900 | E46: 852 | F46: 3000 | G46: =C46&D46&E46 -> 01131800029900852
A47: Программа по реализации государственной национальной политики в Кукморском муниципальном районе на 2015-2020 годы | B47: 601 | C47: 0113 | D47: 2000000000 | F47: 80000
A48: Прочая закупка товаров, работ и услуг для обеспечения государственных (муниципальных) нужд | B48: 601 | C48: 0113 | D48: 2000010990 | E48: 244 | F48: 80000
A49: Государственная программа "Развитие юстиции в Республике Татарстан на 2014 – 2020 годы" | B49: 601 | C49: 0113 | D49: 2400000000 | F49: 3000
A50: Подпрограмма "Реализация государственной политики в сфере юстиции в Республике Татарстан на 2014 – 2020 годы" | B50: 601 | C50: 0113 | D50: 2410000000 | F50: 3000 | G50: =C50&D50&E50 -> 01132410000000
A51: Прочая закупка товаров, работ и услуг для обеспечения государственных (муниципальных) нужд | B51: 601 | C51: 0113 | D51: 2410025390 | E51: 244 | F51: 3000
A52: Муниципальная программа «Реализация антикоррупционной политики в Кукморском муниципальном районе Республики Татарстан на 2015-2020 годы» | B52: 601 | C52: 0113 | D52: 2700000000 | F52: 5000
A53: Прочая закупка товаров, работ и услуг для обеспечения государственных (муниципальных) нужд | B53: 601 | C53: 0113 | D53: 2700010990 | E53: 244 | F53: 5000 | G53: =C53&D53&E53 -> 01132700010990244
A54: Непрограммные направления расходов | B54: 601 | C54: 0113 | D54: 9900000000 | F54: 3134810.33
A55: Уплата налога на имущество организаций и земельного налога | B55: 601 | C55: 0113 | D55: 9900002950 | F55: 320847
A56: Уплата налога на имущество организаций и земельного налога | B56: 601 | C56: 0113 | D56: 9900002950 | E56: 851 | F56: 320847
A57: Реализация государственных полномочий по образованию и организации деятельности комиссий по делам несовершеннолетних и защите их прав | B57: 601 | C57: 0113 | D57: 9900025260 | F57: 506500 | G57: =C57&D57&E57 -> 01139900025260
A58: Фонд оплаты труда государственных (муниципальных) органов и взносы по обязательному социальному страхованию | B58: 601 | C58: 0113 | D58: 9900025260 | E58: 121 | F58: 375000 | G58: 01139900025260121
A59: Взносы по обязательному социальному страхованию на выплату денежного содержания и иные выплаты работникам государственных (муниципальных) органов | B59: 601 | C59: 0113 | D59: 9900025260 | E59: 129 | F59: 113000 | G59: 01139900025260129
A60: Прочая закупка товаров, работ и услуг для обеспечения государственных (муниципальных) нужд | B60: 601 | C60: 0113 | D60: 9900025260 | E60: 244 | F60: 18500 | G60: 01139900025260244
A61: Реализация государственных полномочий по образованию и организации деятельности административных комиссий | B61: 601 | C61: 0113 | D61: 9900025270 | F61: 244900
A62: Фонд оплаты труда государственных (муниципальных) органов и взносы по обязательному социальному страхованию | B62: 601 | C62: 0113 | D62: 9900025270 | E62: 121 | F62: 178000
A63: Взносы по обязательному социальному страхованию на выплату денежного содержания и иные выплаты работникам государственных (муниципальных) органов | B63: 601 | C63: 0113 | D63: 9900025270 | E63: 129 | F63: 54000
A64: Прочая закупка товаров, работ и услуг для обеспечения государственных (муниципальных) нужд | B64: 601 | C64: 0113 | D64: 9900025270 | E64: 244 | F64: 12900 | G64: =C64&D64&E64 -> 01139900025270244
A65: Реализация государственных полномочий в области архивного дела | B65: 601 | C65: 0113 | D65: 9900025340 | F65: 55900 | G65: 01139900025340
A66: Прочая закупка товаров, работ и услуг для обеспечения государственных (муниципальных) нужд | B66: 601 | C66: 0113 | D66: 9900025340 | E66: 244 | F66: 55900 | G66: 01139900025340244
A67: Реализация государственных полномочий по определению перечня должностных лиц, уполномоченных составлять протоколы об административных правонарушениях | B67: 601 | C67: 0113 | D67: 9900025350 | F67: 370
A68: Прочая закупка товаров, работ и услуг для обеспечения государственных (муниципальных) нужд | B68: 601 | C68: 0113 | D68: 9900025350 | E68: 244 | F68: 370
A69: Государственная регистрация актов гражданского состояния за счет средств федерального бюджета | B69: 601 | C69: 0113 | D69: 9900059300 | F69: 1554000 | G69: =C69&D69&E69 -> 01139900059300
A70: Фонд оплаты труда государственных (муниципальных) органов и взносы по обязательному социальному страхованию | B70: 601 | C70: 0113 | D70: 9900059300 | E70: 121 | F70: 618000 | G70: 01139900059300121
A71: Иные выплаты персоналу государственных (муниципальных) органов, за исключением фонда оплаты труда | B71: 601 | C71: 0113 | D71: 9900059300 | E71: 122 | F71: 28000 | G71: 01139900059300122
A72: Взносы по обязательному социальному страхованию на выплату денежного содержания и иные выплаты работникам государственных (муниципальных) органов | B72: 601 | C72: 0113 | D72: 9900059300 | E72: 129 | F72: 187000 | G72: 01139900059300129
A73: Прочая закупка товаров, работ и услуг для обеспечения государственных (муниципальных) нужд | B73: 601 | C73: 0113 | D73: 9900059300 | E73: 244 | F73: 721000
A74: Обеспечение деятельности подведомственных учреждений | B74: 601 | C74: 0113 | D74: 9900092990 | F74: 452293.33 | G74: =C74&D74&E74 -> 01139900092990
A75: Прочая закупка товаров, работ и услуг для обеспечения государственных (муниципальных) нужд | B75: 601 | C75: 0113 | D75: 9900092990 | E75: 244 | F75: 446247.84 | G75: 01139900092990244
A76: Уплата прочих налогов, сборов и иных платежей | B76: 601 | C76: 0113 | D76: 9900092990 | E76: 852 | F76: 6045.49
A77: НАЦИОНАЛЬНАЯ БЕЗОПАСНОСТЬ И ПРАВООХРАНИТЕЛЬНАЯ ДЕЯТЕЛЬНОСТЬ | B77: 601 | C77: 0300 | F77: 1575500 | G77: =C77&D77&E77 -> 0300
A78: Защита населения и территории от чрезвычайных ситуаций природного и техногенного характера, гражданская оборона | B78: 601 | C78: 0309 | F78: 1144200 | G78: 0309
A79: Муниципальная программа «Защита населения и территорий от чрезвычайных ситуаций, обеспечение пожарной безопасности и безопасности людей на водных объектах в Кукморском муниципальном районе Республики Татарстан на 2015 – 2017 годы» | B79: 601 | C79: 0309 | D79: 0700000000 | F79: 1144200
A80: Подпрограмма «Снижение рисков и смягчение последствий чрезвычайных ситуаций природного и техногенного характера в Кукморском муниципальном районе Республики Татарстан на 2015 – 2017 годы» | B80: 601 | C80: 0309 | D80: 0720000000 | F80: 1144200 | G80: =C80&D80&E80 -> 03090720000000
A81: Прочая закупка товаров, работ и услуг для обеспечения государственных (муниципальных) нужд | B81: 601 | C81: 0309 | D81: 0720007420 | E81: 244 | F81: 100000
A82: Фонд оплаты труда казенных учреждений и взносы по обязательному социальному страхованию | B82: 601 | C82: 0309 | D82: 0720022670 | E82: 111 | F82: 793000 | G82: =C82&D82&E82 -> 03090720022670111
A83: Взносы по обязательному социальному страхованию на выплаты по оплате труда работников и иные выплаты работникам учреждений | B83: 601 | C83: 0309 | D83: 0720022670 | E83: 119 | F83: 239000
A84: Прочая закупка товаров, работ и услуг для обеспечения государственных (муниципальных) нужд | B84: 601 | C84: 0309 | D84: 0720022670 | E84: 244 | F84: 12200
A85: Другие вопросы в области национальной безопасности и правоохранительной деятельности | B85: 601 | C85: 0314 | F85: 431300
A86: Муниципальная программа «Обеспечение общественного порядка и противодействие преступности в Кукморском муниципальном районе на 2015 - 2017 годы" | B86: 601 | C86: 0314 | D86: 0600000000 | F86: 431300 | G86: =C86&D86&E86 -> 03140600000000
A87: Подпрограмма "Организация деятельности по профилактике правонарушений и преступлений в Республике Татарстан на 2014 – 2020 годы" | B87: 601 | C87: 0314 | D87: 0610000000 | F87: 431300
A88: Фонд оплаты труда государственных (муниципальных) органов и взносы по обязательному социальному страхованию | B88: 601 | C88: 0314 | D88: 0610010990 | E88: 121 | F88: 431300
A89: НАЦИОНАЛЬНАЯ ЭКОНОМИКА | B89: 601 | C89: 0400 | F89: 19547843.55
A90: Сельское хозяйство и рыболовство | B90: 601 | C90: 0405 | F90: 2101600
A91: Непрограммные направления расходов | B91: 601 | C91: 0405 | D91: 9900000000 | F91: 2101600
A92: Средства, передаваемые для компенсации дополнительных расходов, возникших в результате решений, принятых органами власти другого уровня | B92: 601 | C92: 0405 | D92: 9900025360 | F92: 2101600 | G92: =C92&D92&E92 -> 04059900025360
A93: Прочая закупка товаров, работ и услуг для обеспечения государственных (муниципальных) нужд | B93: 601 | C93: 0405 | D93: 9900025360 | E93: 244 | F93: 2101600 | G93: 04059900025360244
A94: Дорожное хозяйство (дорожные фонды) | B94: 601 | C94: 0409 | F94: 17446243.55 | G94: 0409
A95: Муниципальная программа «Обеспечение качественным жильем и услугами жилищно-коммунального хозяйства населения, благоустройства территории Кукморского муниципального района Республики Татарстан на 2015 - 2017 годы» | B95: 601 | C95: 0409 | D95: 0400000000 | F95: 755643.55 | G95: 04090400000000
A96: Подпрограмма «Благоустройство территории Кукморского муниципального района на 2015 – 2017 годы» | B96: 601 | C96: 0409 | D96: 0490000000 | F96: 755643.55
A97: Прочая закупка товаров, работ и услуг для обеспечения государственных (муниципальных) нужд | B97: 601 | C97: 0409 | D97: 0490078020 | E97: 244 | F97: 755643.55 | G97: =C97&D97&E97 -> 04090490078020244
A98: Строительство, реконструкция и ремонт (текущий и капитальный) автомобильных дорог за счет муниципального Дорожного фонда | B98: 601 | C98: 0409 | D98: Д100003650 | F98: 16690600
A99: Прочая закупка товаров, работ и услуг для обеспечения государственных (муниципальных) нужд | B99: 601 | C99: 0409 | D99: Д100003650 | E99: 244 | F99: 16690600
A100: ЖИЛИЩНО-КОММУНАЛЬНОЕ ХОЗЯЙСТВО | B100: 601 | C100: 0500 | F100: 63451035.15
A101: Жилищное хозяйство | B101: 601 | C101: 0501 | F101: 60796035.15
A102: Муниципальная программа «Обеспечение качественным жильем и услугами жилищно-коммунального хозяйства населения, благоустройства территории Кукморского муниципального района Республики Татарстан на 2015 - 2017 годы» | B102: 601 | C102: 0501 | D102: 0400000000 | F102: 60796035.15 | G102: =C102&D102&E102 -> 05010400000000
A103: Подпрограмма "Реализация мероприятий Республиканской адресной программы по переселению граждан из аварийного жилищного фонда в 2014 – 2017 годах" | B103: 601 | C103: 0501 | D103: 0440000000 | F103: 41301035.15
A104: Иные выплаты населению | B104: 601 | C104: 0501 | D104: 0440095020 | E104: 360 | F104: 41301035.15
A105: Подпрограмма «Реализация мероприятий муниципальной программы капитального ремонта общего имущества в многоквартирных домах, расположенных на территории Кукморского муниципального района Республики Татарстан в 2015 – 2017 годах» | B105: 601 | C105: 0501 | D105: 0450000000 | F105: 4388000
A106: Субсидии некоммерческим организациям (за исключением государственных (муниципальных) учреждений) | B106: 601 | C106: 0501 | D106: 0450096010 | E106: 630 | F106: 4388000
A107: Подпрограмма «Реализация муниципальной политики в сфере архитектуры, градо-строительства, строительства, промышленности строительных материалов, в жилищной сфере и коммунальном хозяйстве на 2015 – 2017 годы» | B107: 601 | C107: 0501 | D107: 0480000000 | F107: 15107000 | G107: =C107&D107&E107 -> 05010480000000
A108: Прочая закупка товаров, работ и услуг для обеспечения государственных (муниципальных) нужд | B108: 601 | C108: 0501 | D108: 0480076040 | E108: 244 | F108: 15107000
A109: Благоустройство | B109: 601 | C109: 0503 | F109: 2655000
A110: Муниципальная программа «Обеспечение качественным жильем и услугами жилищно-коммунального хозяйства населения, благоустройства территории Кукморского муниципального района Республики Татарстан на 2015 - 2017 годы» | B110: 601 | C110: 0503 | D110: 0400000000 | F110: 1155000
A111: Подпрограмма «Благоустройство территории Кукморского муниципального района на 2015 – 2017 годы» | B111: 601 | C111: 0503 | D111: 0490000000 | F111: 1155000
A112: Прочая закупка товаров, работ и услуг для обеспечения государственных (муниципальных) нужд | B112: 601 | C112: 0503 | D112: 0490078040 | E112: 244 | F112: 1155000
A113: Муниципальная программа «Обеспечение общественного порядка и противодействие преступности в Кукморском муниципальном районе на 2015 - 2017 годы" | B113: 601 | C113: 0503 | D113: 0600000000 | F113: 1500000 | G113: =C113&D113&E113 -> 05030600000000
A114: Подпрограмма «Повышение безопасности дорожного движения в Кукморском муниципальном районе на 2015-2020 годы» | B114: 601 | C114: 0503 | D114: 0620000000 | F114: 1500000
A115: Прочая закупка товаров, работ и услуг для обеспечения государственных (муниципальных) нужд | B115: 601 | C115: 0503 | D115: 0620078020 | E115: 244 | F115: 1500000
A116: ЗДРАВООХРАНЕНИЕ | B116: 601 | C116: 0900 | F116: 689500 | G116: =C116&D116&E116 -> 0900
A117: Санитарно-эпидемиологическое благополучие | B117: 601 | C117: 0907 | F117: 689500
A118: Муниципальная программа «Развитие здравоохранения Кукморского муниципального района Республики Татарстан на 2015-2017 годы» | B118: 601 | C118: 0907 | D118: 0100000000 | F118: 689500
A119: Подпрограмма «Профилактика заболеваний и формирование здорового образа жизни. Развитие первичной медико-санитарной помощи» | B119: 601 | C119: 0907 | D119: 0110000000 | F119: 689500
A120: Прочая закупка товаров, работ и услуг для обеспечения государственных (муниципальных) нужд | B120: 601 | C120: 0907 | D120: 0110002110 | E120: 244 | F120: 689500
A121: СОЦИАЛЬНАЯ ПОЛИТИКА | B121: 601 | C121: 1000 | F121: 614000 | G121: =C121&D121&E121 -> 1000
A122: Социальное обеспечение населения | B122: 601 | C122: 1003 | F122: 614000
A123: Муниципальная программа «Социальная поддержка граждан Кукморского муниципального района Республики Татарстан» на 2015 – 2017 годы | B123: 601 | C123: 1003 | D123: 0300000000 | F123: 614000 | G123: =C123&D123&E123 -> 10030300000000
A124: Подпрограмма «Социальные выплаты» на 2015 – 2017 годы | B124: 601 | C124: 1003 | D124: 0310000000 | F124: 614000
A125: Прочая закупка товаров, работ и услуг для обеспечения государственных (муниципальных) нужд | B125: 601 | C125: 1003 | D125: 0310005410 | E125: 244 | F125: 614000
A126: Кукморский районный Совет | B126: 602 | F126: 9023356.69
A127: ОБЩЕГОСУДАРСТВЕННЫЕ ВОПРОСЫ | B127: 602 | C127: 0100 | F127: 9023356.69 | G127: =C127&D127&E127 -> 0100
A128: Функционирование высшего должностного лица субъекта Российской Федерации и муниципального образования | B128: 602 | C128: 0102 | F128: 1611000
A129: Непрограммные направления расходов | B129: 602 | C129: 0102 | D129: 9900000000 | F129: 1611000
A130: Глава муниципального района | B130: 602 | C130: 0102 | D130: 9900002030 | F130: 1611000
A131: Фонд оплаты труда государственных (муниципальных) органов и взносы по обязательному социальному страхованию | B131: 602 | C131: 0102 | D131: 9900002030 | E131: 121 | F131: 1237000
A132: Взносы по обязательному социальному страхованию на выплату денежного содержания и иные выплаты работникам государственных (муниципальных) органов | B132: 602 | C132: 0102 | D132: 9900002030 | E132: 129 | F132: 374000
A133: Функционирование законодательных (представительных) органов государственной власти и представительных органов муниципальных образований | B133: 602 | C133: 0103 | F133: 7150246.69 | G133: =C133&D133&E133 -> 0103
A134: Непрограммные направления расходов | B134: 602 | C134: 0103 | D134: 9900000000 | F134: 7150246.69
A135: Центральный аппарат | B135: 602 | C135: 0103 | D135: 9900002040 | F135: 7150246.69
A136: Фонд оплаты труда государственных (муниципальных) органов и взносы по обязательному социальному страхованию | B136: 602 | C136: 0103 | D136: 9900002040 | E136: 121 | F136: 3611000
A137: Иные выплаты персоналу государственных (муниципальных) органов, за исключением фонда оплаты труда | B137: 602 | C137: 0103 | D137: 9900002040 | E137: 122 | F137: 15619
A138: Взносы по обязательному социальному страхованию на выплату денежного содержания и иные выплаты работникам государственных (муниципальных) органов | B138: 602 | C138: 0103 | D138: 9900002040 | E138: 129 | F138: 1091000
A139: Прочая закупка товаров, работ и услуг для обеспечения государственных (муниципальных) нужд | B139: 602 | C139: 0103 | D139: 9900002040 | E139: 244 | F139: 2391124.19 | G139: =C139&D139&E139 -> 01039900002040244
A140: Уплата прочих налогов, сборов и иных платежей | B140: 602 | C140: 0103 | D140: 9900002040 | E140: 852 | F140: 41503.5
A141: Другие общегосударственные вопросы | B141: 602 | C141: 0113 | F141: 262110
A142: Непрограммные направления расходов | B142: 602 | C142: 0113 | D142: 9900000000 | F142: 262110
A143: Уплата налога на имущество организаций и земельного налога | B143: 602 | C143: 0113 | D143: 9900002950 | F143: 176900
A144: Уплата налога на имущество организаций и земельного налога | B144: 602 | C144: 0113 | D144: 9900002950 | E144: 851 | F144: 176900
A145: Обеспечение деятельности подведомственных учреждений | B145: 602 | C145: 0113 | D145: 9900092990 | F145: 85210 | G145: =C145&D145&E145 -> 01139900092990
A146: Прочая закупка товаров, работ и услуг для обеспечения государственных (муниципальных) нужд | B146: 602 | C146: 0113 | D146: 9900092990 | E146: 244 | F146: 85210
A147: Контрольно-счетная палата Кукморского муниципального района | B147: 603 | F147: 491990
A148: ОБЩЕГОСУДАРСТВЕННЫЕ ВОПРОСЫ | B148: 603 | C148: 0100 | F148: 491990
A149: Обеспечение деятельности финансовых, налоговых и таможенных органов и органов финансового (финансово-бюджетного) надзора | B149: 603 | C149: 0106 | F149: 491990 | G149: =C149&D149&E149 -> 0106
A150: Непрограммные направления расходов | B150: 603 | C150: 0106 | D150: 9900000000 | F150: 491990 | G150: 01069900000000
A151: Центральный аппарат | B151: 603 | C151: 0106 | D151: 9900002040 | F151: 491990 | G151: 01069900002040
A152: Фонд оплаты труда государственных (муниципальных) органов и взносы по обязательному социальному страхованию | B152: 603 | C152: 0106 | D152: 9900002040 | E152: 121 | F152: 328000 | G152: 01069900002040121
A153: Иные выплаты персоналу государственных (муниципальных) органов, за исключением фонда оплаты труда | B153: 603 | C153: 0106 | D153: 9900002040 | E153: 122 | F153: 16000
A154: Взносы по обязательному социальному страхованию на выплату денежного содержания и иные выплаты работникам государственных (муниципальных) органов | B154: 603 | C154: 0106 | D154: 9900002040 | E154: 129 | F154: 99000 | G154: =C154&D154&E154 -> 01069900002040129
A155: Прочая закупка товаров, работ и услуг для обеспечения государственных (муниципальных) нужд | B155: 603 | C155: 0106 | D155: 9900002040 | E155: 244 | F155: 48990
A156: Финансово-бюджетная палата Кукморского муниципального района | B156: 605 | F156: 38050192.45
A157: ОБЩЕГОСУДАРСТВЕННЫЕ ВОПРОСЫ | B157: 605 | C157: 0100 | F157: 4036162
A158: Обеспечение деятельности финансовых, налоговых и таможенных органов и органов финансового (финансово-бюджетного) надзора | B158: 605 | C158: 0106 | F158: 3936162
A159: Муниципальная программа «Управление муниципальными финансами Кукморского муниципального района Республики Татарстан на 2015 – 2017 годы» | B159: 605 | C159: 0106 | D159: 1800000000 | F159: 3936162 | G159: =C159&D159&E159 -> 01061800000000
A160: Фонд оплаты труда государственных (муниципальных) органов и взносы по обязательному социальному страхованию | B160: 605 | C160: 0106 | D160: 1800002040 | E160: 121 | F160: 2570000 | G160: 01061800002040121
A161: Взносы по обязательному социальному страхованию на выплату денежного содержания и иные выплаты работникам государственных (муниципальных) органов | B161: 605 | C161: 0106 | D161: 1800002040 | E161: 129 | F161: 776000 | G161: 01061800002040129
A162: Прочая закупка товаров, работ и услуг для обеспечения государственных (муниципальных) нужд | B162: 605 | C162: 0106 | D162: 1800002040 | E162: 244 | F162: 587862
A163: Уплата прочих налогов, сборов и иных платежей | B163: 605 | C163: 0106 | D163: 1800002040 | E163: 852 | F163: 1600
A164: Уплата налога на имущество организаций и земельного налога | B164: 605 | C164: 0106 | D164: 1800002950 | E164: 851 | F164: 700
A165: Другие общегосударственные вопросы | B165: 605 | C165: 0113 | F165: 100000
A166: Непрограммные направления расходов | B166: 605 | C166: 0113 | D166: 9900000000 | F166: 100000
A167: Государственная регистрация актов гражданского состояния за счет средств федерального бюджета | B167: 605 | C167: 0113 | D167: 9900059300 | F167: 100000
A168: Субвенции | B168: 605 | C168: 0113 | D168: 9900059300 | E168: 530 | F168: 100000 | G168: =C168&D168&E168 -> 01139900059300530
A169: НАЦИОНАЛЬНАЯ ОБОРОНА | B169: 605 | C169: 0200 | F169: 2352800 | G169: 0200
A170: Мобилизационная и вневойсковая подготовка | B170: 605 | C170: 0203 | F170: 2352800 | G170: 0203
A171: Непрограммные направления расходов | B171: 605 | C171: 0203 | D171: 9900000000 | F171: 2352800 | G171: 02039900000000
A172: Осуществление первичного воинского учета на территориях, где отсутствуют военные комиссариаты за счет средств федерального бюджета | B172: 605 | C172: 0203 | D172: 9900051180 | F172: 2352800
A173: Субвенции | B173: 605 | C173: 0203 | D173: 9900051180 | E173: 530 | F173: 2352800 | G173: =C173&D173&E173 -> 02039900051180530
A174: НАЦИОНАЛЬНАЯ ЭКОНОМИКА | B174: 605 | C174: 0400 | F174: 366474
A175: Дорожное хозяйство (дорожные фонды) | B175: 605 | C175: 0409 | F175: 366474
A176: Непрограммные направления расходов | B176: 605 | C176: 0409 | D176: 9900000000 | F176: 366474
A177: Межбюджетные трансферты, передаваемые бюджетам муниципальных образований для компенсации дополнительных расходов, возникших в результате решений, принятых органами власти другого уровня | B177: 605 | C177: 0409 | D177: 9900025151 | F177: 366474 | G177: =C177&D177&E177 -> 04099900025151
A178: Иные межбюджетные трансферты | B178: 605 | C178: 0409 | D178: 9900025151 | E178: 540 | F178: 366474
A179: ЖИЛИЩНО-КОММУНАЛЬНОЕ ХОЗЯЙСТВО | B179: 605 | C179: 0500 | F179: 1145456.45
A180: Коммунальное хозяйство | B180: 605 | C180: 0502 | F180: 268059.32
A181: Непрограммные направления расходов | B181: 605 | C181: 0502 | D181: 9900000000 | F181: 268059.32
A182: Межбюджетные трансферты, передаваемые бюджетам муниципальных образований для компенсации дополнительных расходов, возникших в результате решений, принятых органами власти другого уровня | B182: 605 | C182: 0502 | D182: 9900025151 | F182: 268059.32 | G182: =C182&D182&E182 -> 05029900025151
A183: Иные межбюджетные трансферты | B183: 605 | C183: 0502 | D183: 9900025151 | E183: 540 | F183: 268059.32
A184: Благоустройство | B184: 605 | C184: 0503 | F184: 877397.13
A185: Непрограммные направления расходов | B185: 605 | C185: 0503 | D185: 9900000000 | F185: 877397.13
A186: Межбюджетные трансферты, передаваемые бюджетам муниципальных образований для компенсации дополнительных расходов, возникших в результате решений, принятых органами власти другого уровня | B186: 605 | C186: 0503 | D186: 9900025151 | F186: 877397.13
A187: Иные межбюджетные трансферты | B187: 605 | C187: 0503 | D187: 9900025151 | E187: 540 | F187: 877397.13 | G187: =C187&D187&E187 -> 05039900025151540
A188: ОХРАНА ОКРУЖАЮЩЕЙ СРЕДЫ | B188: 605 | C188: 0600 | F188: 500000
A189: Охрана объектов растительного и животного мира и среды их обитания | B189: 605 | C189: 0603 | F189: 500000
A190: Муниципальная программа «Охрана окружающей среды, воспроизводство и использование природных ресурсов Кукморского муниципального района Республики Татарстан на 2015 год» | B190: 605 | C190: 0603 | D190: 0900000000 | F190: 500000
A191: Подпрограмма "Регулирование качества окружающей среды Республики Татарстан на 2014 – 2020 годы" | B191: 605 | C191: 0603 | D191: 0910000000 | F191: 500000
A192: Прочая закупка товаров, работ и услуг для обеспечения государственных (муниципальных) нужд | B192: 605 | C192: 0603 | D192: 0910019100 | E192: 244 | F192: 500000
A193: МЕЖБЮДЖЕТНЫЕ ТРАНСФЕРТЫ ОБЩЕГО ХАРАКТЕРА БЮДЖЕТАМ СУБЪЕКТОВ РОССИЙСКОЙ ФЕДЕРАЦИИ И МУНИЦИПАЛЬНЫХ ОБРАЗОВАНИЙ | B193: 605 | C193: 1400 | F193: 29649300 | G193: =C193&D193&E193 -> 1400
A194: Дотации на выравнивание бюджетной обеспеченности субъектов Российской Федерации и муниципальных образований | B194: 605 | C194: 1401 | F194: 24354900
A195: Муниципальная программа «Управление муниципальными финансами Кукморского муниципального района Республики Татарстан на 2015 – 2017 годы» | B195: 605 | C195: 1401 | D195: 1800000000 | F195: 24354900
A196: Дотации на выравнивание бюджетной обеспеченности | B196: 605 | C196: 1401 | D196: 1800080040 | E196: 511 | F196: 22562000
A197: Дотации на выравнивание бюджетной обеспеченности | B197: 605 | C197: 1401 | D197: 1800080060 | E197: 511 | F197: 1792900
A198: Иные дотации | B198: 605 | C198: 1402 | F198: 5294400
A199: Муниципальная программа «Управление муниципальными финансами Кукморского муниципального района Республики Татарстан на 2015 – 2017 годы» | B199: 605 | C199: 1402 | D199: 1800000000 | F199: 5294400 | G199: =C199&D199&E199 -> 14021800000000
A200: Иные дотации | B200: 605 | C200: 1402 | D200: 1800080040 | E200: 512 | F200: 5294400 | G200: =C200&D200&E200 -> 14021800080040512
A201: Палата имущественных и земельных отношений Кукморского муниципального района | B201: 606 | F201: 1751580
A202: ОБЩЕГОСУДАРСТВЕННЫЕ ВОПРОСЫ | B202: 606 | C202: 0100 | F202: 1751580
A203: Другие общегосударственные вопросы | B203: 606 | C203: 0113 | F203: 1751580
... 166 more rows

Sheet 8 (hidden)
C1: =дата!$A$2&дата!$C$10 -> Приложение №
C2: к решению Кукморского
C3: районного Совета
C4: =дата!C1 -> от 28 марта 2016 г. №
A6: Объем бюджетных ассигнований на исполнение
A7: публичных нормативных обязательств на 2016 год
F8: (рублей)
A9: Наименование | B9: КВСР | C9: Рз, ПР | D9: ЦСР | E9: ВР | F9: Сумма
A12: Управление образования Кукморского муниципального района | B12: 611 | F12: =F13 -> 4987800
A13: ОБРАЗОВАНИЕ | B13: 611 | C13: 0700 | F13: =F14+F19 -> 4987800
A14: Дошкольное образование | B14: 611 | C14: 0701 | F14: =F17 -> 1474800
A15: Муниципальная программа «Развитие образования Кукморского муниципального района Республики Татарстан на 2015 – 2017 годы» | B15: 611 | C15: 0701 | D15: 0200000000 | F15: =F16 -> 4987800
A16: Подпрограмма «Развитие дошкольного образования на 2015 – 2017 годы» | B16: 611 | C16: 0701 | D16: 0210000000 | F16: =F17+F19 -> 4987800
A17: Развитие дошкольных образовательных учреждений | B17: 611 | C17: 0701 | D17: 0210342000 | F17: =F18 -> 1474800
A18: Предоставление субсидий бюджетным, автономным учреждениям и иным некоммерческим организациям | B18: 611 | C18: 0701 | D18: 0210342000 | E18: 600 | F18: 1474800
A19: Общее образование | B19: 611 | C19: 0702 | F19: =F20 -> 3513000
A20: Муниципальная программа «Развитие образования Кукморского муниципального района Республики Татарстан на 2015 – 2017 годы» | B20: 611 | C20: 0702 | D20: 0200000000 | F20: =F21+F24 -> 3513000
A21: Подпрограмма «Развитие общего образования на 2015 – 2017 годы» | B21: 611 | C21: 0702 | D21: 0220000000 | F21: =F22 -> 3383000
A22: Развитие общеобразовательных организаций, включая школы - детские сады | B22: 611 | C22: 0702 | D22: 0220242100 | F22: =F23 -> 3383000
A23: Предоставление субсидий бюджетным, автономным учреждениям и иным некоммерческим организациям | B23: 611 | C23: 0702 | D23: 0220242100 | E23: 600 | F23: 3383000
A24: Подпрограмма «Развитие дополнительного образования на 2015 – 2017 годы» | B24: 611 | C24: 0702 | D24: 0230000000 | F24: =F25 -> 130000
A25: Развитие муниципальных учреждений дополнительного образования детей многопрофильной направленности | B25: 611 | C25: 0702 | D25: 0230142310 | F25: =F26 -> 130000
A26: Предоставление субсидий бюджетным, автономным учреждениям и иным некоммерческим организациям | B26: 611 | C26: 0702 | D26: 0230142310 | E26: 600 | F26: 130000
A27: Управление по делам молодежи и спорту Кукморского муниципального района | B27: 612 | F27: =F28 -> 111000
A28: ОБРАЗОВАНИЕ | B28: 612 | C28: 0700 | F28: =F29+F34 -> 111000
A29: Общее образование | B29: 612 | C29: 0702 | F29: =F30 -> 43000
A30: Муниципальная программа «Развитие образования Кукморского муниципального района Республики Татарстан на 2015 – 2017 годы» | B30: 612 | C30: 0709 | D30: 0200000000 | F30: =F31 -> 43000
A31: Подпрограмма «Развитие дополнительного образования на 2015 – 2017 годы» | B31: 612 | C31: 0702 | D31: 0230000000 | F31: =F32 -> 43000
A32: Развитие муниципальных учреждений дополнительного образования детей спортивной направленности | B32: 612 | C32: 0702 | D32: 0230142330 | F32: =F33 -> 43000
A33: Предоставление субсидий бюджетным, автономным учреждениям и иным некоммерческим организациям | B33: 612 | C33: 0702 | D33: 0230142330 | E33: 600 | F33: 43000
A34: Молодежная политика и оздоровление детей | B34: 612 | C34: 0707 | F34: =F35 -> 68000
A35: Муниципальная программа «Развитие молодежной политики, физической культуры и спорта в Кукморском муниципальном районе Республики Татарстан на 2015 – 2017 годы» | B35: 612 | C35: 0707 | D35: 1000000000 | F35: =F37 -> 68000
A36: Подпрограмма «Сельская молодежь Кукморского муниципального района Республики Татарстан на 2015 – 2017 годы» | B36: 612 | C36: 0707 | D36: 1040000000 | F36: =F37 -> 68000
A37: Мероприятия по созданию условий для повышения социальной и экономической активности сельской молодежи | B37: 612 | C37: 0707 | D37: 1040143190 | F37: =F38 -> 68000
A38: Предоставление субсидий бюджетным, автономным учреждениям и иным некоммерческим организациям | B38: 612 | C38: 0707 | D38: 1040143190 | E38: 600 | F38: 68000
A39: Управление культуры Кукморского муниципального района | B39: 613 | F39: =F46+F40 -> 757000
A40: ОБРАЗОВАНИЕ | B40: 612 | C40: 0700 | F40: =F41 -> 80000
A41: Общее образование | B41: 612 | C41: 0702 | F41: =F42 -> 80000
A42: Муниципальная программа «Развитие образования Кукморского муниципального района Республики Татарстан на 2015 – 2017 годы» | B42: 613 | C42: 0702 | D42: 0200000000 | F42: =F43 -> 80000
A43: Подпрограмма «Развитие дополнительного образования на 2015 – 2017 годы» | B43: 613 | C43: 0702 | D43: 0230000000 | F43: 80000
A44: Развитие муниципальных учреждений дополнительного образования детей художественно-эстетической направленности | B44: 613 | C44: 0702 | D44: 0230142320 | F44: =F45 -> 80000
A45: Предоставление субсидий бюджетным, автономным учреждениям и иным некоммерческим организациям | B45: 613 | C45: 0702 | D45: 0230142320 | E45: 600 | F45: 80000
A46: КУЛЬТУРА, КИНЕМАТОГРАФИЯ, СРЕДСТВА МАССОВОЙ ИНФОРМАЦИИ | B46: 613 | C46: 0800 | F46: =F47 -> 677000
A47: Культура | B47: 613 | C47: 0801 | F47: =F48 -> 677000
A48: Муниципальная программа «Развитие культуры Кукморского муниципального района Республики Татарстан на 2015 – 2017 годы» | B48: 613 | C48: 0801 | D48: 0800000000 | F48: =F49+F52+F55 -> 677000
A49: Подпрограмма «Развитие музейного дела на 2015 – 2017 годы» | B49: 613 | C49: 0801 | D49: 0810000000 | F49: =F50 -> 0
A50: Обеспечение деятельности подведомственных учреждений культуры | B50: 613 | C50: 0801 | D50: 0810144090 | F50: =F51 -> 0
A51: Предоставление субсидий бюджетным, автономным учреждениям и иным некоммерческим организациям | B51: 613 | C51: 0801 | D51: 0810144090 | E51: 600 | F51: 0 | G51: =C51&D51&E51 -> 08010810144090600
A52: Подпрограмма «Развитие клубов на 2015 – 2017 годы» | B52: 613 | C52: 0801 | D52: 0840000000 | F52: =F53 -> 422000
A53: Обеспечение деятельности подведомственных учреждений культуры | B53: 613 | C53: 0801 | D53: 0840144091 | F53: =F54 -> 422000
A54: Предоставление субсидий бюджетным, автономным учреждениям и иным некоммерческим организациям | B54: 613 | C54: 0801 | D54: 0840144091 | E54: 600 | F54: 422000 | G54: =C54&D54&E54 -> 08010840144091600
A55: Подпрограмма «Развитие библиотечного дела на 2015 – 2017 годы» | B55: 613 | C55: 0801 | D55: 0830000000 | F55: =F56 -> 255000
A56: Обеспечение деятельности подведомственных учреждений культуры | B56: 613 | C56: 0801 | D56: 0830144090 | F56: =F57 -> 255000
A57: Предоставление субсидий бюджетным, автономным учреждениям и иным некоммерческим организациям | B57: 613 | C57: 0801 | D57: 0830144090 | E57: 600 | F57: 255000 | G57: =C57&D57&E57 -> 08010830144090600
A58: ВСЕГО РАСХОДОВ | F58: =F39+F12+F27 -> 5855800
A61: Глава Района С.Д.Димитриев

Sheet 9 (hidden)
B1: =дата!$A$2&дата!$C$11 -> Приложение №
B2: к решению Кукморского
B3: районного Совета
B4: =дата!$C$1 -> от 28 марта 2016 г. №
A5: Субсидии из бюджетов поселений на осуществление части полномочий
A6: по решению вопросов местного значения в соответствии
A7: с заключенными соглашениями на финансовый контроль на 2016 год
A9: Наименование поселений | B9: Сумма, рублей
A12: Байлянгарское сельское поселение | B12: =плрег16!BL8*1000 -> 8000
A13: Березнякское сельское поселение | B13: =плрег16!BL9*1000 -> 5000
A14: Большекукморское сельское поселение | B14: =плрег16!BL10*1000 -> 15000
A15: Большесардекское сельское поселение | B15: =плрег16!BL11*1000 -> 19000
A16: Важашурское сельское поселение | B16: =плрег16!BL12*1000 -> 7000
A17: Каенсарское сельское поселение | B17: =плрег16!BL13*1000 -> 4000
A18: Каркаусское сельское поселение | B18: =плрег16!BL14*1000 -> 7000
A19: Кошкинское сельское поселение | B19: =плрег16!BL15*1000 -> 7000
A20: Лельвижское сельское поселение | B20: =плрег16!BL16*1000 -> 5000
A21: Лубянское сельское поселение | B21: =плрег16!BL17*1000 -> 13000
A22: Мамаширское сельское поселение | B22: =плрег16!BL18*1000 -> 6000
A23: Манзарасское сельское поселение | B23: =плрег16!BL19*1000 -> 12000
A24: Нижнеискубашское сельское поселение | B24: =плрег16!BL20*1000 -> 7000
A25: Нижнерусское сельское поселение | B25: =плрег16!BL21*1000 -> 6000
A26: Ныртинское сельское поселение | B26: =плрег16!BL22*1000 -> 7000
A27: Нырьинское сельское поселение | B27: =плрег16!BL23*1000 -> 10000
A28: Олуязское сельское поселение | B28: =плрег16!BL24*1000 -> 10000
A29: Ошторма-Юмьинское сельское поселение | B29: =плрег16!BL25*1000 -> 10000
A30: поселок городского типа Кукмор | B30: =плрег16!BL26*1000 -> 138000
A31: Починок-Кучуковское сельское поселение | B31: =плрег16!BL27*1000 -> 7000
A32: Псякское сельское поселение | B32: =плрег16!BL28*1000 -> 5000
A33: Сардекбашское сельское поселение | B33: =плрег16!BL29*1000 -> 9000
A34: Село-Чуринское сельское поселение | B34: =плрег16!BL30*1000 -> 9000
A35: Среднекуморское сельское поселение | B35: =плрег16!BL31*1000 -> 10000
A36: Туембашское сельское поселение | B36: =плрег16!BL32*1000 -> 6000
A37: Уркушское сельское поселение | B37: =плрег16!BL33*1000 -> 5000
A38: Чарлинское сельское поселение | B38: =плрег16!BL34*1000 -> 6000
A39: Ядыгерьское сельское поселение | B39: =плрег16!BL35*1000 -> 7000
A40: Яныльское сельское поселение | B40: =плрег16!BL36*1000 -> 10000
A41: Ятмас-Дусаевское сельское поселение | B41: =плрег16!BL37*1000 -> 5000
A42: ВСЕГО | B42: =SUM(B12:B41) -> 375000
A45: Глава Района С.Д.Димитриев

Sheet 10 (hidden)
B1: =дата!$A$2&дата!$C$12 -> Приложение №
B2: к решению Кукморского
B3: районного Совета
B4: =дата!$C$1 -> от 28 марта 2016 г. №
A5: Субсидии в бюджеты поселений на осуществление части полномочий
A6: по осуществлению дорожной деятельности на 2016 год
A9: Наименование поселений | B9: Сумма, рублей
A12: Байлянгарское сельское поселение | B12: =плрег16!AR8*1000 -> 16000
A13: Березнякское сельское поселение | B13: =плрег16!AR9*1000 -> 10900
A14: Большекукморское сельское поселение | B14: =плрег16!AR10*1000 -> 40500
A15: Большесардекское сельское поселение | B15: =плрег16!AR11*1000 -> 50900
A16: Важашурское сельское поселение | B16: =плрег16!AR12*1000 -> 14700
A17: Каенсарское сельское поселение | B17: =плрег16!AR13*1000 -> 5500
A18: Каркаусское сельское поселение | B18: =плрег16!AR14*1000 -> 13400
A19: Кошкинское сельское поселение | B19: =плрег16!AR15*1000 -> 15200
A20: Лельвижское сельское поселение | B20: =плрег16!AR16*1000 -> 7900
A21: Лубянское сельское поселение | B21: =плрег16!AR17*1000 -> 22900
A22: Мамаширское сельское поселение | B22: =плрег16!AR18*1000 -> 12000
A23: Манзарасское сельское поселение | B23: =плрег16!AR19*1000 -> 29700
A24: Нижнеискубашское сельское поселение | B24: =плрег16!AR20*1000 -> 15200
A25: Нижнерусское сельское поселение | B25: =плрег16!AR21*1000 -> 11900
A26: Ныртинское сельское поселение | B26: =плрег16!AR22*1000 -> 14100
A27: Нырьинское сельское поселение | B27: =плрег16!AR23*1000 -> 21300
A28: Олуязское сельское поселение | B28: =плрег16!AR24*1000 -> 21900
A29: Ошторма-Юмьинское сельское поселение | B29: =плрег16!AR25*1000 -> 21400
A30: поселок городского типа Кукмор | B30: =плрег16!AR26*1000 -> 0
A31: Починок-Кучуковское сельское поселение | B31: =плрег16!AR27*1000 -> 16300
A32: Псякское сельское поселение | B32: =плрег16!AR28*1000 -> 10500
A33: Сардекбашское сельское поселение | B33: =плрег16!AR29*1000 -> 18600
A34: Село-Чуринское сельское поселение | B34: =плрег16!AR30*1000 -> 20000
A35: Среднекуморское сельское поселение | B35: =плрег16!AR31*1000 -> 15600
A36: Туембашское сельское поселение | B36: =плрег16!AR32*1000 -> 10300
A37: Уркушское сельское поселение | B37: =плрег16!AR33*1000 -> 9200
A38: Чарлинское сельское поселение | B38: =плрег16!AR34*1000 -> 10000
A39: Ядыгерьское сельское поселение | B39: =плрег16!AR35*1000 -> 15100
A40: Яныльское сельское поселение | B40: =плрег16!AR36*1000 -> 21300
A41: Ятмас-Дусаевское сельское поселение | B41: =плрег16!AR37*1000 -> 7700
A42: ВСЕГО | B42: =SUM(B12:B41) -> 500000
A45: Заместитель главы Района Р.А.Каримуллина

Sheet 11 (hidden)
B1: =дата!$A$2&дата!$C$13 -> Приложение №
B2: к решению Кукморского
B3: районного Совета
B4: =дата!$C$1 -> от 28 марта 2016 г. №
A5: Иные межбюджетные трансферты из бюджетов поселений на осуществление
A6: полномочий исполнительных комитетов поселений, входящих в состав Кукморского муниципального района Республики Татарстан, по распоряжению земельными участками, государственная собственность на которые не разграничена и которые расположены на территориях поселений, при наличии утвержденных правил землепользования и застройки поселений на 2016 год
A9: Наименование поселений | B9: Сумма, рублей
A12: Байлянгарское сельское поселение | B12: =плрег16!BN8*1000 -> 3200
A13: Березнякское сельское поселение | B13: =плрег16!BN9*1000 -> 2200
A14: Большекукморское сельское поселение | B14: =плрег16!BN10*1000 -> 8100
A15: Большесардекское сельское поселение | B15: =плрег16!BN11*1000 -> 10200
A16: Важашурское сельское поселение | B16: =плрег16!BN12*1000 -> 2900
A17: Каенсарское сельское поселение | B17: =плрег16!BN13*1000 -> 1100
A18: Каркаусское сельское поселение | B18: =плрег16!BN14*1000 -> 2700
A19: Кошкинское сельское поселение | B19: =плрег16!BN15*1000 -> 3000
A20: Лельвижское сельское поселение | B20: =плрег16!BN16*1000 -> 1600
A21: Лубянское сельское поселение | B21: =плрег16!BN17*1000 -> 4600
A22: Мамаширское сельское поселение | B22: =плрег16!BN18*1000 -> 2400
A23: Манзарасское сельское поселение | B23: =плрег16!BN19*1000 -> 5900
A24: Нижнеискубашское сельское поселение | B24: =плрег16!BN20*1000 -> 3000
A25: Нижнерусское сельское поселение | B25: =плрег16!BN21*1000 -> 2400
A26: Ныртинское сельское поселение | B26: =плрег16!BN22*1000 -> 2800
A27: Нырьинское сельское поселение | B27: =плрег16!BN23*1000 -> 4300
A28: Олуязское сельское поселение | B28: =плрег16!BN24*1000 -> 4400
A29: Ошторма-Юмьинское сельское поселение | B29: =плрег16!BN25*1000 -> 4300
A30: поселок городского типа Кукмор | B30: =плрег16!BN26*1000 -> 0
A31: Починок-Кучуковское сельское поселение | B31: =плрег16!BN27*1000 -> 3300
A32: Псякское сельское поселение | B32: =плрег16!BN28*1000 -> 2100
A33: Сардекбашское сельское поселение | B33: =плрег16!BN29*1000 -> 3700
A34: Село-Чуринское сельское поселение | B34: =плрег16!BN30*1000 -> 4000
A35: Среднекуморское сельское поселение | B35: =плрег16!BN31*1000 -> 3100
A36: Туембашское сельское поселение | B36: =плрег16!BN32*1000 -> 2100
A37: Уркушское сельское поселение | B37: =плрег16!BN33*1000 -> 1800
A38: Чарлинское сельское поселение | B38: =плрег16!BN34*1000 -> 2000
A39: Ядыгерьское сельское поселение | B39: =плрег16!BN35*1000 -> 3000
A40: Яныльское сельское поселение | B40: =плрег16!BN36*1000 -> 4300
A41: Ятмас-Дусаевское сельское поселение | B41: =плрег16!BN37*1000 -> 1500
A42: ВСЕГО | B42: =SUM(B12:B41) -> 100000
A45: Заместитель главы Района Р.А.Каримуллина

Sheet 12 (hidden)
C1: =дата!$A$2&дата!$C$14 -> Приложение №
C2: к решению Кукморского
C3: районного Совета
C4: =дата!$C$1 -> от 28 марта 2016 г. №
A6: Дотации бюджетам поселений
A7: на выравнивание бюджетной обеспеченности поселений на 2016 год
A10: Наименование поселений | B10: Сумма, рублей
B11: всего | C11: в том числе
C12: за счет субвенции из регионального фонда финансовой поддержки поселений | D12: за счет субсидий на выравнивание бюджетной обеспеченности поселений
A13: =плрег16!B8 -> Байлянгарское сельское поселение | B13: =SUM(C13:D13) -> 985600 | C13: =плрег16!T8*1000 -> 38400 | D13: =плрег16!U8*1000 -> 947200
A14: =плрег16!B9 -> Березнякское сельское поселение | B14: =SUM(C14:D14) -> 696500 | C14: =плрег16!T9*1000 -> 25800 | D14: =плрег16!U9*1000 -> 670700
A15: =плрег16!B10 -> Большекукморское сельское поселение | B15: 665700 | C15: =плрег16!T10*1000 -> 96800 | D15: =плрег16!U10*1000 -> 568900
A16: =плрег16!B11 -> Большесардекское сельское поселение | B16: 846100 | C16: =плрег16!T11*1000 -> 121500 | D16: =плрег16!U11*1000 -> 724600
A17: =плрег16!B12 -> Важашурское сельское поселение | B17: 904500 | C17: =плрег16!T12*1000 -> 33800 | D17: =плрег16!U12*1000 -> 870700
A18: =плрег16!B13 -> Каенсарское сельское поселение | B18: 810800 | C18: =плрег16!T13*1000 -> 12700 | D18: =плрег16!U13*1000 -> 798100
A19: =плрег16!B14 -> Каркаусское сельское поселение | B19: 992700 | C19: =плрег16!T14*1000 -> 31900 | D19: =плрег16!U14*1000 -> 960800
A20: =плрег16!B15 -> Кошкинское сельское поселение | B20: 636900 | C20: =плрег16!T15*1000 -> 36500 | D20: =плрег16!U15*1000 -> 600400
A21: =плрег16!B16 -> Лельвижское сельское поселение | B21: 660400 | C21: =плрег16!T16*1000 -> 18100 | D21: =плрег16!U16*1000 -> 642300
A22: =плрег16!B17 -> Лубянское сельское поселение | B22: 2418900 | C22: =плрег16!T17*1000 -> 55300 | D22: =плрег16!U17*1000 -> 2363600
A23: =плрег16!B18 -> Мамаширское сельское поселение | B23: 746800 | C23: =плрег16!T18*1000 -> 28500 | D23: =плрег16!U18*1000 -> 718300
A24: =плрег16!B19 -> Манзарасское сельское поселение | B24: 860900 | C24: =плрег16!T19*1000 -> 72200 | D24: =плрег16!U19*1000 -> 788700
A25: =плрег16!B20 -> Нижнеискубашское сельское поселение | B25: 769200 | C25: =плрег16!T20*1000 -> 36300 | D25: =плрег16!U20*1000 -> 732900
A26: =плрег16!B21 -> Нижнерусское сельское поселение | B26: 934700 | C26: =плрег16!T21*1000 -> 27500 | D26: =плрег16!U21*1000 -> 907200
A27: =плрег16!B22 -> Ныртинское сельское поселение | B27: 907400 | C27: =плрег16!T22*1000 -> 31900 | D27: =плрег16!U22*1000 -> 875500
A28: =плрег16!B23 -> Нырьинское сельское поселение | B28: 99700 | C28: =плрег16!T23*1000 -> 49300 | D28: =плрег16!U23*1000 -> 50400
A29: =плрег16!B24 -> Олуязское сельское поселение | B29: 913200 | C29: =плрег16!T24*1000 -> 52300 | D29: =плрег16!U24*1000 -> 860900
A30: =плрег16!B25 -> Ошторма-Юмьинское сельское поселение | B30: 708600 | C30: =плрег16!T25*1000 -> 51200 | D30: =плрег16!U25*1000 -> 657400
A31: =плрег16!B26 -> поселок городского типа Кукмор | B31: 610200 | C31: =плрег16!T26*1000 -> 610200 | D31: =плрег16!U26*1000 -> 0
A32: =плрег16!B27 -> Починок-Кучуковское сельское поселение | B32: 684500 | C32: =плрег16!T27*1000 -> 38200 | D32: =плрег16!U27*1000 -> 646300
A33: =плрег16!B28 -> Псякское сельское поселение | B33: 644600 | C33: =плрег16!T28*1000 -> 25000 | D33: =плрег16!U28*1000 -> 619600
A34: =плрег16!B29 -> Сардекбашское сельское поселение | B34: 768500 | C34: =плрег16!T29*1000 -> 43700 | D34: =плрег16!U29*1000 -> 724800
A35: =плрег16!B30 -> Село-Чуринское сельское поселение | B35: 1055800 | C35: =плрег16!T30*1000 -> 47500 | D35: =плрег16!U30*1000 -> 1008300
A36: =плрег16!B31 -> Среднекуморское сельское поселение | B36: 1013100 | C36: =плрег16!T31*1000 -> 36300 | D36: =плрег16!U31*1000 -> 976800
A37: =плрег16!B32 -> Туембашское сельское поселение | B37: 693200 | C37: =плрег16!T32*1000 -> 24200 | D37: =плрег16!U32*1000 -> 669000
A38: =плрег16!B33 -> Уркушское сельское поселение | B38: 848500 | C38: =плрег16!T33*1000 -> 21300 | D38: =плрег16!U33*1000 -> 827200
A39: =плрег16!B34 -> Чарлинское сельское поселение | B39: 852200 | C39: =плрег16!T34*1000 -> 22800 | D39: =плрег16!U34*1000 -> 829400
A40: =плрег16!B35 -> Ядыгерьское сельское поселение | B40: 631300 | C40: =плрег16!T35*1000 -> 35600 | D40: =плрег16!U35*1000 -> 595700
A41: =плрег16!B36 -> Яныльское сельское поселение | B41: 138300 | C41: =плрег16!T36*1000 -> 50400 | D41: =плрег16!U36*1000 -> 87900
A42: =плрег16!B37 -> Ятмас-Дусаевское сельское поселение | B42: 856100 | C42: =плрег16!T37*1000 -> 17700 | D42: =плрег16!U37*1000 -> 838400
A43: ВСЕГО | B43: =SUM(B13:B42) -> 24354900 | C43: =SUM(C13:C42) -> 1792900 | D43: =SUM(D13:D42) -> 22562000
A45: Глава Района С.Д.Димитриев

Sheet 13 (hidden)
B1: =дата!$A$2&дата!$C$15 -> Приложение №
B2: к решению Кукморского
B3: районного Совета
B4: =дата!$C$1 -> от 28 марта 2016 г. №
A6: Дотации на сбалансированность поселений в 2016 году
B8: (рублей)
A9: Наименование поселений | B9: Сумма
A12: =плрег16!B8 -> Байлянгарское сельское поселение | B12: =плрег16!V8*1000 -> 175400
A13: =плрег16!B9 -> Березнякское сельское поселение | B13: =плрег16!V9*1000 -> 132600
A14: =плрег16!B10 -> Большекукморское сельское поселение | B14: =плрег16!V10*1000 -> 256200
A15: =плрег16!B11 -> Большесардекское сельское поселение | B15: =плрег16!V11*1000 -> 174500
A16: =плрег16!B12 -> Важашурское сельское поселение | B16: =плрег16!V12*1000 -> 142900
A17: =плрег16!B13 -> Каенсарское сельское поселение | B17: =плрег16!V13*1000 -> 121300
A18: =плрег16!B14 -> Каркаусское сельское поселение | B18: =плрег16!V14*1000 -> 169800
A19: =плрег16!B15 -> Кошкинское сельское поселение | B19: =плрег16!V15*1000 -> 129900
A20: =плрег16!B16 -> Лельвижское сельское поселение | B20: =плрег16!V16*1000 -> 108900
A21: =плрег16!B17 -> Лубянское сельское поселение | B21: =плрег16!V17*1000 -> 357100
A22: =плрег16!B18 -> Мамаширское сельское поселение | B22: =плрег16!V18*1000 -> 120100
A23: =плрег16!B19 -> Манзарасское сельское поселение | B23: =плрег16!V19*1000 -> 165300
A24: =плрег16!B20 -> Нижнеискубашское сельское поселение | B24: =плрег16!V20*1000 -> 127700
A25: =плрег16!B21 -> Нижнерусское сельское поселение | B25: =плрег16!V21*1000 -> 143500
A26: =плрег16!B22 -> Ныртинское сельское поселение | B26: =плрег16!V22*1000 -> 151000
A27: =плрег16!B23 -> Нырьинское сельское поселение | B27: =плрег16!V23*1000 -> 122700
A28: =плрег16!B24 -> Олуязское сельское поселение | B28: =плрег16!V24*1000 -> 180500
A29: =плрег16!B25 -> Ошторма-Юмьинское сельское поселение | B29: =плрег16!V25*1000 -> 125300
A30: =плрег16!B26 -> поселок городского типа Кукмор | B30: =плрег16!V26*1000 -> 0
A31: =плрег16!B27 -> Починок-Кучуковское сельское поселение | B31: =плрег16!V27*1000 -> 127100
A32: =плрег16!B28 -> Псякское сельское поселение | B32: =плрег16!V28*1000 -> 125900
A33: =плрег16!B29 -> Сардекбашское сельское поселение | B33: =плрег16!V29*1000 -> 129400
A34: =плрег16!B30 -> Село-Чуринское сельское поселение | B34: =плрег16!V30*1000 -> 194000
A35: =плрег16!B31 -> Среднекуморское сельское поселение | B35: =плрег16!V31*1000 -> 153400
A36: =плрег16!B32 -> Туембашское сельское поселение | B36: =плрег16!V32*1000 -> 126600
A37: =плрег16!B33 -> Уркушское сельское поселение | B37: =плрег16!V33*1000 -> 129700
A38: =плрег16!B34 -> Чарлинское сельское поселение | B38: =плрег16!V34*1000 -> 147000
A39: =плрег16!B35 -> Ядыгерьское сельское поселение | B39: =плрег16!V35*1000 -> 125700
A40: =плрег16!B36 -> Яныльское сельское поселение | B40: =плрег16!V36*1000 -> 275200
A41: =плрег16!B37 -> Ятмас-Дусаевское сельское поселение | B41: =плрег16!V37*1000 -> 123100
A43: ВСЕГО | B43: =SUM(B12:B42) -> 4561800
A46: Глава Района С.Д.Димитриев

Sheet 14 (hidden)
B1: =дата!$A$2&дата!$C$16 -> Приложение №
B2: к решению Кукморского
B3: районного Совета
B4: =дата!$C$1 -> от 28 марта 2016 г. №
A6: Субвенция
A7: на выполнение федеральных полномочий по государственной регистрации
A8: актов гражданского состояния на 2016 год
A10: Наименование поселений | B10: количество записей за 4 квартал 2014 года и 3 квартала 2015 года | C10: Сумма, рублей
A13: =плрег16!B8 -> Байлянгарское сельское поселение | B13: 5 | C13: =плрег16!AJ8*1000 -> 2900
A14: =плрег16!B9 -> Березнякское сельское поселение | B14: 5 | C14: =плрег16!AJ9*1000 -> 2900
A15: =плрег16!B10 -> Большекукморское сельское поселение | B15: 4 | C15: =плрег16!AJ10*1000 -> 2300
A16: =плрег16!B11 -> Большесардекское сельское поселение | B16: 11 | C16: =плрег16!AJ11*1000 -> 6300
A17: =плрег16!B12 -> Важашурское сельское поселение | B17: 20 | C17: =плрег16!AJ12*1000 -> 11400
A18: =плрег16!B13 -> Каенсарское сельское поселение | B18: 1 | C18: =плрег16!AJ13*1000 -> 600
A19: =плрег16!B14 -> Каркаусское сельское поселение | B19: 5 | C19: =плрег16!AJ14*1000 -> 2900
A20: =плрег16!B15 -> Кошкинское сельское поселение | B20: 7 | C20: =плрег16!AJ15*1000 -> 4000
A21: =плрег16!B16 -> Лельвижское сельское поселение | B21: 2 | C21: =плрег16!AJ16*1000 -> 1100
A22: =плрег16!B17 -> Лубянское сельское поселение | B22: 6 | C22: =плрег16!AJ17*1000 -> 3400
A23: =плрег16!B18 -> Мамаширское сельское поселение | B23: 1 | C23: =плрег16!AJ18*1000 -> 600
A24: =плрег16!B19 -> Манзарасское сельское поселение | B24: 3 | C24: =плрег16!AJ19*1000 -> 1700
A25: =плрег16!B20 -> Нижнеискубашское сельское поселение | B25: 5 | C25: =плрег16!AJ20*1000 -> 2900
A26: =плрег16!B21 -> Нижнерусское сельское поселение | B26: 3 | C26: =плрег16!AJ21*1000 -> 1700
A27: =плрег16!B22 -> Ныртинское сельское поселение | B27: 6 | C27: =плрег16!AJ22*1000 -> 3400
A28: =плрег16!B23 -> Нырьинское сельское поселение | B28: 3 | C28: =плрег16!AJ23*1000 -> 1700
A29: =плрег16!B24 -> Олуязское сельское поселение | B29: 2 | C29: =плрег16!AJ24*1000 -> 1100
A30: =плрег16!B25 -> Ошторма-Юмьинское сельское поселение | B30: 17 | C30: =плрег16!AJ25*1000 -> 9700
A31: =плрег16!B26 -> поселок городского типа Кукмор | B31: 0 | C31: =плрег16!AJ26*1000 -> 0
A32: =плрег16!B27 -> Починок-Кучуковское сельское поселение | B32: 4 | C32: =плрег16!AJ27*1000 -> 2300
A33: =плрег16!B28 -> Псякское сельское поселение | B33: 0 | C33: =плрег16!AJ28*1000 -> 0
A34: =плрег16!B29 -> Сардекбашское сельское поселение | B34: 7 | C34: =плрег16!AJ29*1000 -> 4000
A35: =плрег16!B30 -> Село-Чуринское сельское поселение | B35: 6 | C35: =плрег16!AJ30*1000 -> 3400
A36: =плрег16!B31 -> Среднекуморское сельское поселение | B36: 8 | C36: =плрег16!AJ31*1000 -> 4600
A37: =плрег16!B32 -> Туембашское сельское поселение | B37: 0 | C37: =плрег16!AJ32*1000 -> 0
A38: =плрег16!B33 -> Уркушское сельское поселение | B38: 3 | C38: =плрег16!AJ33*1000 -> 1700
A39: =плрег16!B34 -> Чарлинское сельское поселение | B39: 2 | C39: =плрег16!AJ34*1000 -> 1100
A40: =плрег16!B35 -> Ядыгерьское сельское поселение | B40: 10 | C40: =плрег16!AJ35*1000 -> 5700
A41: =плрег16!B36 -> Яныльское сельское поселение | B41: 28 | C41: =плрег16!AJ36*1000 -> 16000
A42: =плрег16!B37 -> Ятмас-Дусаевское сельское поселение | B42: 1 | C42: =плрег16!AJ37*1000 -> 600
A43: ВСЕГО | B43: =SUM(B13:B42) -> 175 | C43: =SUM(C13:C42) -> 100000
A46: Глава Района С.Д.Димитриев

Sheet 15 (hidden)
C1: =дата!$A$2&дата!$C$17 -> Приложение №
C2: к решению Кукморского
C3: районного Совета
C4: =дата!$C$1 -> от 28 марта 2016 г. №
A6: Субвенция
A7: на осуществление полномочий по первичному воинскому учету на территориях,
A8: где отсутствуют военные комиссариаты на 2016 год
A10: Наименование муниципального образования, в котором отсутствует военный комиссариат | B10: Количество граждан, состоящих на воинском учете | C10: Количество освобожденных работников, требующихся для осуществления воинского учета | D10: сумма на год, рублей
A11: Байлянгарское сельское поселение | B11: 313 | C11: - | D11: =плрег16!AK8*1000 -> 86500 | E11: 40 | F11: =D11-E11 -> 86460
A12: Березнякское сельское поселение | B12: 175 | C12: - | D12: =плрег16!AK9*1000 -> 48400 | E12: 32 | F12: =D12-E12 -> 48368
A13: Большекукморское сельское поселение | B13: 693 | C13: 1 | D13: =плрег16!AK10*1000 -> 191600 | E13: 131 | F13: 191469 | G13: 10600
A14: Большесардекское сельское поселение | B14: 891 | C14: 1 | D14: =плрег16!AK11*1000 -> 246300 | E14: 170 | F14: 246130
A15: Важашурское сельское поселение | B15: 287 | C15: - | D15: =плрег16!AK12*1000 -> 79300 | E15: 44 | F15: 79256
A16: Каенсарское сельское поселение | B16: 108 | C16: - | D16: =плрег16!AK13*1000 -> 29900 | E16: 27 | F16: 29873
A17: Каркаусское сельское поселение | B17: 208 | C17: - | D17: =плрег16!AK14*1000 -> 57500 | E17: 36 | F17: 57464
A18: Кошкинское сельское поселение | B18: 300 | C18: - | D18: =плрег16!AK15*1000 -> 82900 | E18: 39 | F18: 82861
A19: Лельвижское сельское поселение | B19: 158 | C19: - | D19: =плрег16!AK16*1000 -> 43700 | E19: 31 | F19: 43669
A20: Лубянское сельское поселение | B20: 148 | C20: - | D20: =плрег16!AK17*1000 -> 40900 | E20: 38 | F20: 40862
A21: Мамаширское сельское поселение | B21: 209 | C21: - | D21: =плрег16!AK18*1000 -> 57800 | E21: 34 | F21: 57766
A22: Манзарасское сельское поселение | B22: 457 | C22: - | D22: =плрег16!AK19*1000 -> 126300 | E22: 56 | F22: 126244
A23: Нижнеискубашское сельское поселение | B23: 239 | C23: - | D23: =плрег16!AK20*1000 -> 66100 | E23: 40 | F23: 66060
A24: Нижнерусское сельское поселение | B24: 210 | C24: - | D24: =плрег16!AK21*1000 -> 58100 | E24: 37 | F24: 58063
A25: Ныртинское сельское поселение | B25: 225 | C25: - | D25: =плрег16!AK22*1000 -> 62200 | E25: 43 | F25: 62157
A26: Нырьинское сельское поселение | B26: 387 | C26: - | D26: =плрег16!AK23*1000 -> 107000 | E26: 47 | F26: 106953
A27: Олуязское сельское поселение | B27: 346 | C27: - | D27: =плрег16!AK24*1000 -> 95600 | E27: 47 | F27: 95553
A28: Ошторма-Юмьинское сельское поселение | B28: 434 | C28: - | D28: =плрег16!AK25*1000 -> 120000 | E28: 50 | F28: 119950
B29: 0 | D29: =плрег16!AK26*1000 -> 0
A30: Починок-Кучуковское сельское поселение | B30: 302 | C30: - | D30: =плрег16!AK27*1000 -> 83500 | E30: 40 | F30: 83460
A31: Псякское сельское поселение | B31: 159 | C31: - | D31: =плрег16!AK28*1000 -> 44000 | E31: 34 | F31: 43966
A32: Сардекбашское сельское поселение | B32: 349 | C32: - | D32: =плрег16!AK29*1000 -> 96500 | E32: 44 | F32: 96456
A33: Село-Чуринское сельское поселение | B33: 342 | C33: - | D33: =плрег16!AK30*1000 -> 94500 | E33: 49 | F33: 94451
A34: Среднекуморское сельское поселение | B34: 305 | C34: - | D34: =плрег16!AK31*1000 -> 84300 | E34: 45 | F34: 84255
A35: Туембашское сельское поселение | B35: 151 | C35: - | D35: =плрег16!AK32*1000 -> 41700 | E35: 33 | F35: 41667
A36: Уркушское сельское поселение | B36: 160 | C36: - | D36: =плрег16!AK33*1000 -> 44200 | E36: 31 | F36: 44169
A37: Чарлинское сельское поселение | B37: 192 | C37: - | D37: =плрег16!AK34*1000 -> 53100 | E37: 34 | F37: 53066
A38: Ядыгерьское сельское поселение | B38: 273 | C38: - | D38: =плрег16!AK35*1000 -> 75500 | E38: 39 | F38: 75461
A39: Яныльское сельское поселение | B39: 372 | C39: - | D39: =плрег16!AK36*1000 -> 102800 | E39: 43 | F39: 102757
A40: Ятмас-Дусаевское сельское поселение | B40: 118 | C40: - | D40: =плрег16!AK37*1000 -> 32600 | E40: 32 | F40: 32568
A41: ИТОГО | B41: =SUM(B11:B40) -> 8511 | C41: =SUM(C11:C40) -> 2 | D41: =SUM(D11:D40) -> 2352800 | E41: =SUM(E11:E40) -> 1366 | F41: 2351434
A44: Глава Района С.Д.Димитриев

Sheet 16
B1: =дата!$A$2&дата!$C$18 -> Приложение №5
B2: к решению Совета Кукморского
B3: муниципального района
B4: =дата!C1 -> от 28 марта 2016 г. №
A6: Межбюджетные трансферты, получаемые
A7: из бюджета Республики Татарстан и бюджетов поселений в 2016 году
C8: (рублей)
A9: Наименование | B9: код дохода | C9: сумма
B11: квд
A13: БЕЗВОЗМЕЗДНЫЕ ПОСТУПЛЕНИЯ | B13: 2.00.00000.00.0000.000 | C13: 752025366.7
A14: БЕЗВОЗМЕЗДНЫЕ ПОСТУПЛЕНИЯ ОТ ДРУГИХ БЮДЖЕТОВ БЮДЖЕТНОЙ СИСТЕМЫ РОССИЙСКОЙ ФЕДЕРАЦИИ | B14: 2.02.00000.00.0000.000 | C14: 752025366.7
A15: Дотации бюджетам муниципальных районов на выравнивание бюджетной обеспеченности | B15: 2.02.01001.05.0000.151 | C15: 69862100 | D15: =LEFT(B15,7) -> 2.02.01
A16: Субсидии бюджетам муниципальных районов на обеспечение мероприятий по переселению граждан из аварийного жилищного фонда за счет средств, поступивших от государственной корпорации Фонд содействия реформированию жилищно-коммунального хозяйства | B16: 2.02.02088.05.0000.151 | C16: 41301035.15 | D16: =LEFT(B16,7) -> 2.02.02
A17: Прочие субсидии бюджетам муниципальных районов | B17: 2.02.02999.05.0000.151 | C17: 267248082.5 | D17: =LEFT(B17,7) -> 2.02.02
A18: Субвенции бюджетам муниципальных районов на государственную регистрацию актов гражданского состояния | B18: 2.02.03003.05.0000.151 | C18: 1654000 | D18: 2.02.03
A19: Субвенции бюджетам муниципальных районов на составление (изменение) списков кандидатов в присяжные заседатели федеральных судов общей юрисдикции в Российской Федерации | B19: 2.02.03007.05.0000.151 | C19: 28700 | D19: 2.02.03
A20: Субвенции бюджетам муниципальных районов на осуществление первичного воинского учета на территориях, где отсутствуют военные комиссариаты | B20: 2.02.03015.05.0000.151 | C20: 2352800 | D20: 2.02.03
A21: Субвенции бюджетам муниципальных районов на выполнение передаваемых полномочий субъектов Российской Федерации | B21: 2.02.03024.05.0000.151 | C21: 347978849 | D21: 2.02.03
A22: Межбюджетные трансферты, передаваемые бюджетам муниципальных районов для компенсации дополнительных расходов, возникших в результате решений, принятых органами власти другого уровня | B22: 2.02.04012.05.0000.151 | C22: 15987300 | D22: 2.02.04
A23: Межбюджетные трансферты, передаваемые бюджетам муниципальных районов из бюджетов поселений на осуществление части полномочий по решению вопросов местного значения в соответствии с заключенными соглашениями | B23: 2.02.04014.05.0000.151 | C23: 4863000 | D23: 2.02.04
A24: Межбюджетные трансферты, передаваемые бюджетам муниципальных районов на комплектование книжных фондов библиотек муниципальных образований | B24: 2.02.04025.05.0000.151 | C24: 16900 | D24: 2.02.04
A25: Прочие межбюджетные трансферты, передаваемые бюджетам муниципальных районов | B25: 2.02.04999.05.0000.151 | C25: 732600 | D25: 2.02.04
A26: ИТОГО | C26: =C13 -> 752025366.7
A29: Глава Района С.Д.Димитриев

Sheet плрег16 (hidden)
A1: =BQ10 -> 0 | B1: допкод МФ РТ | D1: План регулирования на | G1: 2016 | H1: год | V1: =Y40-V2 -> -2100 | X1: 13220 | Y1: 13110 | Z1: 13120 | AA1: 103395 | AB1: 103310 | AD1: 103350 | AE1: 103355 | AF1: 103360 | AH1: 103335 | AI1: 103340 | AL1: 103345 | AM1: 103345 | AN1: 103396 | AO1: 103397 | DX1: Субвенция по соглашениям (Культура)
B2: допкод МР | U2: =SUM(T38:U38) -> 24354.9 | V2: =W38-T38 -> 27123.8 | X2: 00934 | Y2: 00951 | Z2: 00954 | AA2: 00931 | AB2: 00936 | AD2: 00937 | AE2: 00946 | AF2: 00940 | AG2: 00947 | AH2: 00938 | AI2: 00939 | AJ2: 00920 | AK2: 00926 | AL2: 00943 | AM2: 00943 | AN2: 00945 | AO2: 00944 | AP2: 00942 | AQ2: 00925
B3: № прил Закона РТ | X3: №11 | Y3: №12 | Z3: №13 | AA3: №14 | AB3: №15 | AC3: №16 | AD3: №19 | AE3: №20 | AF3: №21 | AG3: №26(1) | AH3: №21 | AI3: №17 | AJ3: №27 | AK3: №28 | AL3: №18 | AM3: №18 | AN3: №22 | AO3: №23 | AP3: №27 | CI3: 250 | GD3: 310
A4: Код администратора | B4: Наименование поселений | C4: население на 01.01.2015 | T4: Районный фонд финансовой поддержки поселений | X4: Дотации бюджетам МР | Y4: Субсидии из РФС соцрасходов | Z4: Субсидии(соцрасходы Образования) | AA4: Субвенция исходя из количества жителей | AB4: Субвенции школам | AC4: Субвенции детсадам | AD4: Субвенции по комиисии несоверш | AE4: Субвенции по адм.практике | AF4: Субвенции молодежная политика | AG4: Субвенции ветстанции | AH4: Иные трансферты на книжный фонд | AI4: Субвенции Образованию | AJ4: Субвенции ЗАГСам | AK4: Субвенции по первичному воинскому учету | AL4: Субвенции по составлению (изменению) списков кандидатов в присяжные заседатели федеральных судов | AM4: Субвенции ИМО образовательных учрежд | AN4: Субвенции архиву | AO4: Субвенции на опеку | AP4: Субвенции на проведение протовоэпид мероприятий | AQ4: Субвенция протоколы, ведение регистра, | AR4: Субвенции из вышестоящих бюджетов (дорфонд) | AS4: Субвенции из нижстоящ.бюджетов (ксп+зем+кржф) | AT4: ВСЕГО | AU4: Дефицит | AV4: Общегосударственные вопросы | AW4: ЦБ | AX4: ЗАГС | AY4: Полномочия | AZ4: Национальная оборона | BA4: Национальная безопасность | BB4: Национальная экономика | BC4: ЖКХ | BD4: Охрана окружающей среды | BE4: Образование | BF4: Молодежная политика | BG4: Культура | BH4: Здравоохранение | BI4: Социальная политика | BJ4: Физическая культура и спорт | BK4: Обслуживание муниципального долга | BL4: МТ (по соглашению-ксп) | BM4: МТ (по соглашению-ЖКХ) | BN4: МТ (здравоохранение) | BO4: МТ (по соглашению-ЖКХ) | BP4: Всего расходов | CB4: РАСХОДЫ НА 1 ЖИТЕЛЯ ПОСЕЛЕНИЯ,руб | CI4: жкх 2012год | CJ4: жкх 2009год1.07 | CK4: жкх 2008год-план | CL4: разница | CM4: разница в расчете на 1 жителя,руб | DL4: 213+211 | FQ4: проверка | FV4: земельный было | FW4: плюс бюдж бюджетных учреждений Кукморского муниципального района | FX4: стало | GC4: РАСХОДЫ ЖКХ НА 1 ЖИТЕЛЯ ПОСЕЛЕНИЯ,руб
D5: НДФЛ | E5: имущество фл | F5: земельный налог | G5: ед.налог на вм.доход | H5: налог взим по упрощ системена вм.доход | I5: патент | J5: сельхозналог | K5: госпошлина (суды) | L5: Акциз, налог на игорный бизнес | M5: аренда | O5: продажа земли | P5: доход от платных услуг | Q5: штрафы | R5: негативное воздействие | S5: ВСЕГО | T5: дотация исходя из количества жителей | U5: дотация по обеспеченности | V5: дотация для сбалансированности | W5: итого | AT5: доходов | BQ5: район | CA5: 809 | CB5: всего | CC5: в том числе | CN5: Главы образований 100 | CO5: Функционирование законодательных органов100 | CP5: Функционирование местных администраций100 | CQ5: Функционирование местных администраций200 | CR5: Функционирование местных администраций800 | CS5: ЗАГС100 | CT5: ЗАГС200 | CU5: Централизованная бухгалтерия100 | CV5: Централизованная бухгалтерия200 | CW5: Централизованная бухгалтерия800 | CX5: Военкомат100 | CY5: Военкомат200 | CZ5: Капремонт жилфонда200 | DA5: Уличное освещение200 | DB5: Содержание автомобильных дорог200 | DC5: Озеленение200 | DD5: Прочие мероприятия по благоустройству200 | DE5: Водонапорные башни200 | DF5: Субвенция по соглашениям (КРЖФ)500 | DG5: СДК,клубы200 | DH5: Субвенция по соглашениям (КСП)500 | DI5: Субвенция по соглашениям (ПИЗО)500 | DJ5: ИТОГО | DL5: Главы образований | DM5: Функционирование законодательных органов | DN5: Функционирование местных администраций | DO5: Централизованная бухгалтерия | DP5: Капремонт жилфонда | DQ5: Уличное освещение | DR5: Содержание автомобильных дорог | DS5: Прочие мероприятия по благоустройству | DT5: Прочие мероприятия по благоустройству | DU5: Субвенция по соглашениям (КРЖФ) | DV5: Субвенция по соглашениям (Культура) | DW5: Субвенция межмуниципального характера на здравоохранение | DZ5: обеспеченность | EA5: сбалансированность | EB5: итого | EC5: 50683,1 (00951) субсидии | ED5: обес (местный) 00952 | EE5: обес (местный) 00953 | EF5: Налог | EG5: субвнция на здрав | EH5: субвнция на здрав (00951) | EI5: субвнция на здрав (00952) | EJ5: субвнция на здрав (00953) | EK5: субвнция на здрав (Налог) | EL5: остаток после субв (00951) | EM5: остаток после субв (00952) | EN5: остаток после субв (00953) | EO5: остаток после субв (Налог) | EP5: субвенция на культ | EQ5: субвенция на культ (00951) | ER5: субвенция на культ (00952) | ES5: субвенция на культ (00953) | ET5: субвенция на культ (Налог) | EU5: остаток после культ (00951) | EV5: остаток после культ (00952) | EW5: остаток после культ (00953) | EX5: остаток после культ (Налог) | EY5: зп+есн | EZ5: зп+есн (00951) | FA5: зп+есн (00952) | FB5: зп+есн (00953) | FC5: зп+есн (Налог) | FD5: остаток после зп+есн (00951) | FE5: остаток после зп+есн (00952) | FF5: остаток после зп+есн (00953) | FG5: остаток после зп+есн (Налог) | FH5: улосвещ | FI5: улосвещ (00951) | FJ5: улосвещ (00952) | FK5: улосвещ (00953) | FL5: улосвещ (Налог) | FM5: остаток после улосвещ (00951) | FN5: остаток после улосвещ (00952) | FO5: остаток после улосвещ (00953) | FP5: остаток после улосвещ (Налог) | FQ5: остаток (00951) | FR5: остаток (00952) | FS5: остаток (00953) | FT5: остаток (Налог) | GC5: всего | GV5: НДФЛ | GX5: аппарат управл.
M6: земли | N6: имущества | BR6: доля | BS6: исполкомы | BT6: код администартора | BU6: совет | BV6: 931 | BW6: 809 | BY6: 803 | CA6: разница 600 | CC6: управление | CD6: жкх | CE6: образование | CF6: культура | CG6: здравоохранение | CN6: 1 | CO6: 2 | CP6: 6 | CQ6: 7 | CR6: 11 | CS6: 38 | CT6: 39 | CU6: 42 | CV6: 43 | CW6: 45 | CX6: 49 | CY6: 50 | CZ6: 57 | DA6: 60 | DB6: 61 | DC6: 62 | DD6: 64 | DE6: 65 | DF6: 66 | DG6: 115 | DH6: 177 | DI6: 174 | DL6: 1 | DM6: 2 | DN6: 4 | DO6: 11 | DP6: 21 | DQ6: 24 | DR6: 25 | DS6: 26 | DT6: 28 | DU6: 58 | DV6: 59 | DW6: 61 | DY6: 00931 | DZ6: 00951+00952 | EA6: 00953 | GD6: жкх | GE6: кржф | GF6: дороги | GG6: водители | GH6: дополнительно в счет отриц трансфертов | GI6: дорфонд | GJ6: башни | GY6: ни | GZ6: экол | HA6: МУ "Централизованная бухгалтерия" | HB6: жкх
AV7: 01 | AW7: 01 | AX7: 01 | AY7: 01 | AZ7: 02 | BA7: 03 | BB7: 04 | BC7: 05 | BD7: 06 | BE7: 07 | BF7: 07 | BG7: 08 | BH7: 09 | BI7: 10 | BJ7: 11 | BK7: 13 | BL7: 14 | BM7: 14 | BN7: 14 | BO7: 14 | CI7: 1 | CJ7: 2 | CK7: 3 | CL7: 4=3-2
A8: 1 | B8: Байлянгарское сельское поселение | C8: 1101 | D8: 68 | E8: 132.7 | F8: 235 | J8: 0 | N8: 13 | P8: =135 -> 135 | S8: =SUM(D8:R8) -> 583.7 | T8: 38.4 | U8: 947.2 | V8: 175.4 | W8: =SUM(T8:V8) -> 1161 | AJ8: 2.9 | AK8: 86.5 | AR8: 16 | AT8: =SUM(S8:AS8)-W8 -> 1850.1 | AU8: 0 | AV8: 728.5 | AW8: 394 | AX8: 2.9 | AY8: 0 | AZ8: =AK8 -> 86.5 | BA8: 0 | BC8: 492 | BG8: 135 | BH8: 0 | BI8: 0 | BJ8: 0 | BK8: 0 | BL8: 8 | BN8: 3.2 | BP8: =SUM(AV8:BO8) -> 1850.1 | BQ8: =AT40 -> 1001612.47 | BR8: =C8/$C$38 -> 0.02144150811 | BS8: 1 | BT8: 621 | BU8: 2 | BV8: =U8+V8 -> 1122.6 | BW8: =ROUND(C8*0.28,0) -> 308 | BX8: 167 | BY8: 20 | BZ8: =(BC8-P8)*1000/C8 -> 324.2506812 | CA8: =BW8-BX8-BY8 -> 121 | CB8: =BP8/$C8*1000 -> 1680.381471 | CC8: =AV8/$C8*1000 -> 661.671208 | CD8: =(BC8-P8)/$C8*1000 -> 324.2506812 | CE8: =BE8/$C8*1000 -> 0 | CF8: =BG8/$C8*1000 -> 122.6158038 | CG8: =BN8/$C8*1000 -> 2.906448683 | CH8: =ROUND(C8/($C$38-$C$26)*6360,0) -> 207 | CI8: =ROUND(C8*$CI$3/1000,0) -> 275 | CJ8: =ROUND(C8*0.2,0) -> 220 | CK8: 208 | CL8: =CK8-CJ8 -> -12 | CM8: =CL8/C8*1000 -> -10.89918256 | CN8: 417 | CO8: 0 | CP8: 264 | CQ8: 11 | CR8: 36.5 | CS8: 0 | CT8: 2.9 | CU8: 158 | CV8: 231.4 | CW8: 4.6 | CX8: 83.5 | CY8: 3 | CZ8: 0 | DA8: 167 | DB8: 0 | DC8: 0 | DD8: 190 | DE8: 135 | DF8: 0 | DG8: 135 | DH8: 8 | DI8: 3.2 | DJ8: =SUM(CN8:DI8) -> 1850.1 | DL8: 0 | DM8: 0 | DN8: 0 | DO8: 0 | DP8: 0 | DQ8: 0 | DR8: 0 | DS8: 0 | DT8: 0 | DX8: =SUM(DL8:DW8) ->  | DY8: =T8 -> 38.4 | DZ8: 947.2 | EA8: 175.4 | EB8: =SUM(DY8:EA8) -> 1161 | EC8: 1596.7 | ED8: =DZ8-EC8 -> -649.5 | EE8: =EA8 -> 175.4 | EF8: =S8 -> 583.7 | EG8: =BN8 -> 3.2 | EH8: =EG8 -> 3.2 | EI8: =EG8-EH8 -> 0 | EL8: =EC8-EH8 -> 1593.5 | EM8: =ED8-EI8 -> -649.5 | EN8: =EE8-EJ8 -> 175.4 | EO8: =EF8-EK8 -> 583.7 | EP8: =BL8 -> 8 | EQ8: =EL8 -> 1593.5 | ER8: 236 | ET8: =EP8-EQ8-ER8-ES8 -> -1821.5 | EU8: =EL8-EQ8 -> 0 | EV8: =EM8-ER8 -> -885.5 | EW8: =EN8-ES8 -> 175.4 | EX8: =EO8-ET8 -> 2405.2 | EY8: =DL8+DM8+DN8+DO8 -> 0 | FA8: =EV8 -> -885.5 | FB8: =334.4-190.7 -> 143.7 | FC8: =EY8-EZ8-FA8-FB8 -> 741.8 | FD8: =EU8-EZ8 -> 0 | FE8: =EV8-FA8 -> 0 | FF8: =EW8-FB8 -> 31.7 | FG8: =EX8-FC8 -> 1663.4 | FH8: =DQ8 -> 0 | FK8: 190.7 | FL8: =FH8-FI8-FJ8-FK8 -> -190.7 | FM8: =FD8-FI8 -> 0 | FN8: =FE8-FJ8 -> 0 | FO8: =FF8-FK8 -> -159 | FP8: =FG8-FL8 -> 1854.1 | FQ8: =EC8-EH8-EQ8-EZ8-FI8-FM8 -> 0 | FR8: =ED8-EI8-ER8-FA8-FJ8-FN8 -> 0 | FS8: =EE8-EJ8-ES8-FB8-FK8-FO8 -> 0 | FT8: =EF8-EK8-ET8-FC8-FL8-FP8 -> 0 | FV8: 140 | FW8: 39 | FX8: =SUM(FV8:FW8) -> 179 | FY8: =AT8-BP8 -> 0 | FZ8: =BC8/C8*1000 -> 446.866485 | GC8: =SUM(GD8:GJ8) -> 492 | GD8: =ROUND(C8*$GD$3/1000,0) -> 341 | GI8: =AR8 -> 16 | GJ8: =P8 -> 135 | GK8: =BC8-GC8 -> 0 | GL8: =GC8+GK8 -> 492 | GN8: =S8/C8 -> 0.5301544051 | GO8: =(BP8-AJ8-AK8)/C8 -> 1.599182561 | GQ8: =GN8/0.63 -> 0.8415149287 | GR8: =GO8/1.3 -> 1.230140432 | GT8: =SUM(M8:P8) -> 148 | GV8: 34 | GW8: 892529.57 | GX8: =CN8+CO8+CP8+CQ8+CR8 -> 728.5 | HA8: =CU8+CV8+CW8 -> 394
A9: 2 | B9: Березнякское сельское поселение | C9: 740 | D9: 67 | E9: 63.5 | F9: 285 | J9: 0 | N9: 18.8 | P9: =30 -> 30 | S9: 464.3 | T9: 25.8 | U9: 670.7 | V9: 132.6 | W9: 829.1 | AJ9: 2.9 | AK9: 48.4 | AR9: 10.9 | AT9: 1355.6 | AU9: 3.126388037e-13 | AV9: 765.7 | AW9: 160.4 | AX9: 2.9 | AY9: 0 | AZ9: =AK9 -> 48.4 | BA9: 0 | BC9: 369.9 | BG9: 1.1 | BH9: 0 | BI9: 0 | BJ9: 0 | BK9: 0 | BL9: 5 | BN9: 2.2 | BP9: 1355.6 | BQ9: =BP40 -> 1001612.47 | BR9: =C9/$C$38 -> 0.0144111862 | BS9: 13 | BT9: 622 | BU9: 3 | BV9: =U9+V9 -> 803.3 | BW9: =ROUND(C9*0.28,0) -> 207 | BX9: 137 | BY9: 32 | BZ9: 459.3243243 | CA9: =BW9-BX9-BY9 -> 38 | CB9: =BP9/C9*1000 -> 1831.891892 | CC9: =AV9/$C9*1000 -> 1034.72973 | CD9: 459.3243243 | CE9: 0 | CF9: =BG9/$C9*1000 -> 1.486486486 | CG9: =BN9/$C9*1000 -> 2.972972973 | CH9: =ROUND(C9/($C$38-$C$26)*6360,0) -> 139 | CI9: 185 | CJ9: 148 | CK9: 148 | CL9: =CK9-CJ9 -> 0 | CM9: 0 | CN9: 444 | CO9: 0 | CP9: 259 | CQ9: 11 | CR9: 51.7 | CS9: 0 | CT9: 2.9 | CU9: 0 | CV9: 150.8 | CW9: 9.6 | CX9: 46.4 | CY9: 2 | CZ9: 0 | DA9: 137 | DB9: 0 | DC9: 0 | DD9: 202.9 | DE9: 30 | DF9: 0 | DG9: 1.1 | DH9: 5 | DI9: 2.2 | DJ9: 1355.6 | DL9: 0 | DM9: 0 | DN9: 0 | DO9: 0 | DP9: 0 | DQ9: 0 | DR9: 0 | DS9: 0 | DT9: 0 | DY9: 25.8 | DZ9: 670.7 | EA9: 132.6 | EB9: =SUM(DY9:EA9) -> 829.1 | EC9: 1289.5 | ED9: -618.8 | EE9: =EA9 -> 132.6 | EF9: 464.3 | EG9: 2.2 | EH9: =EG9 -> 2.2 | EI9: 0 | EL9: =EC9-EH9 -> 1287.3 | EM9: -618.8 | EN9: 132.6 | EO9: 464.3 | EP9: 5 | EQ9: =EL9 -> 1287.3 | ER9: 88.9 | ET9: =EP9-EQ9-ER9-ES9 -> -1371.2 | EU9: =EL9-EQ9 -> 0 | EV9: -707.7 | EW9: 132.6 | EX9: 1835.5 | EY9: 0 | FA9: =EV9 -> -707.7 | FB9: =182.8-68.3 -> 114.5 | FC9: =EY9-EZ9-FA9-FB9 -> 593.2 | FD9: =EU9-EZ9 -> 0 | FE9: 0 | FF9: 18.1 | FG9: 1242.3 | FH9: =DQ9 -> 0 | FK9: 68.3 | FL9: =FH9-FI9-FJ9-FK9 -> -68.3 | FM9: =FD9-FI9 -> 0 | FN9: 0 | FO9: -50.2 | FP9: 1310.6 | FQ9: =EC9-EH9-EQ9-EZ9-FI9-FM9 -> 0 | FR9: 0 | FS9: 0 | FT9: 0 | FV9: 120 | FW9: 57 | FX9: =SUM(FV9:FW9) -> 177 | FY9: 0 | FZ9: 499.8648649 | GC9: =SUM(GD9:GJ9) -> 369.9 | GD9: 229 | GG9: 100 | GI9: 10.9 | GJ9: 30 | GK9: 0 | GL9: =GC9+GK9 -> 369.9 | GN9: 0.6274324324 | GO9: 1.762567568 | GQ9: =GN9/0.63 -> 0.9959244959 | GR9: =GO9/1.3 -> 1.355821206 | GT9: 48.8 | GV9: 33 | GW9: 892529.57 | GX9: =CN9+CO9+CP9+CQ9+CR9 -> 765.7 | HA9: =CU9+CV9+CW9 -> 160.4
A10: 3 | B10: Большекукморское сельское поселение | C10: 2773 | D10: 154 | E10: 473.9 | F10: 1010 | J10: 7 | N10: 0 | P10: 300 | S10: 1944.9 | T10: 96.8 | U10: 568.9 | V10: 256.2 | W10: 921.9 | AJ10: 2.3 | AK10: 191.6 | AR10: 40.5 | AT10: 3101.2 | AU10: 5.115907697e-13 | AV10: 864.1 | AW10: 347.6 | AX10: 2.3 | AY10: 0 | AZ10: 191.6 | BA10: 0 | BC10: 1495.9 | BG10: 176.6 | BH10: 0 | BI10: 0 | BJ10: 0 | BK10: 0 | BL10: 15 | BN10: 8.1 | BP10: 3101.2 | BQ10: =BQ8-BQ9 -> 0 | BR10: 0.05400299908 | BS10: 12 | BT10: 623 | BU10: 4 | BV10: 825.1 | BW10: 776 | BX10: 521.4 | BY10: 0 | BZ10: 431.2657771 | CA10: 254.6 | CB10: 1118.355572 | CC10: 311.6119726 | CD10: 431.2657771 | CE10: 0 | CF10: 63.68553913 | CG10: 2.921024162 | CH10: =ROUND(C10/($C$38-$C$26)*6360,0)-2 -> 519 | CI10: 693 | CJ10: 555 | CK10: 499 | CL10: -56 | CM10: -20.19473494 | CN10: 444 | CO10: 0 | CP10: 292 | CQ10: 11 | CR10: 117.1 | CS10: 0 | CT10: 2.3 | CU10: 0 | CV10: 343.8 | CW10: 3.8 | CX10: 145.7 | CY10: 45.9 | CZ10: 0 | DA10: 521.4 | DB10: 0 | DC10: 0 | DD10: 674.5 | DE10: 300 | DF10: 0 | DG10: 176.6 | DH10: 15 | DI10: 8.1 | DJ10: 3101.2 | DL10: 0 | DM10: 0 | DN10: 0 | DO10: 0 | DP10: 0 | DQ10: 0 | DR10: 0 | DS10: 0 | DT10: 0 | DY10: 96.8 | DZ10: 568.9 | EA10: 256.2 | EB10: 921.9 | EC10: 1670.3 | ED10: -1101.4 | EE10: 256.2 | EF10: 1944.9 | EG10: 8.1 | EH10: 1670.3 | EI10: -1662.2 | EL10: 0 | EM10: 560.8 | EN10: 256.2 | EO10: 1944.9 | EP10: 15 | EQ10: =EL10 -> 0 | ER10: =901-505.1 -> 395.9 | ES10: 505.1 | ET10: -886 | EU10: 0 | EV10: 164.9 | EW10: -248.9 | EX10: 2830.9 | EY10: 0 | FA10: 164.9 | FB10: =845.7-183.7 -> 662 | FC10: -826.9 | FD10: 0 | FE10: 0 | FF10: -910.9 | FG10: 3657.8 | FH10: 0 | FK10: 183.7 | FL10: -183.7 | FM10: 0 | FN10: 0 | FO10: -1094.6 | FP10: 3841.5 | FQ10: 0 | FR10: 0 | FS10: 0 | FT10: 0 | FV10: 145 | FW10: 80 | FX10: 225 | FY10: 0 | FZ10: 539.4518572 | GC10: 1217.9 | GD10: 860 | GH10: 17.4 | GI10: 40.5 | GJ10: 300 | GK10: 278 | GL10: 1495.9 | GN10: 0.701370357 | GO10: 1.048431302 | GQ10: 1.113286281 | GR10: 0.8064856168 | GT10: 300 | GV10: 76 | GX10: 864.1 | HA10: 347.6
A11: 4 | B11: Большесардекское сельское поселение | C11: 3481 | D11: 224 | E11: 290.2 | F11: 625 | J11: 15 | N11: 12.2 | P11: 200 | S11: 1366.4 | T11: 121.5 | U11: 724.6 | V11: 174.5 | W11: 1020.6 | AJ11: 6.3 | AK11: 246.3 | AR11: 50.9 | AT11: 2690.5 | AU11: 5.684341886e-13 | AV11: 769.4 | AW11: 300.6 | AX11: 6.3 | AY11: 0 | AZ11: 246.3 | BA11: 0 | BC11: 1329.9 | BG11: 8.8 | BH11: 0 | BI11: 0 | BJ11: 0 | BK11: 0 | BL11: 19 | BN11: 10.2 | BP11: 2690.5 | BR11: 0.06779099885 | BS11: 5 | BT11: 624 | BU11: 6 | BV11: 899.1 | BW11: 975 | BX11: 645 | BY11: 35 | BZ11: 324.5906349 | CA11: 295 | CB11: 772.9100833 | CC11: 221.0284401 | CD11: 324.5906349 | CE11: 0 | CF11: 2.528009193 | CG11: 2.930192473 | CH11: 654 | CI11: 870 | CJ11: 696 | CK11: 664 | CL11: -32 | CM11: -9.192760701 | CN11: 444 | CO11: 0 | CP11: 301 | CQ11: 11 | CR11: 13.4 | CS11: 0 | CT11: 6.3 | CU11: 0 | CV11: 288.8 | CW11: 11.8 | CX11: 157.7 | CY11: 88.6 | CZ11: 0 | DA11: 645 | DB11: 0 | DC11: 0 | DD11: 484.9 | DE11: 200 | DF11: 0 | DG11: 8.8 | DH11: 19 | DI11: 10.2 | DJ11: 2690.5 | DL11: 0 | DM11: 0 | DN11: 0 | DO11: 0 | DP11: 0 | DQ11: 0 | DR11: 0 | DS11: 0 | DT11: 0 | DY11: 121.5 | DZ11: 724.6 | EA11: 174.5 | EB11: 1020.6 | EC11: 3121.4 | ED11: -2396.8 | EE11: 174.5 | EF11: 1366.4 | EG11: 10.2 | EH11: =EG11 -> 10.2 | EI11: 0 | EL11: 3111.2 | EM11: -2396.8 | EN11: 174.5 | EO11: 1366.4 | EP11: 19 | EQ11: =EL11 -> 3111.2 | ER11: =1668.4-471.6 -> 1196.8 | ES11: 471.6 | ET11: -4760.6 | EU11: 0 | EV11: -3593.6 | EW11: -297.1 | EX11: 6127 | EY11: 0 | FA11: -3593.6 | FB11: =1113.1-327.1 -> 786 | FC11: 2807.6 | FD11: 0 | FE11: 0 | FF11: -1083.1 | FG11: 3319.4 | FH11: 0 | FK11: 327.1 | FL11: -327.1 | FM11: 0 | FN11: 0 | FO11: -1410.2 | FP11: 3646.5 | FQ11: 0 | FR11: 0 | FS11: 0 | FT11: 0 | FV11: 305 | FW11: 88 | FX11: 393 | FY11: 0 | FZ11: 382.0453893 | GC11: 1329.9 | GD11: 1079 | GI11: 50.9 | GJ11: 200 | GK11: 0 | GL11: 1329.9 | GN11: 0.3925308819 | GO11: 0.7003447285 | GQ11: 0.623064892 | GR11: 0.5387267143 | GT11: 212.2 | GV11: 110 | GX11: 769.4 | HA11: 300.6
A12: 5 | B12: Важашурское сельское поселение | C12: 968 | D12: 66 | E12: 45.1 | F12: 235 | J12: 0 | N12: 2.2 | P12: 45 | S12: 393.3 | T12: 33.8 | U12: 870.7 | V12: 142.9 | W12: 1047.4 | AJ12: 11.4 | AK12: 79.3 | AR12: 14.7 | AT12: 1546.1 | AU12: 0 | AV12: 692.9 | AW12: 162 | AX12: 11.4 | AY12: 0 | AZ12: 79.3 | BA12: 0 | BC12: 359.7 | BG12: 230.9 | BH12: 0 | BI12: 0 | BJ12: 0 | BK12: 0 | BL12: 7 | BN12: 2.9 | BP12: 1546.1 | BR12: 0.01885138951 | BS12: 7 | BT12: 625 | BU12: 8 | BV12: 1013.6 | BW12: 271 | BX12: 300 | BY12: 0 | BZ12: 325.1033058 | CA12: -29 | CB12: 1597.210744 | CC12: 715.8057851 | CD12: 325.1033058 | CE12: 0 | CF12: 238.5330579 | CG12: 2.995867769 | CH12: 182 | CI12: 242 | CJ12: 194 | CK12: 220 | CL12: 26 | CM12: 26.85950413 | CN12: 398 | CO12: 0 | CP12: 264 | CQ12: 11 | CR12: 19.9 | CS12: 0 | CT12: 11.4 | CU12: 0 | CV12: 161.8 | CW12: 0.2 | CX12: 75.5 | CY12: 3.8 | CZ12: 0 | DA12: 300 | DB12: 0 | DC12: 0 | DD12: 14.7 | DE12: 45 | DF12: 0 | DG12: 230.9 | DH12: 7 | DI12: 2.9 | DJ12: 1546.1 | DL12: 0 | DM12: 0 | DN12: 0 | DO12: 0 | DP12: 0 | DQ12: 0 | DR12: 0 | DS12: 0 | DT12: 0 | DY12: 33.8 | DZ12: 870.7 | EA12: 142.9 | EB12: 1047.4 | EC12: 1256.1 | ED12: -385.4 | EE12: 142.9 | EF12: 393.3 | EG12: 2.9 | EH12: 2.9 | EI12: 0 | EL12: 1253.2 | EM12: -385.4 | EN12: 142.9 | EO12: 393.3 | EP12: 7 | EQ12: =EL12 -> 1253.2 | ER12: 188.5 | ET12: -1434.7 | EU12: 0 | EV12: -573.9 | EW12: 142.9 | EX12: 1828 | EY12: 0 | FA12: -573.9 | FB12: =406.1-184.2 -> 221.9 | FC12: 352 | FD12: 0 | FE12: 0 | FF12: -79 | FG12: 1476 | FH12: 0 | FK12: 184.2 | FL12: -184.2 | FM12: 0 | FN12: 0 | FO12: -263.2 | FP12: 1660.2 | FQ12: 0 | FR12: 0 | FS12: 0 | FT12: 0 | FV12: 190 | FW12: 63 | FX12: 253 | FY12: 0 | FZ12: 371.5909091 | GC12: 359.7 | GD12: 300 | GI12: 14.7 | GJ12: 45 | GK12: 0 | GL12: 359.7 | GN12: 0.4063016529 | GO12: 1.503512397 | GQ12: 0.6449232586 | GR12: 1.156547997 | GT12: 47.2 | GV12: 32 | GX12: 692.9 | HA12: 162
A13: 6 | B13: Каенсарское сельское поселение | C13: 365 | D13: 48 | E13: 27.9 | F13: 75 | J13: 0 | N13: 0 | P13: 15 | S13: 165.9 | T13: 12.7 | U13: 798.1 | V13: 121.3 | W13: 932.1 | AJ13: 0.6 | AK13: 29.9 | AR13: 5.5 | AT13: 1134 | AU13: 0 | AV13: 731.7 | AW13: 131 | AX13: 0.6 | AY13: 0 | AZ13: 29.9 | BA13: 0 | BC13: 133.5 | BG13: 102.2 | BH13: 0 | BI13: 0 | BJ13: 0 | BK13: 0 | BL13: 4 | BN13: 1.1 | BP13: 1134 | BR13: 0.007108220219 | BS13: 15 | BT13: 626 | BU13: 16 | BV13: 919.4 | BW13: 102 | BX13: 83 | BY13: 0 | BZ13: 324.6575342 | CA13: 19 | CB13: 3106.849315 | CC13: 2004.657534 | CD13: 324.6575342 | CE13: 0 | CF13: 280 | CG13: 3.01369863 | CH13: 69 | CI13: 91 | CJ13: 73 | CK13: 71 | CL13: -2 | CM13: -5.479452055 | CN13: 444 | CO13: 0 | CP13: 264 | CQ13: 11 | CR13: 12.7 | CS13: 0 | CT13: 0.6 | CU13: 0 | CV13: 130.8 | CW13: 0.2 | CX13: 29.2 | CY13: 0.7 | CZ13: 0 | DA13: 83 | DB13: 0 | DC13: 0 | DD13: 35.5 | DE13: 15 | DF13: 0 | DG13: 102.2 | DH13: 4 | DI13: 1.1 | DJ13: 1134 | DL13: 0 | DM13: 0 | DN13: 0 | DO13: 0 | DP13: 0 | DQ13: 0 | DR13: 0 | DS13: 0 | DT13: 0 | DY13: 12.7 | DZ13: 798.1 | EA13: 121.3 | EB13: 932.1 | EC13: 687.3 | ED13: 110.8 | EE13: 121.3 | EF13: 165.9 | EG13: 1.1 | EH13: 1.1 | EI13: 0 | EL13: 686.2 | EM13: 110.8 | EN13: 121.3 | EO13: 165.9 | EP13: 4 | EQ13: 199 | ET13: -195 | EU13: 487.2 | EV13: 110.8 | EW13: 121.3 | EX13: 360.9 | EY13: 0 | EZ13: 214.2 | FA13: 110.8 | FB13: =81.4-48.2 -> 33.2 | FC13: -358.2 | FD13: 273 | FE13: 0 | FF13: 88.1 | FG13: 719.1 | FH13: 0 | FK13: 48.2 | FL13: -48.2 | FM13: 273 | FN13: 0 | FO13: 39.9 | FP13: 767.3 | FQ13: 0 | FR13: 0 | FS13: 0 | FT13: 0 | FV13: 32 | FW13: 6 | FX13: 38 | FY13: 0 | FZ13: 365.7534247 | GC13: 133.5 | GD13: 113 | GI13: 5.5 | GJ13: 15 | GK13: 0 | GL13: 133.5 | GN13: 0.4545205479 | GO13: 3.023287671 | GQ13: 0.7214611872 | GR13: 2.325605901 | GT13: 15 | GV13: 24 | GX13: 731.7 | HA13: 131
A14: 7 | B14: Каркаусское сельское поселение | C14: 915 | D14: 96 | E14: 68.3 | F14: 315 | J14: 4 | N14: 2.2 | P14: 0 | S14: 485.5 | T14: 31.9 | U14: 960.8 | V14: 169.8 | W14: 1162.5 | AJ14: 2.9 | AK14: 57.5 | AR14: 13.4 | AT14: 1721.8 | AU14: 0 | AV14: 717.5 | AW14: 177.1 | AX14: 2.9 | AY14: 0 | AZ14: 57.5 | BA14: 0 | BC14: 297.4 | BG14: 459.7 | BH14: 0 | BI14: 0 | BJ14: 0 | BK14: 0 | BL14: 7 | BN14: 2.7 | BP14: 1721.8 | BR14: 0.01781923699 | BS14: 18 | BT14: 627 | BU14: 17 | BV14: 1130.6 | BW14: 256 | BX14: 129 | BY14: 31 | BZ14: 325.0273224 | CA14: 96 | CB14: 1881.748634 | CC14: 784.1530055 | CD14: 325.0273224 | CE14: 0 | CF14: 502.4043716 | CG14: 2.950819672 | CH14: 172 | CI14: 229 | CJ14: 183 | CK14: 188 | CL14: 5 | CM14: 5.464480874 | CN14: 426 | CO14: 0 | CP14: 264 | CQ14: 11 | CR14: 16.5 | CS14: 0 | CT14: 2.9 | CU14: 0 | CV14: 173.8 | CW14: 3.3 | CX14: 55.6 | CY14: 1.9 | CZ14: 0 | DA14: 129 | DB14: 0 | DC14: 0 | DD14: 168.4 | DE14: 0 | DF14: 0 | DG14: 459.7 | DH14: 7 | DI14: 2.7 | DJ14: 1721.8 | DL14: 0 | DM14: 0 | DN14: 0 | DO14: 0 | DP14: 0 | DQ14: 0 | DR14: 0 | DS14: 0 | DT14: 0 | DY14: 31.9 | DZ14: 960.8 | EA14: 169.8 | EB14: 1162.5 | EC14: 1702.5 | ED14: -741.7 | EE14: 169.8 | EF14: 485.5 | EG14: 2.7 | EH14: 2.7 | EI14: 0 | EL14: 1699.8 | EM14: -741.7 | EN14: 169.8 | EO14: 485.5 | EP14: 7 | EQ14: =EL14 -> 1699.8 | ER14: 217.6 | ET14: -1910.4 | EU14: 0 | EV14: -959.3 | EW14: 169.8 | EX14: 2395.9 | EY14: 0 | FA14: -959.3 | FB14: =221-136.2 -> 84.8 | FC14: 874.5 | FD14: 0 | FE14: 0 | FF14: 85 | FG14: 1521.4 | FH14: 0 | FK14: 136.2 | FL14: -136.2 | FM14: 0 | FN14: 0 | FO14: -51.2 | FP14: 1657.6 | FQ14: 0 | FR14: 0 | FS14: 0 | FT14: 0 | FV14: 141 | FW14: 71 | FX14: 212 | FY14: 0 | FZ14: 325.0273224 | GC14: 297.4 | GD14: 284 | GI14: 13.4 | GJ14: 0 | GK14: 0 | GL14: 297.4 | GN14: 0.5306010929 | GO14: 1.815737705 | GQ14: 0.842223957 | GR14: 1.396721311 | GT14: 2.2 | GV14: 47 | GX14: 717.5 | HA14: 177.1
A15: 8 | B15: Кошкинское сельское поселение | C15: 1044 | D15: 143 | E15: 68.3 | F15: 300 | J15: 13 | N15: 2.2 | P15: 62 | S15: 588.5 | T15: 36.5 | U15: 600.4 | V15: 129.9 | W15: 766.8 | AJ15: 4 | AK15: 82.9 | AR15: 15.2 | AT15: 1457.4 | AU15: 0 | AV15: 734.9 | AW15: 224.4 | AX15: 4 | AY15: 0 | AZ15: 82.9 | BA15: 0 | BC15: 401.2 | BG15: 0 | BH15: 0 | BI15: 0 | BJ15: 0 | BK15: 0 | BL15: 7 | BN15: 3 | BP15: 1457.4 | BR15: 0.02033145728 | BS15: 19 | BT15: 628 | BU15: 20 | BV15: 730.3 | BW15: 292 | BX15: 249 | BY15: 20 | BZ15: 324.9042146 | CA15: 23 | CB15: 1395.977011 | CC15: 703.9272031 | CD15: 324.9042146 | CE15: 0 | CF15: 0 | CG15: 2.873563218 | CH15: 196 | CI15: 261 | CJ15: 209 | CK15: 212 | CL15: 3 | CM15: 2.873563218 | CN15: 426 | CO15: 0 | CP15: 255 | CQ15: 11 | CR15: 42.9 | CS15: 0 | CT15: 4 | CU15: 0 | CV15: 217.8 | CW15: 6.6 | CX15: 79.6 | CY15: 3.3 | CZ15: 0 | DA15: 249 | DB15: 0 | DC15: 0 | DD15: 90.2 | DE15: 62 | DF15: 0 | DG15: 0 | DH15: 7 | DI15: 3 | DJ15: 1457.4 | DL15: 0 | DM15: 0 | DN15: 0 | DO15: 0 | DP15: 0 | DQ15: 0 | DR15: 0 | DS15: 0 | DT15: 0 | DY15: 36.5 | DZ15: 600.4 | EA15: 129.9 | EB15: 766.8 | EC15: 1302.1 | ED15: -701.7 | EE15: 129.9 | EF15: 588.5 | EG15: 3 | EH15: 3 | EI15: 0 | EL15: 1299.1 | EM15: -701.7 | EN15: 129.9 | EO15: 588.5 | EP15: 7 | EQ15: =EL15 -> 1299.1 | ER15: 268.5 | ET15: -1560.6 | EU15: 0 | EV15: -970.2 | EW15: 129.9 | EX15: 2149.1 | EY15: 0 | FA15: -970.2 | FB15: =393.1-116.9 -> 276.2 | FC15: 694 | FD15: 0 | FE15: 0 | FF15: -146.3 | FG15: 1455.1 | FH15: 0 | FK15: 116.9 | FL15: -116.9 | FM15: 0 | FN15: 0 | FO15: -263.2 | FP15: 1572 | FQ15: 0 | FR15: 0 | FS15: 0 | FT15: 0 | FV15: 150 | FW15: 87 | FX15: 237 | FY15: 0 | FZ15: 384.2911877 | GC15: 401.2 | GD15: 324 | GI15: 15.2 | GJ15: 62 | GK15: 0 | GL15: 401.2 | GN15: 0.563697318 | GO15: 1.312739464 | GQ15: 0.8947576476 | GR15: 1.009799587 | GT15: 64.2 | GV15: 70 | GX15: 734.9 | HA15: 224.4
A16: 9 | B16: Лельвижское сельское поселение | C16: 518 | D16: 111 | E16: 25.5 | F16: 130 | J16: 0 | N16: 2.2 | P16: 0 | S16: 268.7 | T16: 18.1 | U16: 642.3 | V16: 108.9 | W16: 769.3 | AJ16: 1.1 | AK16: 43.7 | AR16: 7.9 | AT16: 1090.7 | AU16: 0 | AV16: 714.3 | AW16: 155.4 | AX16: 1.1 | AY16: 0 | AZ16: 43.7 | BA16: 0 | BC16: 168.9 | BG16: 0.7 | BH16: 0 | BI16: 0 | BJ16: 0 | BK16: 0 | BL16: 5 | BN16: 1.6 | BP16: 1090.7 | BR16: 0.01008783034 | BS16: 26 | BT16: 629 | BU16: 27 | BV16: 751.2 | BW16: 145 | BX16: 86 | BY16: 15 | BZ16: 326.0617761 | CA16: 44 | CB16: 2105.598456 | CC16: 1378.957529 | CD16: 326.0617761 | CE16: 0 | CF16: 1.351351351 | CG16: 3.088803089 | CH16: 97 | CI16: 130 | CJ16: 104 | CK16: 106 | CL16: 2 | CM16: 3.861003861 | CN16: 426 | CO16: 0 | CP16: 264 | CQ16: 11 | CR16: 13.3 | CS16: 0 | CT16: 1.1 | CU16: 0 | CV16: 150.8 | CW16: 4.6 | CX16: 42.4 | CY16: 1.3 | CZ16: 0 | DA16: 86 | DB16: 0 | DC16: 0 | DD16: 82.9 | DE16: 0 | DF16: 0 | DG16: 0.7 | DH16: 5 | DI16: 1.6 | DJ16: 1090.7 | DL16: 0 | DM16: 0 | DN16: 0 | DO16: 0 | DP16: 0 | DQ16: 0 | DR16: 0 | DS16: 0 | DT16: 0 | DY16: 18.1 | DZ16: 642.3 | EA16: 108.9 | EB16: 769.3 | EC16: 674 | ED16: -31.7 | EE16: 108.9 | EF16: 268.7 | EG16: 1.6 | EH16: 1.6 | EI16: 0 | EL16: 672.4 | EM16: -31.7 | EN16: 108.9 | EO16: 268.7 | EP16: 5 | EQ16: 209 | ET16: -204 | EU16: 463.4 | EV16: -31.7 | EW16: 108.9 | EX16: 472.7 | EY16: 0 | EZ16: 78.2 | FA16: -31.7 | FB16: =EW16 -> 108.9 | FC16: -155.4 | FD16: 385.2 | FE16: 0 | FF16: 0 | FG16: 628.1 | FH16: 0 | FK16: 0 | FL16: 0 | FM16: 385.2 | FN16: 0 | FO16: 0 | FP16: 628.1 | FQ16: 0 | FR16: 0 | FS16: 0 | FT16: 0 | FV16: 70 | FW16: 18 | FX16: 88 | FY16: 0 | FZ16: 326.0617761 | GC16: 168.9 | GD16: 161 | GI16: 7.9 | GJ16: 0 | GK16: 0 | GL16: 168.9 | GN16: 0.5187258687 | GO16: 2.019111969 | GQ16: 0.8233743948 | GR16: 1.553163053 | GT16: 2.2 | GV16: 55 | GX16: 714.3 | HA16: 155.4
A17: 10 | B17: Лубянское сельское поселение | C17: 1585 | D17: 298 | E17: 57.4 | F17: 150 | J17: 0 | N17: 12.6 | P17: 80 | S17: 598 | T17: 55.3 | U17: 2363.6 | V17: 357.1 | W17: 2776 | AJ17: 3.4 | AK17: 40.9 | AR17: 22.9 | AT17: 3441.2 | AU17: 0 | AV17: 836.2 | AW17: 255.1 | AX17: 3.4 | AY17: 0 | AZ17: 40.9 | BA17: 0 | BC17: 2283.9 | BG17: 4.1 | BH17: 0 | BI17: 0 | BJ17: 0 | BK17: 0 | BL17: 13 | BN17: 4.6 | BP17: 3441.2 | BR17: 0.03086720287 | BS17: 28 | BT17: 630 | BU17: 29 | BV17: 2720.7 | BW17: 444 | BX17: 524 | BY17: 130 | BZ17: 1390.473186 | CB17: 2171.104101 | CC17: 527.5709779 | CD17: 1390.473186 | CE17: 0 | CF17: 2.586750789 | CG17: 2.902208202 | CH17: 298 | CI17: 2008 | CJ17: 317 | CK17: =811-480 -> 331 | CL17: 14 | CM17: 8.832807571 | CN17: 508 | CO17: 0 | CP17: 299 | CQ17: 11 | CR17: 18.2 | CS17: 0 | CT17: 3.4 | CU17: 0 | CV17: 254.8 | CW17: 0.3 | CX17: 39.7 | CY17: 1.2 | CZ17: 500 | DA17: 524 | DB17: 0 | DC17: 0 | DD17: 1179.9 | DE17: 80 | DF17: 0 | DG17: 4.1 | DH17: 13 | DI17: 4.6 | DJ17: 3441.2 | DL17: 0 | DM17: 0 | DN17: 0 | DO17: 0 | DP17: 0 | DQ17: 0 | DR17: 0 | DS17: 0 | DT17: 0 | DY17: 55.3 | DZ17: 2363.6 | EA17: 357.1 | EB17: 2776 | EC17: 3062.7 | ED17: -699.1 | EE17: 357.1 | EF17: 598 | EG17: 4.6 | EH17: 4.6 | EI17: 0 | EL17: 3058.1 | EM17: -699.1 | EN17: 357.1 | EO17: 598 | EP17: 13 | EQ17: 1120 | ET17: -1107 | EU17: 1938.1 | EV17: -699.1 | EW17: 357.1 | EX17: 1705 | EY17: 0 | EZ17: 662.6 | FA17: =693-662.6 -> 30.4 | FB17: 0 | FC17: -693 | FD17: 1275.5 | FE17: -729.5 | FF17: 357.1 | FG17: 2398 | FH17: 0 | FJ17: 386 | FK17: 0 | FL17: -386 | FM17: 1275.5 | FN17: -1115.5 | FO17: 357.1 | FP17: 2784 | FQ17: 0 | FR17: 0 | FS17: 0 | FT17: 0 | FV17: 36 | FW17: 4 | FX17: 40 | FY17: 0 | FZ17: 1440.946372 | GC17: 2368.9 | GD17: 491 | GE17: 850 | GF17: =855+70 -> 925 | GH17: =351-351 -> 0 | GI17: 22.9 | GJ17: 80 | GK17: -85 | GL17: 2283.9 | GN17: 0.3772870662 | GO17: 2.143154574 | GQ17: 0.5988683591 | GR17: 1.648580442 | GT17: 92.6 | GV17: 147 | GX17: 836.2 | HA17: 255.1
A18: 11 | B18: Мамаширское сельское поселение | C18: 815 | D18: 57 | E18: 54.4 | F18: 180 | J18: 1.5 | N18: 2.2 | P18: 50 | S18: 345.1 | T18: 28.5 | U18: 718.3 | V18: 120.1 | W18: 866.9 | AJ18: 0.6 | AK18: 57.8 | AR18: 12 | AT18: 1282.4 | AU18: -3.694822226e-13 | AV18: 710.3 | AW18: 190.3 | AX18: 0.6 | AY18: 0 | AZ18: 57.8 | BA18: 0 | BC18: 315 | BG18: 0 | BH18: 0 | BI18: 0 | BJ18: 0 | BK18: 0 | BL18: 6 | BN18: 2.4 | BP18: 1282.4 | BR18: 0.01587177939 | BS18: 184 | BT18: 631 | BU18: 185 | BV18: 838.4 | BW18: 228 | BX18: 158 | BY18: 8 | BZ18: 325.1533742 | CA18: 62 | CB18: 1573.496933 | CC18: 871.5337423 | CD18: 325.1533742 | CE18: 0 | CF18: 0 | CG18: 2.944785276 | CH18: 153 | CI18: =ROUND(C18*$CI$3/1000,0) -> 204 | CJ18: 163 | CK18: 174 | CL18: 11 | CM18: 13.49693252 | CN18: 417 | CO18: 0 | CP18: 259 | CQ18: 11 | CR18: 23.3 | CS18: 0 | CT18: 0.6 | CU18: 0 | CV18: 185.8 | CW18: 4.5 | CX18: 55.6 | CY18: 2.2 | CZ18: 0 | DA18: 158 | DB18: 0 | DC18: 0 | DD18: 107 | DE18: 50 | DF18: 0 | DG18: 0 | DH18: 6 | DI18: 2.4 | DJ18: 1282.4 | DL18: 0 | DM18: 0 | DN18: 0 | DO18: 0 | DP18: 0 | DQ18: 0 | DR18: 0 | DS18: 0 | DT18: 0 | DY18: 28.5 | DZ18: 718.3 | EA18: 120.1 | EB18: 866.9 | EC18: 1085.4 | ED18: -367.1 | EE18: 120.1 | EF18: 345.1 | EG18: 2.4 | EH18: 2.4 | EI18: 0 | EL18: 1083 | EM18: -367.1 | EN18: 120.1 | EO18: 345.1 | EP18: 6 | EQ18: =EL18 -> 1083 | ER18: 72.6 | ET18: -1149.6 | EU18: 0 | EV18: -439.7 | EW18: 120.1 | EX18: 1494.7 | EY18: 0 | FA18: -439.7 | FB18: =322.2-151.8 -> 170.4 | FC18: 269.3 | FD18: 0 | FE18: 0 | FF18: -50.3 | FG18: 1225.4 | FH18: 0 | FK18: 150 | FL18: -150 | FM18: 0 | FN18: 0 | FO18: -200.3 | FP18: 1375.4 | FQ18: 0 | FR18: 0 | FS18: 0 | FT18: 0 | FV18: 80 | FW18: 32 | FX18: 112 | FY18: 0 | FZ18: 386.5030675 | GC18: 315 | GD18: 253 | GI18: 12 | GJ18: 50 | GK18: 0 | GL18: 315 | GN18: 0.4234355828 | GO18: 1.501840491 | GQ18: 0.6721199727 | GR18: 1.155261916 | GT18: 52.2 | GV18: 28 | GX18: 710.3 | HA18: 190.3
A19: 12 | B19: Манзарасское сельское поселение | C19: 2067 | D19: 155 | E19: 293.2 | F19: 450 | J19: 0 | N19: 2.2 | P19: 0 | S19: 900.4 | T19: 72.2 | U19: 788.7 | V19: 165.3 | W19: 1026.2 | AJ19: 1.7 | AK19: 126.3 | AR19: 29.7 | AT19: 2084.3 | AU19: 0 | AV19: 811.9 | AW19: 212.1 | AX19: 1.7 | AY19: 0 | AZ19: 126.3 | BA19: 0 | BC19: 770.7 | BG19: 143.7 | BH19: 0 | BI19: 0 | BJ19: 0 | BK19: 0 | BL19: 12 | BN19: 5.9 | BP19: 2084.3 | BR19: 0.04025394847 | BS19: 186 | BT19: 632 | BU19: 187 | BV19: 954 | BW19: 579 | BX19: 460 | BY19: 41 | BZ19: 372.8592163 | CA19: 78 | CB19: 1008.369618 | CC19: 392.7914852 | CD19: 372.8592163 | CE19: 0 | CF19: 69.52104499 | CG19: 2.854378326 | CH19: 388 | CI19: 517 | CJ19: 413 | CK19: 369 | CL19: -44 | CM19: -21.28688921 | CN19: 465 | CO19: 0 | CP19: 301 | CQ19: 11 | CR19: 34.9 | CS19: 0 | CT19: 1.7 | CU19: 0 | CV19: 211.8 | CW19: 0.3 | CX19: 124.5 | CY19: 1.8 | CZ19: 0 | DA19: 460 | DB19: 0 | DC19: 0 | DD19: 310.7 | DE19: 0 | DF19: 0 | DG19: 143.7 | DH19: 12 | DI19: 5.9 | DJ19: 2084.3 | DL19: 0 | DM19: 0 | DN19: 0 | DO19: 0 | DP19: 0 | DQ19: 0 | DR19: 0 | DS19: 0 | DT19: 0 | DY19: 72.2 | DZ19: 788.7 | EA19: 165.3 | EB19: 1026.2 | EC19: 1759 | ED19: -970.3 | EE19: 165.3 | EF19: 900.4 | EG19: 5.9 | EH19: 5.9 | EI19: 0 | EL19: 1753.1 | EM19: -970.3 | EN19: 165.3 | EO19: 900.4 | EP19: 12 | EQ19: 1753.1 | ER19: =913.3-238.9 -> 674.4 | ES19: 238.9 | ET19: -2654.4 | EU19: 0 | EV19: -1644.7 | EW19: -73.6 | EX19: 3554.8 | EY19: 0 | FA19: -1644.7 | FB19: =EW19 -> -73.6 | FC19: 1718.3 | FD19: 0 | FE19: 0 | FF19: 0 | FG19: 1836.5 | FH19: 0 | FK19: 0 | FL19: 0 | FM19: 0 | FN19: 0 | FO19: 0 | FP19: 1836.5 | FQ19: 0 | FR19: 0 | FS19: 0 | FT19: 0 | FV19: 150 | FW19: 25 | FX19: 175 | FY19: 0 | FZ19: 372.8592163 | GC19: 770.7 | GD19: 641 | GG19: 100 | GI19: 29.7 | GJ19: 0 | GK19: 0 | GL19: 770.7 | GN19: 0.4356071601 | GO19: 0.9464441219 | GQ19: 0.6914399367 | GR19: 0.7280339399 | GT19: 2.2 | GV19: 76 | GX19: 811.9 | HA19: 212.1
A20: 13 | B20: Нижнеискубашское сельское поселение | C20: 1041 | D20: 72 | E20: 58.6 | F20: 260 | J20: 2.5 | N20: 2.2 | P20: 43 | S20: 438.3 | T20: 36.3 | U20: 732.9 | V20: 127.7 | W20: 896.9 | AJ20: 2.9 | AK20: 66.1 | AR20: 15.2 | AT20: 1419.4 | AU20: 0 | AV20: 707.1 | AW20: 180 | AX20: 2.9 | AY20: 0 | AZ20: 66.1 | BA20: 0 | BC20: 381.2 | BG20: 72.1 | BH20: 0 | BI20: 0 | BJ20: 0 | BK20: 0 | BL20: 7 | BN20: 3 | BP20: 1419.4 | BR20: 0.02027303355 | BS20: 188 | BT20: 633 | BU20: 189 | BV20: 860.6 | BW20: 291 | BX20: 305 | BY20: 18 | BZ20: 324.8799232 | CA20: -32 | CB20: 1363.496638 | CC20: 679.2507205 | CD20: 324.8799232 | CE20: 0 | CF20: 69.26032661 | CG20: 2.88184438 | CH20: 195 | CI20: 260 | CJ20: 208 | CK20: 220 | CL20: 12 | CM20: 11.52737752 | CN20: 426 | CO20: 0 | CP20: 254 | CQ20: 11 | CR20: 16.1 | CS20: 0 | CT20: 2.9 | CU20: 0 | CV20: 177.8 | CW20: 2.2 | CX20: 63.5 | CY20: 2.6 | CZ20: 0 | DA20: 305 | DB20: 0 | DC20: 0 | DD20: 33.2 | DE20: 43 | DF20: 0 | DG20: 72.1 | DH20: 7 | DI20: 3 | DJ20: 1419.4 | DL20: 0 | DM20: 0 | DN20: 0 | DO20: 0 | DP20: 0 | DQ20: 0 | DR20: 0 | DS20: 0 | DT20: 0 | DY20: 36.3 | DZ20: 732.9 | EA20: 127.7 | EB20: 896.9 | EC20: 1590.7 | ED20: -857.8 | EE20: 127.7 | EF20: 438.3 | EG20: 3 | EH20: 3 | EI20: 0 | EL20: 1587.7 | EM20: -857.8 | EN20: 127.7 | EO20: 438.3 | EP20: 7 | EQ20: 1587.7 | ER20: 245.9 | ET20: -1826.6 | EU20: 0 | EV20: -1103.7 | EW20: 127.7 | EX20: 2264.9 | EY20: 0 | FA20: -1103.7 | FB20: =321.4-175.5 -> 145.9 | FC20: 957.8 | FD20: 0 | FE20: 0 | FF20: -18.2 | FG20: 1307.1 | FH20: 0 | FK20: 175.5 | FL20: -175.5 | FM20: 0 | FN20: 0 | FO20: -193.7 | FP20: 1482.6 | FQ20: 0 | FR20: 0 | FS20: 0 | FT20: 0 | FV20: 151 | FW20: 46 | FX20: 197 | FY20: 0 | FZ20: 366.1863593 | GC20: 381.2 | GD20: 323 | GI20: 15.2 | GJ20: 43 | GK20: 0 | GL20: 381.2 | GN20: 0.421037464 | GO20: 1.297214217 | GQ20: 0.6683134349 | GR20: 0.9978570901 | GT20: 45.2 | GV20: 36 | GX20: 707.1 | HA20: 180
A21: 14 | B21: Нижнерусское сельское поселение | C21: 788 | D21: 52 | E21: 49.2 | F21: 165 | J21: 0 | N21: 12.2 | P21: 40 | S21: 318.4 | T21: 27.5 | U21: 907.2 | V21: 143.5 | W21: 1078.2 | AJ21: 1.7 | AK21: 58.1 | AR21: 11.9 | AT21: 1468.3 | AU21: -2.273736754e-13 | AV21: 718.9 | AW21: 171.3 | AX21: 1.7 | AY21: 0 | AZ21: 58.1 | BA21: 0 | BC21: 395.9 | BG21: 114 | BH21: 0 | BI21: 0 | BJ21: 0 | BK21: 0 | BL21: 6 | BN21: 2.4 | BP21: 1468.3 | BR21: 0.01534596584 | BS21: 190 | BT21: 634 | BU21: 191 | BV21: 1050.7 | BW21: 221 | BX21: 232 | BY21: 12 | BZ21: 451.6497462 | CA21: -23 | CB21: 1863.324873 | CC21: 912.3096447 | CD21: 451.6497462 | CE21: 0 | CF21: 144.6700508 | CG21: 3.045685279 | CH21: 148 | CI21: 197 | CJ21: 158 | CK21: 179 | CL21: 21 | CM21: 26.64974619 | CN21: 444 | CO21: 0 | CP21: 253 | CQ21: 11 | CR21: 10.9 | CS21: 0 | CT21: 1.7 | CU21: 0 | CV21: 167.8 | CW21: 3.5 | CX21: 55.6 | CY21: 2.5 | CZ21: 0 | DA21: 232 | DB21: 0 | DC21: 0 | DD21: 123.9 | DE21: 40 | DF21: 0 | DG21: 114 | DH21: 6 | DI21: 2.4 | DJ21: 1468.3 | DL21: 0 | DM21: 0 | DN21: 0 | DO21: 0 | DP21: 0 | DQ21: 0 | DR21: 0 | DS21: 0 | DT21: 0 | DY21: 27.5 | DZ21: 907.2 | EA21: 143.5 | EB21: 1078.2 | EC21: 1512.5 | ED21: -605.3 | EE21: 143.5 | EF21: 318.4 | EG21: 2.4 | EH21: 2.4 | EI21: 0 | EL21: 1510.1 | EM21: -605.3 | EN21: 143.5 | EO21: 318.4 | EP21: 6 | EQ21: 1510.1 | ER21: 141.6 | ET21: -1645.7 | EU21: 0 | EV21: -746.9 | EW21: 143.5 | EX21: 1964.1 | EY21: 0 | FA21: -746.9 | FB21: =212.9-144.3 -> 68.6 | FC21: 678.3 | FD21: 0 | FE21: 0 | FF21: 74.9 | FG21: 1285.8 | FH21: 0 | FK21: =144.3-31.3 -> 113 | FL21: -113 | FM21: 0 | FN21: 0 | FO21: -38.1 | FP21: 1398.8 | FQ21: 0 | FR21: 0 | FS21: 0 | FT21: 0 | FV21: 120 | FW21: 21 | FX21: 141 | FY21: 0 | FZ21: 502.4111675 | GC21: 395.9 | GD21: 244 | GG21: 100 | GI21: 11.9 | GJ21: 40 | GK21: 0 | GL21: 395.9 | GN21: 0.4040609137 | GO21: 1.787436548 | GQ21: 0.6413665297 | GR21: 1.374951191 | GT21: 52.2 | GV21: 26 | GX21: 718.9 | HA21: 171.3
A22: 15 | B22: Ныртинское сельское поселение | C22: 913 | D22: 61 | E22: 44 | F22: 215 | J22: 6 | N22: 28.2 | P22: 80 | S22: 434.2 | T22: 31.9 | U22: 875.5 | V22: 151 | W22: 1058.4 | AJ22: 3.4 | AK22: 62.2 | AR22: 14.1 | AT22: 1572.3 | AU22: -2.273736754e-13 | AV22: 749.6 | AW22: 297.2 | AX22: 3.4 | AY22: 0 | AZ22: 62.2 | BA22: 0 | BC22: 417.1 | BG22: 33 | BH22: 0 | BI22: 0 | BJ22: 0 | BK22: 0 | BL22: 7 | BN22: 2.8 | BP22: 1572.3 | BR22: 0.01778028783 | BS22: 192 | BT22: 635 | BU22: 193 | BV22: 1026.5 | BW22: 256 | BX22: 241 | BY22: 22 | BZ22: 369.2223439 | CA22: -7 | CB22: 1722.124863 | CC22: 821.0295728 | CD22: 369.2223439 | CE22: 0 | CF22: 36.14457831 | CG22: 3.066812705 | CH22: 171 | CI22: 228 | CJ22: 183 | CK22: 315 | CL22: 132 | CM22: 144.5783133 | CN22: 444 | CO22: 0 | CP22: 264 | CQ22: 11 | CR22: 30.6 | CS22: 0 | CT22: 3.4 | CU22: 65 | CV22: 229.8 | CW22: 2.4 | CX22: 59.6 | CY22: 2.6 | CZ22: 0 | DA22: 241 | DB22: 0 | DC22: 0 | DD22: 96.1 | DE22: 80 | DF22: 0 | DG22: 33 | DH22: 7 | DI22: 2.8 | DJ22: 1572.3 | DL22: 0 | DM22: 0 | DN22: 0 | DO22: 0 | DP22: 0 | DQ22: 0 | DR22: 0 | DS22: 0 | DT22: 0 | DY22: 31.9 | DZ22: 875.5 | EA22: 151 | EB22: 1058.4 | EC22: 1944.1 | ED22: -1068.6 | EE22: 151 | EF22: 434.2 | EG22: 2.8 | EH22: 2.8 | EI22: 0 | EL22: 1941.3 | EM22: -1068.6 | EN22: 151 | EO22: 434.2 | EP22: 7 | EQ22: 1941.3 | ER22: 252.5 | ET22: -2186.8 | EU22: 0 | EV22: -1321.1 | EW22: 151 | EX22: 2621 | EY22: 0 | FA22: -1321.1 | FB22: =217.2-190.2 -> 27 | FC22: 1294.1 | FD22: 0 | FE22: 0 | FF22: 124 | FG22: 1326.9 | FH22: 0 | FK22: =190.2-92.2 -> 98 | FL22: -98 | FM22: 0 | FN22: 0 | FO22: 26 | FP22: 1424.9 | FQ22: 0 | FR22: 0 | FS22: 0 | FT22: 0 | FV22: 158 | FW22: 33 | FX22: 191 | FY22: 0 | FZ22: 456.8455641 | GC22: 417.1 | GD22: 283 | GG22: 40 | GI22: 14.1 | GJ22: 80 | GK22: 0 | GL22: 417.1 | GN22: 0.4755750274 | GO22: 1.650273823 | GQ22: 0.7548809958 | GR22: 1.269441402 | GT22: 108.2 | GV22: 30 | GX22: 749.6 | HA22: 297.2
A23: 16 | B23: Нырьинское сельское поселение | C23: 1413 | D23: 231 | E23: 80.8 | F23: 302 | J23: 500 | N23: 15.9 | P23: 43 | S23: 1172.7 | T23: 49.3 | U23: 50.4 | V23: 122.7 | W23: 222.4 | AJ23: 1.7 | AK23: 107 | AR23: 21.3 | AT23: 1525.1 | AU23: 0 | AV23: 689.1 | AW23: 176.1 | AX23: 1.7 | AY23: 0 | AZ23: 107 | BA23: 0 | BC23: 502.3 | BG23: 34.6 | BH23: 0 | BI23: 0 | BJ23: 0 | BK23: 0 | BL23: 10 | BN23: 4.3 | BP23: 1525.1 | BR23: 0.0275175758 | BS23: 194 | BT23: 636 | BU23: 195 | BV23: 173.1 | BW23: 396 | BX23: 280 | BY23: 100 | BZ23: 325.0530786 | CA23: 16 | CB23: 1079.334749 | CC23: 487.6857749 | CD23: 325.0530786 | CE23: 0 | CF23: 24.48690729 | CG23: 3.043170559 | CH23: 265 | CI23: 353 | CJ23: 283 | CK23: 305 | CL23: 22 | CM23: 15.56970984 | CN23: 388 | CO23: 0 | CP23: 259 | CQ23: 11 | CR23: 31.1 | CS23: 0 | CT23: 1.7 | CU23: 0 | CV23: 171.8 | CW23: 4.3 | CX23: 103.4 | CY23: 3.6 | CZ23: 0 | DA23: 280 | DB23: 0 | DC23: 0 | DD23: 179.3 | DE23: 43 | DF23: 0 | DG23: 34.6 | DH23: 10 | DI23: 4.3 | DJ23: 1525.1 | DL23: 0 | DM23: 0 | DN23: 0 | DO23: 0 | DP23: 0 | DQ23: 0 | DR23: 0 | DS23: 0 | DT23: 0 | DY23: 49.3 | DZ23: 50.4 | EA23: 122.7 | EB23: 222.4 | EC23: 2279.3 | ED23: -2228.9 | EE23: 122.7 | EF23: 1172.7 | EG23: 4.3 | EH23: 4.3 | EI23: 0 | EL23: 2275 | EM23: -2228.9 | EN23: 122.7 | EO23: 1172.7 | EP23: 10 | EQ23: 2275 | ER23: 522.3 | ET23: -2787.3 | EU23: 0 | EV23: -2751.2 | EW23: 122.7 | EX23: 3960 | EY23: 0 | FA23: -2751.2 | FB23: =479.4-208.1 -> 271.3 | FC23: 2479.9 | FD23: 0 | FE23: 0 | FF23: -148.6 | FG23: 1480.1 | FH23: 0 | FK23: =208.1-24.1 -> 184 | FL23: -184 | FM23: 0 | FN23: 0 | FO23: -332.6 | FP23: 1664.1 | FQ23: 0 | FR23: 0 | FS23: 0 | FT23: 0 | FV23: 149 | FW23: 35 | FX23: 184 | FY23: 0 | FZ23: 355.4847841 | GC23: 502.3 | GD23: 438 | GI23: 21.3 | GJ23: 43 | GK23: 0 | GL23: 502.3 | GN23: 0.8299363057 | GO23: 1.002406228 | GQ23: 1.317359215 | GR23: 0.7710817138 | GT23: 58.9 | GV23: 114 | GX23: 689.1 | HA23: 176.1
A24: 17 | B24: Олуязское сельское поселение | C24: 1497 | D24: 281 | E24: 163.2 | F24: 350 | J24: 0 | N24: 2.2 | P24: 5 | S24: 801.4 | T24: 52.3 | U24: 860.9 | V24: 180.5 | W24: 1093.7 | AJ24: 1.1 | AK24: 95.6 | AR24: 21.9 | AT24: 2013.7 | AU24: -5.684341886e-13 | AV24: 713 | AW24: 230.2 | AX24: 1.1 | AY24: 0 | AZ24: 95.6 | BA24: 0 | BC24: 490.9 | BG24: 468.5 | BH24: 0 | BI24: 0 | BJ24: 0 | BK24: 0 | BL24: 10 | BN24: 4.4 | BP24: 2013.7 | BR24: 0.02915344018 | BS24: 196 | BT24: 637 | BU24: 197 | BV24: 1041.4 | BW24: 419 | BX24: 428 | BY24: 0 | BZ24: 324.5824983 | CA24: -9 | CB24: 1345.156981 | CC24: 476.2859051 | CD24: 324.5824983 | CE24: 0 | CF24: 312.9592518 | CG24: 2.939211757 | CH24: 281 | CI24: 374 | CJ24: 299 | CK24: 284 | CL24: -15 | CM24: -10.02004008 | CN24: 426 | CO24: 0 | CP24: 256 | CQ24: 11 | CR24: 20 | CS24: 0 | CT24: 1.1 | CU24: 0 | CV24: 227.8 | CW24: 2.4 | CX24: 91.4 | CY24: 4.2 | CZ24: 0 | DA24: 428 | DB24: 0 | DC24: 0 | DD24: 57.9 | DE24: 5 | DF24: 0 | DG24: 468.5 | DH24: 10 | DI24: 4.4 | DJ24: 2013.7 | DL24: 0 | DM24: 0 | DN24: 0 | DO24: 0 | DP24: 0 | DQ24: 0 | DR24: 0 | DS24: 0 | DT24: 0 | DY24: 52.3 | DZ24: 860.9 | EA24: 180.5 | EB24: 1093.7 | EC24: 1694.3 | ED24: -833.4 | EE24: 180.5 | EF24: 801.4 | EG24: 4.4 | EH24: 4.4 | EI24: 0 | EL24: 1689.9 | EM24: -833.4 | EN24: 180.5 | EO24: 801.4 | EP24: 10 | EQ24: 1689.9 | ER24: =687-37.4 -> 649.6 | ES24: 37.4 | ET24: -2366.9 | EU24: 0 | EV24: -1483 | EW24: 143.1 | EX24: 3168.3 | EY24: 0 | FA24: -1483 | FB24: =EW24 -> 143.1 | FC24: 1339.9 | FD24: 0 | FE24: 0 | FF24: 0 | FG24: 1828.4 | FH24: 0 | FK24: 0 | FL24: 0 | FM24: 0 | FN24: 0 | FO24: 0 | FP24: 1828.4 | FQ24: 0 | FR24: 0 | FS24: 0 | FT24: 0 | FV24: 132 | FW24: 76 | FX24: 208 | FY24: 0 | FZ24: 327.9225117 | GC24: 490.9 | GD24: 464 | GI24: 21.9 | GJ24: 5 | GK24: 0 | GL24: 490.9 | GN24: 0.5353373413 | GO24: 1.280561122 | GQ24: 0.8497418117 | GR24: 0.9850470171 | GT24: 7.2 | GV24: 139 | GX24: 713 | HA24: 230.2
A25: 18 | B25: Ошторма-Юмьинское сельское поселение | C25: 1465 | D25: 114 | E25: 113.3 | F25: 310 | J25: 11 | N25: 0 | P25: 50 | S25: 598.3 | T25: 51.2 | U25: 657.4 | V25: 125.3 | W25: 833.9 | AJ25: 9.7 | AK25: 120 | AR25: 21.4 | AT25: 1583.3 | AU25: 0 | AV25: 711.9 | AW25: 197.1 | AX25: 9.7 | AY25: 0 | AZ25: 120 | BA25: 0 | BC25: 525.4 | BG25: 4.9 | BH25: 0 | BI25: 0 | BJ25: 0 | BK25: 0 | BL25: 10 | BN25: 4.3 | BP25: 1583.3 | BR25: 0.02853025375 | BS25: 200 | BT25: 638 | BU25: 199 | BV25: 782.7 | BW25: 410 | BX25: 282 | BY25: 39 | BZ25: 324.5051195 | CA25: 89 | CB25: 1080.750853 | CC25: 485.9385666 | CD25: 324.5051195 | CE25: 0 | CF25: 3.344709898 | CG25: 2.935153584 | CH25: 275 | CI25: 366 | CJ25: 293 | CK25: 293 | CL25: 0 | CM25: 0 | CN25: 426 | CO25: 0 | CP25: 264 | CQ25: 11 | CR25: 10.9 | CS25: 0 | CT25: 9.7 | CU25: 0 | CV25: 194.8 | CW25: 2.3 | CX25: 116.5 | CY25: 3.5 | CZ25: 0 | DA25: 282 | DB25: 0 | DC25: 0 | DD25: 193.4 | DE25: 50 | DF25: 0 | DG25: 4.9 | DH25: 10 | DI25: 4.3 | DJ25: 1583.3 | DL25: 0 | DM25: 0 | DN25: 0 | DO25: 0 | DP25: 0 | DQ25: 0 | DR25: 0 | DS25: 0 | DT25: 0 | DY25: 51.2 | DZ25: 657.4 | EA25: 125.3 | EB25: 833.9 | EC25: 1925.6 | ED25: -1268.2 | EE25: 125.3 | EF25: 598.3 | EG25: 4.3 | EH25: 4.3 | EI25: 0 | EL25: 1921.3 | EM25: -1268.2 | EN25: 125.3 | EO25: 598.3 | EP25: 10 | EQ25: 1921.3 | ER25: 453.5 | ET25: -2364.8 | EU25: 0 | EV25: -1721.7 | EW25: 125.3 | EX25: 2963.1 | EY25: 0 | FA25: -1721.7 | FB25: =507.1-159.9 -> 347.2 | FC25: 1374.5 | FD25: 0 | FE25: 0 | FF25: -221.9 | FG25: 1588.6 | FH25: 0 | FK25: 159.9 | FL25: -159.9 | FM25: 0 | FN25: 0 | FO25: -381.8 | FP25: 1748.5 | FQ25: 0 | FR25: 0 | FS25: 0 | FT25: 0 | FV25: 163 | FW25: 85 | FX25: 248 | FY25: 0 | FZ25: 358.6348123 | GC25: 525.4 | GD25: 454 | GI25: 21.4 | GJ25: 50 | GK25: 0 | GL25: 525.4 | GN25: 0.4083959044 | GO25: 0.99221843 | GQ25: 0.6482474674 | GR25: 0.7632449462 | GT25: 50 | GV25: 56 | GX25: 711.9 | HA25: 197.1
A26: 19 | B26: поселок городского типа Кукмор | C26: 17479 | D26: 18867 | E26: 3341.2 | F26: 13433 | J26: 90.5 | L26: 42 | M26: 1500 | N26: 0 | P26: 0 | S26: 37273.7 | T26: 610.2 | U26: 0 | V26: 0 | W26: 610.2 | AJ26: 0 | AK26: 0 | AR26: 0 | AT26: 37883.9 | AU26: 0 | AV26: 3557.7 | AW26: 0 | AX26: 0 | AY26: 0 | AZ26: 0 | BA26: 0 | BC26: 29800.2 | BG26: 0 | BH26: 0 | BI26: 0 | BJ26: 0 | BK26: 0 | BL26: 138 | BM26: 4388 | BN26: 0 | BP26: 37883.9 | BR26: 0.3403961129 | BS26: 233 | BT26: 639 | BV26: 0 | BX26: 5896 | BY26: 0 | BZ26: 1704.914469 | CB26: 2167.39516 | CC26: 203.5413925 | CD26: 1704.914469 | CE26: 0 | CF26: 0 | CG26: 0 | CH26: 3282 | CI26: 15113 | CJ26: 3496 | CL26: -3496 | CM26: -200.0114423 | CN26: 0 | CO26: 230 | CP26: 1616 | CQ26: 719 | CR26: 992.7 | CS26: 0 | CT26: 0 | CU26: 0 | CV26: 0 | CW26: 0 | CX26: 0 | CY26: 0 | CZ26: 1560 | DA26: 5896 | DB26: 0 | DC26: 2000 | DD26: 20344.2 | DE26: 0 | DF26: 4388 | DG26: 0 | DH26: 138 | DI26: 0 | DJ26: 37883.9 | DL26: 0 | DM26: 0 | DN26: 0 | DO26: 0 | DP26: 0 | DQ26: 0 | DR26: 0 | DS26: 0 | DT26: 0 | DY26: 610.2 | DZ26: 0 | EA26: 0 | EB26: 610.2 | EC26: 3965.4 | ED26: -3965.4 | EE26: 0 | EF26: 37273.7 | EG26: 0 | EH26: 3965.4 | EI26: 1520.5 | EJ26: 6684.4 | EL26: 0 | EM26: -5485.9 | EN26: -6684.4 | EO26: 37273.7 | EP26: 138 | EQ26: 0 | ET26: 138 | EU26: 0 | EV26: -5485.9 | EW26: -6684.4 | EX26: 37135.7 | EY26: 0 | FA26: -5485.9 | FB26: =EW26 -> -6684.4 | FC26: 12170.3 | FD26: 0 | FE26: 0 | FF26: 0 | FG26: 24965.4 | FH26: 0 | FK26: 0 | FL26: 0 | FM26: 0 | FN26: 0 | FO26: 0 | FP26: 24965.4 | FQ26: 0 | FR26: 0 | FS26: 0 | FT26: 0 | FV26: 9072 | FW26: -1184 | FX26: 7888 | FY26: 0 | FZ26: 1704.914469 | GC26: 30220.4 | GH26: 1792.3 | GI26: 0 | GJ26: 0 | GK26: -420.2 | GL26: 29800.2 | GN26: 2.132484696 | GO26: 2.16739516 | GT26: 1500 | GV26: 18593 | GX26: 3557.7 | HA26: 0
A27: 20 | B27: Починок-Кучуковское сельское поселение | C27: 1095 | D27: 98 | E27: 63 | F27: 300 | J27: 0 | N27: 2.2 | P27: 70 | S27: 533.2 | T27: 38.2 | U27: 646.3 | V27: 127.1 | W27: 811.6 | AJ27: 2.3 | AK27: 83.5 | AR27: 16.3 | AT27: 1446.9 | AU27: 0 | AV27: 746 | AW27: 170 | AX27: 2.3 | AY27: 0 | AZ27: 83.5 | BA27: 0 | BC27: 425.3 | BG27: 9.5 | BH27: 0 | BI27: 0 | BJ27: 0 | BK27: 0 | BL27: 7 | BN27: 3.3 | BP27: 1446.9 | BR27: 0.02132466066 | BS27: 202 | BT27: 640 | BU27: 203 | BV27: 773.4 | BW27: 307 | BX27: 220 | BY27: 15 | BZ27: 324.4748858 | CA27: 72 | CB27: 1321.369863 | CC27: 681.2785388 | CD27: 324.4748858 | CE27: 0 | CF27: 8.675799087 | CG27: 3.01369863 | CH27: 206 | CI27: =ROUND(C27*$CI$3/1000,0) -> 274 | CJ27: 219 | CK27: 242 | CL27: 23 | CM27: 21.00456621 | CN27: 426 | CO27: 0 | CP27: 254 | CQ27: 11 | CR27: 55 | CS27: 0 | CT27: 2.3 | CU27: 0 | CV27: 168.8 | CW27: 1.2 | CX27: 79.6 | CY27: 3.9 | CZ27: 0 | DA27: 220 | DB27: 0 | DC27: 0 | DD27: 135.3 | DE27: 70 | DF27: 0 | DG27: 9.5 | DH27: 7 | DI27: 3.3 | DJ27: 1446.9 | DL27: 0 | DM27: 0 | DN27: 0 | DO27: 0 | DP27: 0 | DQ27: 0 | DR27: 0 | DS27: 0 | DT27: 0 | DY27: 38.2 | DZ27: 646.3 | EA27: 127.1 | EB27: 811.6 | EC27: 1513.8 | ED27: -867.5 | EE27: 127.1 | EF27: 533.2 | EG27: 3.3 | EH27: =EG27 -> 3.3 | EI27: =EG27-EH27 -> 0 | EL27: 1510.5 | EM27: -867.5 | EN27: 127.1 | EO27: 533.2 | EP27: 7 | EQ27: 1510.5 | ER27: 566.5 | ET27: -2070 | EU27: 0 | EV27: -1434 | EW27: 127.1 | EX27: 2603.2 | EY27: 0 | FA27: -1434 | FB27: =EW27 -> 127.1 | FC27: 1306.9 | FD27: 0 | FE27: 0 | FF27: 0 | FG27: 1296.3 | FH27: 0 | FK27: 0 | FL27: 0 | FM27: 0 | FN27: 0 | FO27: 0 | FP27: 1296.3 | FQ27: 0 | FR27: 0 | FS27: 0 | FT27: 0 | FV27: 190 | FW27: 37 | FX27: 227 | FY27: 0 | FZ27: 388.4018265 | GC27: 425.3 | GD27: =ROUND(C27*$GD$3/1000,0) -> 339 | GI27: 16.3 | GJ27: 70 | GK27: 0 | GL27: 425.3 | GN27: 0.4869406393 | GO27: 1.243013699 | GQ27: 0.7729216496 | GR27: 0.9561643836 | GT27: 72.2 | GV27: 48 | GX27: 746 | HA27: 170
A28: 21 | B28: Псякское сельское поселение | C28: 715 | D28: 83 | E28: 55.4 | F28: 280 | J28: 0 | N28: 28.3 | P28: 15 | S28: 461.7 | T28: 25 | U28: 619.6 | V28: 125.9 | W28: 770.5 | AJ28: 0 | AK28: 44 | AR28: 10.5 | AT28: 1286.7 | AU28: 2.557953849e-13 | AV28: 697.3 | AW28: 226 | AX28: 0 | AY28: 0 | AZ28: 44 | BA28: 0 | BC28: 247.5 | BG28: 64.8 | BH28: 0 | BI28: 0 | BJ28: 0 | BK28: 0 | BL28: 5 | BN28: 2.1 | BP28: 1286.7 | BR28: 0.0139243218 | BS28: 204 | BT28: 641 | BU28: 205 | BV28: 745.5 | BW28: 200 | BX28: 136 | BY28: 56 | BZ28: 325.1748252 | CA28: 8 | CB28: 1799.58042 | CC28: 975.2447552 | CD28: 325.1748252 | CE28: 0 | CF28: 90.62937063 | CG28: 2.937062937 | CH28: 134 | CI28: 179 | CJ28: 143 | CK28: 135 | CL28: -8 | CM28: -11.18881119 | CN28: 417 | CO28: 0 | CP28: 256 | CQ28: 11 | CR28: 13.3 | CS28: 0 | CT28: 0 | CU28: 0 | CV28: 223.8 | CW28: 2.2 | CX28: 42.4 | CY28: 1.6 | CZ28: 0 | DA28: 136 | DB28: 0 | DC28: 0 | DD28: 96.5 | DE28: 15 | DF28: 0 | DG28: 64.8 | DH28: 5 | DI28: 2.1 | DJ28: 1286.7 | DL28: 0 | DM28: 0 | DN28: 0 | DO28: 0 | DP28: 0 | DQ28: 0 | DR28: 0 | DS28: 0 | DT28: 0 | DY28: 25 | DZ28: 619.6 | EA28: 125.9 | EB28: 770.5 | EC28: 1459.8 | ED28: -840.2 | EE28: 125.9 | EF28: 461.7 | EG28: 2.1 | EH28: 2.1 | EI28: 0 | EL28: 1457.7 | EM28: -840.2 | EN28: 125.9 | EO28: 461.7 | EP28: 5 | EQ28: 1457.7 | ER28: 199.1 | ET28: -1651.8 | EU28: 0 | EV28: -1039.3 | EW28: 125.9 | EX28: 2113.5 | EY28: 0 | FA28: -1039.3 | FB28: =EW28 -> 125.9 | FC28: 913.4 | FD28: 0 | FE28: 0 | FF28: 0 | FG28: 1200.1 | FH28: 0 | FK28: 0 | FL28: 0 | FM28: 0 | FN28: 0 | FO28: 0 | FP28: 1200.1 | FQ28: 0 | FR28: 0 | FS28: 0 | FT28: 0 | FV28: 150 | FW28: 35 | FX28: 185 | FY28: 0 | FZ28: 346.1538462 | GC28: 247.5 | GD28: 222 | GI28: 10.5 | GJ28: 15 | GK28: 0 | GL28: 247.5 | GN28: 0.6457342657 | GO28: 1.738041958 | GQ28: 1.024975025 | GR28: 1.336955352 | GT28: 43.3 | GV28: 41 | GX28: 697.3 | HA28: 226
A29: 22 | B29: Сардекбашское сельское поселение | C29: 1252 | D29: =126-86 -> 40 | E29: 90.9 | F29: 330 | J29: 1 | N29: 10.6 | P29: 37 | S29: 509.5 | T29: 43.7 | U29: 724.8 | V29: 129.4 | W29: 897.9 | AJ29: 4 | AK29: 96.5 | AR29: 18.6 | AT29: 1526.5 | AU29: 0 | AV29: 713.2 | AW29: 239 | AX29: 4 | AY29: 0 | AZ29: 96.5 | BA29: 0 | BC29: 443.6 | BG29: 17.5 | BH29: 0 | BI29: 0 | BJ29: 0 | BK29: 0 | BL29: 9 | BN29: 3.7 | BP29: 1526.5 | BR29: 0.02438216908 | BS29: 206 | BT29: 642 | BU29: 207 | BV29: 854.2 | BW29: 351 | BX29: 355 | BY29: 0 | BZ29: 324.7603834 | CA29: -4 | CB29: 1219.249201 | CC29: 569.6485623 | CD29: 324.7603834 | CE29: 0 | CF29: 13.97763578 | CG29: 2.955271565 | CH29: 235 | CI29: 313 | CJ29: 250 | CK29: 248 | CL29: -2 | CM29: -1.597444089 | CN29: 408 | CO29: 0 | CP29: 253 | CQ29: 11 | CR29: 41.2 | CS29: 0 | CT29: 4 | CU29: 0 | CV29: 236.8 | CW29: 2.2 | CX29: 92.7 | CY29: 3.8 | CZ29: 0 | DA29: 355 | DB29: 0 | DC29: 0 | DD29: 51.6 | DE29: 37 | DF29: 0 | DG29: 17.5 | DH29: 9 | DI29: 3.7 | DJ29: 1526.5 | DL29: 0 | DM29: 0 | DN29: 0 | DO29: 0 | DP29: 0 | DQ29: 0 | DR29: 0 | DS29: 0 | DT29: 0 | DY29: 43.7 | DZ29: 724.8 | EA29: 129.4 | EB29: 897.9 | EC29: 1969.7 | ED29: -1244.9 | EE29: 129.4 | EF29: 509.5 | EG29: 3.7 | EH29: 3.7 | EI29: 0 | EL29: 1966 | EM29: -1244.9 | EN29: 129.4 | EO29: 509.5 | EP29: 9 | EQ29: 1966 | ER29: 119.8 | ET29: -2076.8 | EU29: 0 | EV29: -1364.7 | EW29: 129.4 | EX29: 2586.3 | EY29: 0 | FA29: 628 | FB29: 0 | FC29: -628 | FD29: 0 | FE29: -1992.7 | FF29: 129.4 | FG29: 3214.3 | FH29: 0 | FJ29: 7.5 | FK29: =328.6-42.1 -> 286.5 | FL29: -294 | FM29: 0 | FN29: -2000.2 | FO29: -157.1 | FP29: 3508.3 | FQ29: 0 | FR29: 0 | FS29: 0 | FT29: 0 | FV29: 160 | FW29: 56 | FX29: 216 | FY29: 0 | FZ29: 354.313099 | GC29: 443.6 | GD29: 388 | GI29: 18.6 | GJ29: 37 | GK29: 0 | GL29: 443.6 | GN29: 0.4069488818 | GO29: 1.138977636 | GQ29: 0.645950606 | GR29: 0.8761366429 | GT29: 47.6 | GV29: 62 | GX29: 713.2 | HA29: 239
A30: 23 | B30: Село-Чуринское сельское поселение | C30: 1360 | D30: 143 | E30: 101.5 | F30: 260 | J30: 1 | N30: 14.1 | P30: 200 | S30: 719.6 | T30: 47.5 | U30: 1008.3 | V30: 194 | W30: 1249.8 | AJ30: 3.4 | AK30: 94.5 | AR30: 20 | AT30: 2087.3 | AU30: -2.273736754e-13 | AV30: 698.6 | AW30: 425.8 | AX30: 3.4 | AY30: 0 | AZ30: 94.5 | BA30: 0 | BC30: 642 | BG30: 210 | BH30: 0 | BI30: 0 | BJ30: 0 | BK30: 0 | BL30: 9 | BN30: 4 | BP30: 2087.3 | BR30: 0.02648542328 | BS30: 208 | BT30: 643 | BU30: 209 | BV30: 1202.3 | BW30: 381 | BX30: 322 | BY30: 0 | BZ30: 325 | CA30: 59 | CB30: 1534.779412 | CC30: 513.6764706 | CD30: 325 | CE30: 0 | CF30: 154.4117647 | CG30: 2.941176471 | CH30: 255 | CI30: 340 | CJ30: 272 | CK30: 268 | CL30: -4 | CM30: -2.941176471 | CN30: 408 | CO30: 0 | CP30: 254 | CQ30: 11 | CR30: 25.6 | CS30: 0 | CT30: 3.4 | CU30: 217 | CV30: 200.8 | CW30: 8 | CX30: 90.1 | CY30: 4.4 | CZ30: 0 | DA30: 322 | DB30: 0 | DC30: 0 | DD30: 120 | DE30: 200 | DF30: 0 | DG30: 210 | DH30: 9 | DI30: 4 | DJ30: 2087.3 | DL30: 0 | DM30: 0 | DN30: 0 | DO30: 0 | DP30: 0 | DQ30: 0 | DR30: 0 | DS30: 0 | DT30: 0 | DY30: 47.5 | DZ30: 1008.3 | EA30: 194 | EB30: 1249.8 | EC30: 1870.3 | ED30: -862 | EE30: 194 | EF30: 719.6 | EG30: 4 | EH30: 4 | EI30: 0 | EL30: 1866.3 | EM30: -862 | EN30: 194 | EO30: 719.6 | EP30: 9 | EQ30: 1866.3 | ER30: 573.4 | ET30: -2430.7 | EU30: 0 | EV30: -1435.4 | EW30: 194 | EX30: 3150.3 | EY30: 0 | FA30: -1435.4 | FB30: =428.7-52.5 -> 376.2 | FC30: 1059.2 | FD30: 0 | FE30: 0 | FF30: -182.2 | FG30: 2091.1 | FH30: 0 | FK30: 52.5 | FL30: -52.5 | FM30: 0 | FN30: 0 | FO30: -234.7 | FP30: 2143.6 | FQ30: 0 | FR30: 0 | FS30: 0 | FT30: 0 | FV30: 141 | FW30: 28 | FX30: 169 | FY30: 0 | FZ30: 472.0588235 | GC30: 642 | GD30: 422 | GI30: 20 | GJ30: 200 | GK30: 0 | GL30: 642 | GN30: 0.5291176471 | GO30: 1.462794118 | GQ30: 0.839869281 | GR30: 1.125226244 | GT30: 214.1 | GV30: 70 | GX30: 698.6 | HA30: 425.8
A31: 24 | B31: Среднекуморское сельское поселение | C31: 1039 | D31: 86 | E31: 54.5 | F31: 225 | J31: 0 | N31: 2.2 | P31: 13 | S31: 380.7 | T31: 36.3 | U31: 976.8 | V31: 153.4 | W31: 1166.5 | AJ31: 4.6 | AK31: 84.3 | AR31: 15.6 | AT31: 1651.7 | AU31: 0 | AV31: 731.5 | AW31: 176 | AX31: 4.6 | AY31: 0 | AZ31: 84.3 | BA31: 0 | BC31: 350.6 | BG31: 291.6 | BH31: 0 | BI31: 0 | BJ31: 0 | BK31: 0 | BL31: 10 | BN31: 3.1 | BP31: 1651.7 | BR31: 0.0202340844 | BS31: 213 | BT31: 644 | BU31: 214 | BV31: 1130.2 | BW31: 291 | BX31: 180 | BY31: 55 | BZ31: 324.9278152 | CA31: 56 | CB31: 1589.701636 | CC31: 704.0423484 | CD31: 324.9278152 | CE31: 0 | CF31: 280.6544755 | CG31: 2.983638114 | CH31: 195 | CI31: 260 | CJ31: 208 | CK31: 220 | CL31: 12 | CM31: 11.54956689 | CN31: 444 | CO31: 0 | CP31: 264 | CQ31: 11 | CR31: 12.5 | CS31: 0 | CT31: 4.6 | CU31: 0 | CV31: 173.8 | CW31: 2.2 | CX31: 80.9 | CY31: 3.4 | CZ31: 0 | DA31: 180 | DB31: 0 | DC31: 0 | DD31: 157.6 | DE31: 13 | DF31: 0 | DG31: 291.6 | DH31: 10 | DI31: 3.1 | DJ31: 1651.7 | DL31: 0 | DM31: 0 | DN31: 0 | DO31: 0 | DP31: 0 | DQ31: 0 | DR31: 0 | DS31: 0 | DT31: 0 | DY31: 36.3 | DZ31: 976.8 | EA31: 153.4 | EB31: 1166.5 | EC31: 1572.8 | ED31: -596 | EE31: 153.4 | EF31: 380.7 | EG31: 3.1 | EH31: 3.1 | EI31: 0 | EL31: 1569.7 | EM31: -596 | EN31: 153.4 | EO31: 380.7 | EP31: 10 | EQ31: 1569.7 | ER31: 237.4 | ET31: -1797.1 | EU31: 0 | EV31: -833.4 | EW31: 153.4 | EX31: 2177.8 | EY31: 0 | FA31: -833.4 | FB31: =371.1-216.8 -> 154.3 | FC31: 679.1 | FD31: 0 | FE31: 0 | FF31: -0.9 | FG31: 1498.7 | FH31: 0 | FK31: =216.8-1.8 -> 215 | FL31: -215 | FM31: 0 | FN31: 0 | FO31: -215.9 | FP31: 1713.7 | FQ31: 0 | FR31: 0 | FS31: 0 | FT31: 0 | FV31: 92 | FW31: 14 | FX31: 106 | FY31: 0 | FZ31: 337.439846 | GC31: 350.6 | GD31: 322 | GI31: 15.6 | GJ31: 13 | GK31: 0 | GL31: 350.6 | GN31: 0.3664100096 | GO31: 1.504138595 | GQ31: 0.5816031899 | GR31: 1.157029688 | GT31: 15.2 | GV31: 43 | GX31: 731.5 | HA31: 176
A32: 25 | B32: Туембашское сельское поселение | C32: 693 | D32: 73 | E32: 50.9 | F32: 170 | J32: 42 | N32: 16.3 | P32: 60 | S32: 412.2 | T32: 24.2 | U32: 669 | V32: 126.6 | W32: 819.8 | AJ32: 0 | AK32: 41.7 | AR32: 10.3 | AT32: 1284 | AU32: 3.126388037e-13 | AV32: 723.8 | AW32: 209 | AX32: 0 | AY32: 0 | AZ32: 41.7 | BA32: 0 | BC32: 285.3 | BG32: 16.1 | BH32: 0 | BI32: 0 | BJ32: 0 | BK32: 0 | BL32: 6 | BN32: 2.1 | BP32: 1284 | BR32: 0.01349588113 | BS32: 215 | BT32: 645 | BU32: 216 | BV32: 795.6 | BW32: 194 | BX32: 215 | BY32: 0 | BZ32: 325.1082251 | CA32: -21 | CB32: 1852.813853 | CC32: 1044.444444 | CD32: 325.1082251 | CE32: 0 | CF32: 23.23232323 | CG32: 3.03030303 | CH32: 130 | CI32: 173 | CJ32: 139 | CK32: 138 | CL32: -1 | CM32: -1.443001443 | CN32: 444 | CO32: 0 | CP32: 264 | CQ32: 11 | CR32: 4.8 | CS32: 0 | CT32: 0 | CU32: 0 | CV32: 204.8 | CW32: 4.2 | CX32: 39.7 | CY32: 2 | CZ32: 0 | DA32: 215 | DB32: 0 | DC32: 0 | DD32: 10.3 | DE32: 60 | DF32: 0 | DG32: 16.1 | DH32: 6 | DI32: 2.1 | DJ32: 1284 | DL32: 0 | DM32: 0 | DN32: 0 | DO32: 0 | DP32: 0 | DQ32: 0 | DR32: 0 | DS32: 0 | DT32: 0 | DY32: 24.2 | DZ32: 669 | EA32: 126.6 | EB32: 819.8 | EC32: 1092.2 | ED32: -423.2 | EE32: 126.6 | EF32: 412.2 | EG32: 2.1 | EH32: 2.1 | EI32: 0 | EL32: 1090.1 | EM32: -423.2 | EN32: 126.6 | EO32: 412.2 | EP32: 6 | EQ32: 571 | ET32: -565 | EU32: 519.1 | EV32: -423.2 | EW32: 126.6 | EX32: 977.2 | EY32: 0 | EZ32: 9 | FA32: -423.2 | FB32: =214.4-127.2 -> 87.2 | FC32: 327 | FD32: 510.1 | FE32: 0 | FF32: 39.4 | FG32: 650.2 | FH32: 0 | FK32: 127.2 | FL32: -127.2 | FM32: 510.1 | FN32: 0 | FO32: -87.8 | FP32: 777.4 | FQ32: 0 | FR32: 0 | FS32: 0 | FT32: 0 | FV32: 65 | FW32: 15 | FX32: 80 | FY32: 0 | FZ32: 411.6883117 | GC32: 285.3 | GD32: 215 | GI32: 10.3 | GJ32: 60 | GK32: 0 | GL32: 285.3 | GN32: 0.5948051948 | GO32: 1.792640693 | GQ32: 0.9441352298 | GR32: 1.378954379 | GT32: 76.3 | GV32: 36 | GX32: 723.8 | HA32: 209
A33: 26 | B33: Уркушское сельское поселение | C33: 611 | D33: 46 | E33: 27.2 | F33: 150 | J33: 1 | N33: 2.2 | P33: 30 | S33: 256.4 | T33: 21.3 | U33: 827.2 | V33: 129.7 | W33: 978.2 | AJ33: 1.7 | AK33: 44.2 | AR33: 9.2 | AT33: 1289.7 | AU33: 2.842170943e-13 | AV33: 680.8 | AW33: 319.4 | AX33: 1.7 | AY33: 0 | AZ33: 44.2 | BA33: 0 | BC33: 228.2 | BG33: 8.6 | BH33: 0 | BI33: 0 | BJ33: 0 | BK33: 0 | BL33: 5 | BN33: 1.8 | BP33: 1289.7 | BR33: 0.0118989659 | BS33: 218 | BT33: 646 | BU33: 219 | BV33: 956.9 | BW33: 171 | BX33: 178 | BY33: 11 | BZ33: 324.386252 | CA33: -18 | CB33: 2110.801964 | CC33: 1114.238953 | CD33: 324.386252 | CE33: 0 | CF33: 14.07528642 | CG33: 2.94599018 | CH33: 115 | CI33: 153 | CJ33: 122 | CK33: 128 | CL33: 6 | CM33: 9.819967267 | CN33: 408 | CO33: 0 | CP33: 254 | CQ33: 11 | CR33: 7.8 | CS33: 0 | CT33: 1.7 | CU33: 156 | CV33: 160.8 | CW33: 2.6 | CX33: 42.4 | CY33: 1.8 | CZ33: 0 | DA33: 178 | DB33: 0 | DC33: 0 | DD33: 20.2 | DE33: 30 | DF33: 0 | DG33: 8.6 | DH33: 5 | DI33: 1.8 | DJ33: 1289.7 | DL33: 0 | DM33: 0 | DN33: 0 | DO33: 0 | DP33: 0 | DQ33: 0 | DR33: 0 | DS33: 0 | DT33: 0 | DY33: 21.3 | DZ33: 827.2 | EA33: 129.7 | EB33: 978.2 | EC33: 1732.7 | ED33: -905.5 | EE33: 129.7 | EF33: 256.4 | EG33: 1.8 | EH33: 1.8 | EI33: 0 | EL33: 1730.9 | EM33: -905.5 | EN33: 129.7 | EO33: 256.4 | EP33: 5 | EQ33: =EL33 -> 1730.9 | ER33: 23.8 | ET33: -1749.7 | EU33: 0 | EV33: -929.3 | EW33: 129.7 | EX33: 2006.1 | EY33: 0 | FA33: 520 | FB33: 0 | FC33: -520 | FD33: 0 | FE33: -1449.3 | FF33: 129.7 | FG33: 2526.1 | FH33: 0 | FJ33: 120.6 | FK33: 15.4 | FL33: -136 | FM33: 0 | FN33: -1569.9 | FO33: 114.3 | FP33: 2662.1 | FQ33: 0 | FR33: 0 | FS33: 0 | FT33: 0 | FV33: 126 | FW33: 7 | FX33: 133 | FY33: 0 | FZ33: 373.4860884 | GC33: 228.2 | GD33: 189 | GI33: 9.2 | GJ33: 30 | GK33: 0 | GL33: 228.2 | GN33: 0.4196399345 | GO33: 2.035679214 | GQ33: 0.6660951342 | GR33: 1.565907088 | GT33: 32.2 | GV33: 23 | GX33: 680.8 | HA33: 319.4
A34: 27 | B34: Чарлинское сельское поселение | C34: 653 | D34: 81 | E34: 41.1 | F34: 180 | J34: 1.5 | N34: 15.4 | P34: 70 | S34: 389 | T34: 22.8 | U34: 829.4 | V34: 147 | W34: 999.2 | AJ34: 1.1 | AK34: 53.1 | AR34: 10 | AT34: 1452.4 | AU34: 0 | AV34: 725.4 | AW34: 262.5 | AX34: 1.1 | AY34: 0 | AZ34: 53.1 | BA34: 0 | BC34: 282 | BG34: 120.3 | BH34: 0 | BI34: 0 | BJ34: 0 | BK34: 0 | BL34: 6 | BN34: 2 | BP34: 1452.4 | BR34: 0.01271689809 | BS34: 225 | BT34: 647 | BU34: 226 | BV34: 976.4 | BW34: 183 | BX34: 183 | BY34: 19 | BZ34: 324.6554364 | CA34: -19 | CB34: 2224.196018 | CC34: 1110.872894 | CD34: 324.6554364 | CE34: 0 | CF34: 184.2266462 | CG34: 3.062787136 | CH34: 123 | CI34: 163 | CJ34: 131 | CK34: 139 | CL34: 8 | CM34: 12.25114855 | CN34: 398 | CO34: 0 | CP34: 256 | CQ34: 11 | CR34: 60.4 | CS34: 0 | CT34: 1.1 | CU34: 0 | CV34: 259.8 | CW34: 2.7 | CX34: 50.4 | CY34: 2.7 | CZ34: 0 | DA34: 183 | DB34: 0 | DC34: 0 | DD34: 29 | DE34: 70 | DF34: 0 | DG34: 120.3 | DH34: 6 | DI34: 2 | DJ34: 1452.4 | DL34: 0 | DM34: 0 | DN34: 0 | DO34: 0 | DP34: 0 | DQ34: 0 | DR34: 0 | DS34: 0 | DT34: 0 | DY34: 22.8 | DZ34: 829.4 | EA34: 147 | EB34: 999.2 | EC34: 1170.2 | ED34: -340.8 | EE34: 147 | EF34: 389 | EG34: 2 | EH34: 2 | EI34: 0 | EL34: 1168.2 | EM34: -340.8 | EN34: 147 | EO34: 389 | EP34: 6 | EQ34: =EL34 -> 1168.2 | ER34: 34.6 | ET34: -1196.8 | EU34: 0 | EV34: -375.4 | EW34: 147 | EX34: 1585.8 | EY34: 0 | FA34: -375.4 | FB34: =168.6-75.7 -> 92.9 | FC34: 282.5 | FD34: 0 | FE34: 0 | FF34: 54.1 | FG34: 1303.3 | FH34: 0 | FK34: 75.7 | FL34: -75.7 | FM34: 0 | FN34: 0 | FO34: -21.6 | FP34: 1379 | FQ34: 0 | FR34: 0 | FS34: 0 | FT34: 0 | FV34: 76 | FW34: 32 | FX34: 108 | FY34: 0 | FZ34: 431.8529862 | GC34: 282 | GD34: 202 | GI34: 10 | GJ34: 70 | GK34: 0 | GL34: 282 | GN34: 0.595712098 | GO34: 2.141194487 | GQ34: 0.9455747587 | GR34: 1.647072682 | GT34: 85.4 | GV34: 40 | GX34: 725.4 | HA34: 262.5
A35: 28 | B35: Ядыгерьское сельское поселение | C35: 1021 | D35: 115 | E35: 93 | F35: 280 | J35: 2 | N35: 0 | P35: 66 | S35: 556 | T35: 35.6 | U35: 595.7 | V35: 125.7 | W35: 757 | AJ35: 5.7 | AK35: 75.5 | AR35: 15.1 | AT35: 1409.3 | AU35: 0 | AV35: 727.5 | AW35: 136 | AX35: 5.7 | AY35: 0 | AZ35: 75.5 | BA35: 0 | BC35: 398.1 | BG35: 56.5 | BH35: 0 | BI35: 0 | BJ35: 0 | BK35: 0 | BL35: 7 | BN35: 3 | BP35: 1409.3 | BR35: 0.01988354204 | BS35: 227 | BT35: 648 | BU35: 228 | BV35: 721.4 | BW35: 286 | BX35: 317 | BY35: 0 | BZ35: 325.2693438 | CA35: -31 | CB35: 1380.313418 | CC35: 712.5367287 | CD35: 325.2693438 | CE35: 0 | CF35: 55.33790402 | CG35: 2.938295788 | CH35: 192 | CI35: 255 | CJ35: 204 | CK35: 207 | CL35: 3 | CM35: 2.938295788 | CN35: 417 | CO35: 0 | CP35: 251 | CQ35: 11 | CR35: 48.5 | CS35: 0 | CT35: 5.7 | CU35: 0 | CV35: 133.8 | CW35: 2.2 | CX35: 72.9 | CY35: 2.6 | CZ35: 0 | DA35: 317 | DB35: 0 | DC35: 0 | DD35: 15.1 | DE35: 66 | DF35: 0 | DG35: 56.5 | DH35: 7 | DI35: 3 | DJ35: 1409.3 | DL35: 0 | DM35: 0 | DN35: 0 | DO35: 0 | DP35: 0 | DQ35: 0 | DR35: 0 | DS35: 0 | DT35: 0 | DY35: 35.6 | DZ35: 595.7 | EA35: 125.7 | EB35: 757 | EC35: 1010.1 | ED35: -414.4 | EE35: 125.7 | EF35: 556 | EG35: 3 | EH35: 3 | EI35: 0 | EL35: 1007.1 | EM35: -414.4 | EN35: 125.7 | EO35: 556 | EP35: 7 | EQ35: =EL35 -> 1007.1 | ER35: 352.8 | ET35: -1352.9 | EU35: 0 | EV35: -767.2 | EW35: 125.7 | EX35: 1908.9 | EY35: 0 | FA35: -767.2 | FB35: =EW35 -> 125.7 | FC35: 641.5 | FD35: 0 | FE35: 0 | FF35: 0 | FG35: 1267.4 | FH35: 0 | FK35: 0 | FL35: 0 | FM35: 0 | FN35: 0 | FO35: 0 | FP35: 1267.4 | FQ35: 0 | FR35: 0 | FS35: 0 | FT35: 0 | FV35: 148 | FW35: 41 | FX35: 189 | FY35: 0 | FZ35: 389.9118511 | GC35: 398.1 | GD35: 317 | GI35: 15.1 | GJ35: 66 | GK35: 0 | GL35: 398.1 | GN35: 0.5445641528 | GO35: 1.300783546 | GQ35: 0.8643875441 | GR35: 1.000602727 | GT35: 66 | GV35: 57 | GX35: 727.5 | HA35: 136
A36: 29 | B36: Яныльское сельское поселение | C36: 1444 | D36: 286 | E36: 171.1 | F36: 690 | J36: 1100 | N36: 0 | P36: 0 | S36: 2247.1 | T36: 50.4 | U36: 87.9 | V36: 275.2 | W36: 413.5 | AJ36: 16 | AK36: 102.8 | AR36: 21.3 | AT36: 2800.7 | AU36: 5.115907697e-13 | AV36: 1128.6 | AW36: 206.2 | AX36: 16 | AY36: 0 | AZ36: 102.8 | BA36: 0 | BC36: 469.3 | BG36: 863.5 | BH36: 0 | BI36: 0 | BJ36: 0 | BK36: 0 | BL36: 10 | BN36: 4.3 | BP36: 2800.7 | BR36: 0.02812128766 | BS36: 229 | BT36: 649 | BU36: 230 | BV36: 363.1 | BW36: 404 | BX36: 235 | BY36: 50 | BZ36: 325 | CA36: 119 | CB36: 1939.542936 | CC36: 781.5789474 | CD36: 325 | CE36: 0 | CF36: 597.9916898 | CG36: 2.977839335 | CH36: 271 | CI36: 361 | CJ36: 289 | CK36: 260 | CL36: -29 | CM36: -20.08310249 | CN36: 417 | CO36: 0 | CP36: 259 | CQ36: 11 | CR36: 441.6 | CS36: 0 | CT36: 16 | CU36: 0 | CV36: 201.8 | CW36: 4.4 | CX36: 99.3 | CY36: 3.5 | CZ36: 0 | DA36: 235 | DB36: 0 | DC36: 0 | DD36: 234.3 | DE36: 0 | DF36: 0 | DG36: 863.5 | DH36: 10 | DI36: 4.3 | DJ36: 2800.7 | DL36: 0 | DM36: 0 | DN36: 0 | DO36: 0 | DP36: 0 | DQ36: 0 | DR36: 0 | DS36: 0 | DT36: 0 | DY36: 50.4 | DZ36: 87.9 | EA36: 275.2 | EB36: 413.5 | EC36: 1834.4 | ED36: -1746.5 | EE36: 275.2 | EF36: 2247.1 | EG36: 4.3 | EH36: 4.3 | EI36: 0 | EL36: 1830.1 | EM36: -1746.5 | EN36: 275.2 | EO36: 2247.1 | EP36: 10 | EQ36: =EL36 -> 1830.1 | ER36: =726.8-23.4 -> 703.4 | ES36: 23.4 | ET36: -2546.9 | EU36: 0 | EV36: -2449.9 | EW36: 251.8 | EX36: 4794 | EY36: 0 | FA36: -2449.9 | FB36: =EW36 -> 251.8 | FC36: 2198.1 | FD36: 0 | FE36: 0 | FF36: 0 | FG36: 2595.9 | FH36: 0 | FK36: 0 | FL36: 0 | FM36: 0 | FN36: 0 | FO36: 0 | FP36: 2595.9 | FQ36: 0 | FR36: 0 | FS36: 0 | FT36: 0 | FV36: 150 | FW36: 45 | FX36: 195 | FY36: 0 | FZ36: 325 | GC36: 469.3 | GD36: 448 | GI36: 21.3 | GJ36: 0 | GK36: 0 | GL36: 469.3 | GN36: 1.556163435 | GO36: 1.857271468 | GQ36: 2.47010069 | GR36: 1.42867036 | GT36: 0 | GV36: 141 | GX36: 1128.6 | HA36: 206.2
A37: 30 | B37: Ятмас-Дусаевское сельское поселение | C37: 498 | D37: 17 | E37: 21.7 | F37: 110 | J37: 1 | N37: 2.2 | P37: 21 | S37: 172.9 | T37: 17.7 | U37: 838.4 | V37: 123.1 | W37: 979.2 | AJ37: 0.6 | AK37: 32.6 | AR37: 7.7 | AT37: 1193 | AU37: -2.557953849e-13 | AV37: 718.9 | AW37: 139.9 | AX37: 0.6 | AY37: 0 | AZ37: 32.6 | BA37: 0 | BC37: 282.7 | BG37: 11.8 | BH37: 0 | BI37: 0 | BJ37: 0 | BK37: 0 | BL37: 5 | BN37: 1.5 | BP37: =SUM(AV37:BO37) -> 1193 | BQ37: =BP38-AX38-AZ38 -> 85196.7 | BR37: 0.009698338819 | BS37: 231 | BT37: 650 | BU37: 232 | BV37: 961.5 | BW37: 139 | BX37: 129 | BY37: 15 | BZ37: 525.502008 | CA37: -5 | CB37: 2395.582329 | CC37: 1443.574297 | CD37: 525.502008 | CE37: 0 | CF37: 23.69477912 | CG37: 3.012048193 | CH37: =ROUND(C37/($C$38-$C$26)*6360,0) -> 94 | CI37: 125 | CJ37: 100 | CK37: 114 | CL37: 14 | CM37: 28.1124498 | CN37: 444 | CO37: 0 | CP37: 256 | CQ37: 11 | CR37: 7.9 | CS37: 0 | CT37: 0.6 | CU37: 0 | CV37: 138.8 | CW37: 1.1 | CX37: 31.8 | CY37: 0.8 | CZ37: 0 | DA37: 129 | DB37: 0 | DC37: 0 | DD37: 132.7 | DE37: 21 | DF37: 0 | DG37: 11.8 | DH37: 5 | DI37: 1.5 | DJ37: 1193 | DL37: 0 | DM37: 0 | DN37: 0 | DO37: 0 | DP37: 0 | DQ37: 0 | DR37: 0 | DS37: 0 | DT37: 0 | DY37: 17.7 | DZ37: 838.4 | EA37: 123.1 | EB37: 979.2 | EC37: 1338.2 | ED37: -499.8 | EE37: 123.1 | EF37: 172.9 | EG37: 1.5 | EH37: 1.5 | EI37: 0 | EL37: 1336.7 | EM37: -499.8 | EN37: 123.1 | EO37: 172.9 | EP37: 5 | EQ37: 850 | ET37: -845 | EU37: 486.7 | EV37: -499.8 | EW37: 123.1 | EX37: 1017.9 | EY37: 0 | EZ37: 93.9 | FA37: =502-93.9 -> 408.1 | FB37: 0 | FC37: -502 | FD37: 392.8 | FE37: -907.9 | FF37: 123.1 | FG37: 1519.9 | FH37: 0 | FJ37: 104.5 | FK37: =124-104.5 -> 19.5 | FL37: -124 | FM37: 392.8 | FN37: -1012.4 | FO37: 103.6 | FP37: 1643.9 | FQ37: 0 | FR37: 0 | FS37: 0 | FT37: 0 | FV37: 85 | FW37: 8 | FX37: 93 | FY37: 0 | FZ37: 567.6706827 | GC37: 282.7 | GD37: 154 | GG37: 100 | GI37: 7.7 | GJ37: 21 | GK37: 0 | GL37: 282.7 | GN37: 0.347188755 | GO37: 2.328915663 | GQ37: 0.5510932619 | GR37: 1.791473587 | GT37: 23.2 | GV37: 8 | GX37: 718.9 | HA37: 139.9
B38: Итого по поселениям | C38: =SUM(C8:C37) -> 51349 | D38: =SUM(D8:D37) -> 22233 | E38: =SUM(E8:E37) -> 6221 | F38: =SUM(F8:F37) -> 22000 | G38: 0 | H38: 0 | I38: 0 | J38: 1800 | K38: =SUM(K8:K37) -> 0 | L38: 42 | M38: 1500 | N38: 224 | O38: =SUM(O8:O37) -> 0 | P38: =SUM(P8:P37) -> 1760 | Q38: =SUM(Q8:Q37) -> 0 | R38: 0 | S38: 55780 | T38: 1792.9 | U38: 22562 | V38: 4561.8 | W38: 28916.7 | X38: =SUM(X8:X37) -> 0 | Y38: 0 | Z38: 0 | AA38: =SUM(AA8:AA37) -> 0 | AB38: 0 | AC38: =SUM(AC8:AC37) -> 0 | AD38: =SUM(AD8:AD37) -> 0 | AE38: =SUM(AE8:AE37) -> 0 | AF38: 0 | AG38: =SUM(AG8:AG37) -> 0 | AH38: 0 | AI38: =SUM(AI8:AI37) -> 0 | AJ38: =SUM(AJ8:AJ37) -> 100 | AK38: =SUM(AK8:AK37) -> 2352.8 | AL38: =SUM(AL8:AL37) -> 0 | AM38: 0 | AN38: =SUM(AN8:AN37) -> 0 | AO38: =SUM(AO8:AO37) -> 0 | AP38: 0 | AQ38: 0 | AR38: 500 | AS38: 0 | AT38: 87649.5 | AU38: 8.810729923e-13 | AV38: 25216.3 | AW38: =SUM(AW8:AW37) -> 6471.7 | AX38: =SUM(AX8:AX37) -> 100 | AY38: =SUM(AY8:AY37) -> 0 | AZ38: 2352.8 | BA38: 0 | BB38: =SUM(BB8:BB37) -> 0 | BC38: =SUM(BC8:BC37) -> 44985.6 | BD38: =SUM(BD8:BD37) -> 0 | BE38: 0 | BF38: =SUM(BF8:BF37) -> 0 | BG38: =SUM(BG8:BG37) -> 3660.1 | BH38: 0 | BI38: 0 | BJ38: =SUM(BJ8:BJ37) -> 0 | BK38: =SUM(BK8:BK37) -> 0 | BL38: 375 | BM38: 4388 | BN38: 100 | BO38: =SUM(BO8:BO37) -> 0 | BP38: 87649.5 | BQ38: =SUM(BL38:BN38) -> 4863 | BR38: 1 | BV38: =SUM(BV8:BV37) -> 27123.8 | BW38: =SUM(BW8:BW37) -> 9483 | BX38: 13593.4 | BY38: =SUM(BY8:BY37) -> 744 | BZ38: =SUM(BZ8:BZ37) -> 12852.7377 | CA38: 1251.6 | CB38: 1706.936844 | CC38: 491.0767493 | CD38: =BC38/$C38*1000 -> 876.0754835 | CE38: 0 | CF38: 71.2788954 | CG38: 1.947457594 | CH38: =SUM(CH8:CH37) -> 9641 | CI38: =SUM(CI8:CI37) -> 25192 | CJ38: =SUM(CJ8:CJ37) -> 10272 | CK38: =SUM(CK8:CK37) -> 6885 | CL38: =CK38-CJ38 -> -3387 | CM38: -65.96038871 | CN38: =SUM(CN8:CN37) -> 12444 | CO38: 230 | CP38: 9273 | CQ38: 1038 | CR38: 2231.3 | CS38: 0 | CT38: 100 | CU38: 596 | CV38: 5775.8 | CW38: =SUM(CW8:CW37) -> 99.9 | CX38: =SUM(CX8:CX37) -> 2147.6 | CY38: 205.2 | CZ38: 2060 | DA38: 13593.4 | DB38: 0 | DC38: 2000 | DD38: 25572.2 | DE38: =SUM(DE8:DE37) -> 1760 | DF38: =SUM(DF8:DF37) -> 4388 | DG38: 3660.1 | DH38: 375 | DI38: 100 | DJ38: 87649.5 | DL38: =SUM(DL8:DL37) -> 0 | DM38: =SUM(DM8:DM37) -> 0 | DN38: =SUM(DN8:DN37) -> 0 | DO38: =SUM(DO8:DO37) -> 0 | DP38: =SUM(DP8:DP37) -> 0 | DQ38: 0 | DR38: 0 | DS38: =SUM(DS8:DS37) -> 0 | DT38: 0 | DY38: =SUM(DY8:DY37) -> 1792.9 | DZ38: 22562 | EA38: 4561.8 | EB38: 28916.7 | EC38: 50683.1 | ED38: -28121.1 | EE38: 4561.8 | EF38: 55780 | EG38: 100 | EH38: 5727.6 | EI38: -141.7 | EJ38: 6684.4 | EK38: 0 | EL38: 44955.5 | EM38: -27979.4 | EN38: -2122.6 | EO38: 55780 | EP38: 375 | EQ38: 41061 | ER38: 8415.4 | ES38: 1276.4 | ET38: -50377.8 | EU38: 3894.5 | EV38: -36394.8 | EW38: -3399 | EX38: 106157.8 | EY38: 0 | EZ38: 1057.9 | FA38: -31315.4 | FB38: -1812.2 | FC38: 32069.7 | FD38: 2836.6 | FE38: -5079.4 | FF38: -1586.8 | FG38: 74088.1 | FH38: 0 | FI38: 0 | FJ38: 618.6 | FK38: 2927.5 | FL38: -3546.1 | FM38: 2836.6 | FN38: -5698 | FO38: -4514.3 | FP38: 77634.2 | FQ38: 0 | FR38: 0 | FS38: 0 | FT38: 0 | FV38: =SUM(FV8:FV37) -> 12887 | FW38: =SUM(FW8:FW37) -> 0 | FX38: =SUM(FX8:FX37) -> 12887 | GC38: =SUM(GC8:GC37) -> 45212.8 | GD38: =SUM(GD8:GD37) -> 10500 | GE38: 850 | GF38: 925 | GG38: 440 | GH38: 1809.7 | GI38: 500 | GJ38: 1760 | GK38: -227.2 | GL38: 44985.6 | GN38: =(S38-S26)/(C38-C26) -> 0.5463920874 | GO38: =(BP38-AJ38-AK38-S26)/(C38-C26) -> 1.41490995 | GQ38: =SUM(GQ8:GQ37)/29 -> 0.8499853495 | GR38: =SUM(GR8:GR37)/29 -> 1.218300159 | GT38: =SUM(GT8:GT37) -> 3484 | GV38: =SUM(GV8:GV37) -> 20295 | GW38: 1785059.14 | GX38: 25216.3 | GY38: 0 | GZ38: 0 | HA38: 6471.7 | HB38: 0 | HC38: 0 | HD38: 0
DJ39: =BP38-DJ38 -> 0 | EG39: =SUM(EH38:EK38) -> 12270.3 | EL39: =EC38-EH38 -> 44955.5 | EM39: =ED38-EI38 -> -27979.4 | EN39: =EE38-EJ38 -> -2122.6 | EP39: =SUM(EQ38:ET38) -> 375 | EY39: =SUM(EZ38:FC38) -> 0 | FH39: =SUM(FI38:FL38) -> 0 | GN39: =S39/C39 -> 
B40: Муниципальный район | D40: =275000-D38 -> 252767 | G40: 20115 | H40: 6674 | I40: 229 | J40: =3600-J38 -> 1800 | K40: 3625 | L40: =16690.6+74 -> 16764.6 | M40: =3546-760 -> 2786 | N40: =711-N38 -> 487 | P40: 0 | Q40: 2422 | R40: 500 | S40: =SUM(D40:R40) -> 308169.6 | X40: 69862.1 | Y40: 25023.8 | Z40: 241662.7 | AA40: =1342.8+450.1 -> 1792.9 | AB40: =268287.8 -> 268287.8 | AC40: 68240.6 | AD40: 506.5 | AE40: 244.9 | AF40: 255.7 | AG40: =2045.2+56.4 -> 2101.6 | AH40: 16.9 | AI40: 255.7 | AJ40: 1654 | AK40: 2352.8 | AL40: 28.7 | AM40: 4828.8 | AN40: 55.9 | AO40: 715.6 | AP40: 689.5 | AQ40: =0.37+3 -> 3.37 | AS40: =BL38+BN38+BM38 -> 4863 | AT40: =SUM(S40:AS40) -> 1001612.47 | AU40: =AT40-BP40 -> 0 | AV40: 32821 | AW40: 10584.6 | AX40: 1554 | AY40: 2037.67 | AZ40: 0 | BA40: 1144.2 | BB40: 18792.2 | BC40: 23551.1 | BD40: 500 | BE40: 753038.2 | BF40: 12408.4 | BG40: 93636.9 | BH40: 689.5 | BI40: 17587 | BJ40: 1398.2 | BK40: 0 | BO40: =W38+AJ38+AK38+AR38 -> 31869.5 | BP40: =SUM(AV40:BO40) -> 1001612.47 | DM40: =SUM(DL38:DO38) -> 0 | DQ40: =SUM(DP38:DT38) -> 0 | EG40: =EG38-EG39 -> -12170.3 | EL40: =EL38-EL39 -> 0 | EM40: =EM38-EM39 -> 0 | EN40: =EN38-EN39 -> 0 | EP40: =EP38-EP39 -> 7.275957614e-12 | GN40: =S40/C40 ->  | GV40: =271000-GV38 -> 250705
AT41: =SUM(X40:AQ40) -> 688579.87 | BQ41: =SUM(BP42-BN40) -> 1089261.97 | GN41: =S41/C41 -> 
B42: Всего консолидиров. | C42: =SUM(C38)+C40 -> 51349 | D42: =SUM(D38)+D40 -> 275000 | E42: =SUM(E38)+E40 -> 6221 | F42: =SUM(F38)+F40 -> 22000 | G42: =SUM(G38)+G40 -> 20115 | H42: 6674 | I42: 229 | J42: 3600 | K42: 3625 | L42: 16806.6 | M42: 4286 | N42: 711 | O42: 0 | P42: 1760 | Q42: 2422 | R42: 500 | S42: 363949.6 | T42: 1792.9 | U42: 22562 | V42: 4561.8 | W42: 28916.7 | X42: 69862.1 | Y42: 25023.8 | Z42: 241662.7 | AA42: =SUM(AA38)+AA40 -> 1792.9 | AB42: 268287.8 | AC42: =SUM(AC38)+AC40 -> 68240.6 | AD42: 506.5 | AE42: 244.9 | AF42: 255.7 | AG42: 2101.6 | AH42: 16.9 | AI42: 255.7 | AJ42: =SUM(AJ38)+AJ40 -> 1754 | AK42: 4705.6 | AL42: 28.7 | AM42: 4828.8 | AN42: =SUM(AN38)+AN40 -> 55.9 | AO42: =SUM(AO38)+AO40 -> 715.6 | AP42: =SUM(AP38)+AP40 -> 689.5 | AQ42: =SUM(AQ38)+AQ40 -> 3.37 | AR42: 500 | AS42: 4863 | AT42: 1089261.97 | AU42: 8.810729923e-13 | AV42: 58037.3 | AW42: 17056.3 | AX42: =SUM(AX38)+AX40 -> 1654 | AY42: =SUM(AY38)+AY40 -> 2037.67 | AZ42: 2352.8 | BA42: 1144.2 | BB42: 18792.2 | BC42: 68536.7 | BD42: =SUM(BD38)+BD40 -> 500 | BE42: 753038.2 | BF42: =SUM(BF38)+BF40 -> 12408.4 | BG42: 97297 | BH42: 689.5 | BI42: 17587 | BJ42: =SUM(BJ38)+BJ40 -> 1398.2 | BK42: =SUM(BK38)+BK40 -> 0 | BL42: 375 | BM42: 4388 | BN42: 100 | BO42: 31869.5 | BP42: 1089261.97 | BQ42: =SUM(BQ41+BN40) -> 1089261.97 | GN42: =S42/C42 -> 7.087764124 | GV42: =SUM(GV38)+GV40 -> 271000
B43: =ROUND(D42*0.1,0) -> 27500 | D43: 41250 | E43: =S40-D44 -> 74419.6 | F43: =E43*0.5 -> 37209.8 | G43: =E43*0.05 -> 3720.98 | I43: 109260.9 | K43: 247054.6 | L43: дот | S43: =S42-D44 -> 130199.6 | AQ43: дотации | AT43: =X40 -> 69862.1 | AV43: =SUM(AV40:AY40) -> 46997.27 | BP43: =SUM(AV42:BK42) -> 1052529.47 | BQ43: =BP42-BL42-BM42-BN42-BO42-BP43 -> 0 | GC43: =BC38-BC26 -> 15185.4 | GV43: 40650
B44: =B43-D38 -> 5267 | C44: =C38-C26 -> 33870 | D44: =D42-D43 -> 233750 | I44: =S42+D43-D38-D40 -> 130199.6 | K44: 16704.6 | L44: ден | M44: неналоговые | Q44: =SUM(M42:R42) -> 9679 | S44: =S42-D45 -> 130199.6 | U44: 17561.5 | V44: =U44-V2 -> -9562.3 | AQ44: субсидии | AT44: =SUM(Y40:Z40) -> 266686.5 | AV44: =SUM(AV38:AX38) -> 31788 | AW44: =SUM(AV45:AY45) -> 78785.27 | BP44: =BP42-AT45-BL42-BM42-BO42+AA40-AC40-AP40-BN42 -> 633377.9 | GV44: =GV42-GV43 -> 230350
D45: =ROUND(D42*0.85,1) -> 233750 | G45: =D42*0.15 -> 41250 | I45: =I43-I44 -> -20938.7 | J45: =($J$42-$J$26*2)*0.3+$J$26 -> 1116.2 | K45: =K43-K44 -> 230350 | L45: допнорм | O45: 11500 | P45: 1455 | Q45: =SUM(O45:P45) -> 12955 | S45: 286292 | AI45: =AT42-AR40-W38-AJ38-AK38 -> 1057892.47 | AM45: 75364.6 | AQ45: субвенции | AT45: =SUM(AA40:AQ40)-AH40 -> 352014.37 | AV45: =SUM(AV47:AV53) -> 58037.3 | AW45: 17056.3 | AX45: 1654 | AY45: 2037.67 | AZ45: 2352.8 | BA45: 1144.2 | BB45: =SUM(BB47:BB53) -> 18792.2 | BC45: 68536.7 | BD45: 500 | BE45: =SUM(BE47:BE53) -> 753038.2 | BF45: 12408.4 | BG45: 97297 | BH45: 689.5 | BI45: 17587 | BJ45: 1398.2 | BK45: 0 | BL45: 0 | BM45: 0 | BN45: 0 | BO45: 0 | BP45: =SUM(AV45:BO45) -> 1052529.47 | BQ45: 1074481.187 | GV45: =ROUND(GV42*0.85,1) -> 230350
J46: =($J$42-$J$26*2)*0.5+$J$26 -> 1800 | Q46: =Q45-Q44 -> 3276 | S46: =S45-S42 -> -77657.6 | AI46: =521391.9+AT45+AT46 -> 873423.17 | AM46: =AT38-AM45 -> 12284.9 | AQ46: иные мюжб трансферты | AT46: =AH40 -> 16.9 | AV46: =AV42-AV45 -> 0 | AW46: =AW42-AW45 -> 0 | AX46: 0 | AY46: 0 | AZ46: 0 | BA46: 0 | BB46: 0 | BC46: =BC42-BC45 -> 0 | BD46: =BD42-BD45 -> 0 | BE46: 0 | BF46: =BF42-BF45 -> 0 | BG46: =BG42-BG45 -> 0 | BH46: 0 | BI46: 0 | BJ46: 0 | BK46: 0 | BP46: 0
D47: =29185-D38 -> 6952 | J47: =J46-J45 -> 683.8 | U47: 22562 | V47: 4561.8 | W47: 28916.7 | AE47: =W38+AJ38+AK38-BO40 -> -500 | AI47: =AI46-AI45 -> -184469.3 | AM47: 1757.7 | AO47: =AT42-SUM(W38:AS38)-AR40 -> 1057392.47 | AP47: =AT47+D44 -> 922329.87 | AQ47: итого из РТ | AT47: =SUM(AT43:AT46) -> 688579.87 | AU47: имущ р | AV47: 502.1 | BE47: =14162.2+4562.1+1348.5-2349.4-803.2-6.7-379 -> 16534.5 | BF47: 197.8 | BG47: 943 | BP47: 18177.4 | BQ47: 23204.1 | BR47: =BQ47-BP47-BP48 -> 0 | HA47: =BQ47-BQ48 -> 0
U48: =U38-U47 -> 0 | V48: 0 | W48: =W38-W47 -> 0 | AM48: =AM46-AM47 -> 10527.2 | AO48: =AT43+AT44+S42 -> 700498.2 | AR48: допнорматив | AT48: =D44 -> 233750 | AU48: имущ с | AV48: 1366.6 | BG48: 3660.1 | BP48: =SUM(AV48:BO48) -> 5026.7 | BQ48: =BP47+BP48 -> 23204.1 | GV48: =BQ47-BQ48 -> 0
D49: =D38-D26 -> 3366 | AP49: =S42+AT47+BO40+BM38 -> 1088786.97 | AR49: всего | AT49: =SUM(AT47:AT48) -> 922329.87 | AU49: экол р | AV49: 1.6 | AW49: 2 | BE49: =698.6-8.4-0.5+1-2.8 -> 687.9 | BF49: 4 | BG49: 63.9 | BP49: 759.4 | BQ49: 774.6 | BR49: =BQ49-BP49-BP50 -> -6.75015599e-14 | HA49: =BQ49-BQ50 -> 0
AO50: конс | AP50: =338641+587822.57+2063+20900+700.794+4443.645 -> 954571.009 | AT50: =S43 -> 130199.6 | AU50: экол с | AV50: 0.5 | AW50: 14.7 | BP50: 15.2 | BQ50: =SUM(BP49:BP50) -> 774.6 | GV50: =BQ49-BQ50 -> 0
AO51: =AP50-AP51 -> -98458.461 | AP51: =AT42-W38-AJ38-AK38-AR40-AS40 -> 1053029.47 | AR51: конс | AT51: =SUM(AT49:AT50) -> 1052529.47 | AU51: ку | BP51: 0 | BQ51: =BP52+BQ47+BQ49 -> 702291.1
AP52: =SUM(AT43:AT44) -> 336548.6 | AT52: собственные+ дотации, субсидии | AV52: =50392.1+5845.7-100 -> 56137.8 | AW52: 17039.6 | BA52: =1044.2+100 -> 1144.2 | BB52: 16690.6 | BC52: 68536.7 | BD52: 500 | BE52: 394458.6 | BF52: 12206.6 | BG52: 92613.1 | BH52: 0 | BI52: =7872+9715 -> 17587 | BJ52: 1398.2 | BO52: =SUM(W41:AS41) -> 0 | BP52: 678312.4 | BQ52: =BP52+BQ48+BQ50-S42-AT43-AT44 -> 1792.9
AT53: субвенции+иные | AV53: =AL40 -> 28.7 | AX53: =AJ40 -> 1654 | AY53: =AD40+AE40+AF40+AI40+AN40+AO40+AQ40 -> 2037.67 | AZ53: =AK40 -> 2352.8 | BB53: =AG40 -> 2101.6 | BE53: =AB40+AM40+AC40 -> 341357.2 | BG53: =AH40 -> 16.9 | BH53: =AP40 -> 689.5 | BP53: =SUM(AU53:BO53) -> 350238.37 | BQ53: =BP53-AT45-AT46 -> -1792.9 | BR53: =BR55-BP38 -> 1001137.47
BD54: без имц | BE54: =BE45-AM42 -> 748209.4 | BP54: =BQ48+BQ49 -> 23978.7 | BR54: =BR55-BP42 -> -475
BN55: льготы жку | BO55: компродвз | BP55: =BP52+BP54 -> 702291.1 | BQ55: =BP53+BP55 -> 1052529.47 | BR55: =BQ55+BO40+4388 -> 1088786.97
BN56: 4987.8 | BO56: 9715 | BP56: =BP43-AT45-AT46-BN56-BO56 -> 685795.4 | BQ56: секвестр10%

Sheet свод16 (hidden)
B4: Расшифровка бюджета на 2016 год по подразделам
H5: =H6-H13 -> 0 | I5: =I6-I13 -> 0 | J5: =J6-J13 -> 0
H6: =SUM(I6:J6) -> 1089261.97 | I6: 1001612.47 | J6: 87649.5
A7: № учреждения | C7: К О Д Ы | H7: всего расходов (консолидированный), тысяч рублей | I7: всего расходов райбюджет, тысяч рублей | J7: всего расходов село, тысяч рублей
C8: функц-ной классификации
B9: Наименование показателя | C9: ведомство | D9: раз-дел | E9: под-раз-дел | F9: целевая статья | G9: вид рас- хода
A12: 1 | B12: 2 | C12: 3 | D12: 4 | E12: 5 | F12: 6 | G12: 7 | H12: 9 | I12: 10 | J12: 10
B13: ИТОГО | H13: =SUBTOTAL(9,H15:H286) -> 1089261.97 | I13: =SUBTOTAL(9,I15:I286) -> 1001612.47 | J13: =SUBTOTAL(9,J15:J286) -> 87649.5
A15: 1 | B15: Главы образований 100 | C15: 602 | D15: 01 | E15: 02 | F15: 9900002030 | G15: 100 | H15: 14055 | I15: 1611 | J15: 12444 | K15: =C15&F15&ROUND(G15,-2) -> 6029900002030100 | N15: 0
A16: 2 | B16: Функционирование законодательных органов100 | C16: 602 | D16: 01 | E16: 03 | F16: 9900002040 | G16: 100 | H16: 4932 | I16: 4702 | J16: 230 | K16: =C16&F16&ROUND(G16,-2) -> 6029900002040100 | N16: 0
A17: 3 | B17: Функционирование законодательных органов200 | C17: 602 | D17: 01 | E17: 03 | F17: 9900002040 | G17: 200 | H17: 777 | I17: 777 | J17: 0 | K17: 6029900002040200 | N17: 0
A18: 4 | B18: Функционирование законодательных органов400 | C18: 602 | D18: 01 | E18: 03 | F18: 9900002040 | G18: 400 | H18: 0 | I18: 0 | J18: 0 | K18: 6029900002040400 | N18: 0
A19: 5 | B19: Функционирование законодательных органов800 | C19: 602 | D19: 01 | E19: 03 | F19: 9900002950 | G19: 800 | H19: 176.9 | I19: 176.9 | J19: 0 | K19: 6029900002950800 | N19: 0
A20: 6 | B20: Функционирование местных администраций100 | C20: 601 | D20: 01 | E20: 04 | F20: 9900002040 | G20: 100 | H20: 18338.9 | I20: 9065.9 | J20: 9273 | K20: 6019900002040100 | N20: -180.7
A21: 7 | B21: Функционирование местных администраций200 | C21: 601 | D21: 01 | E21: 04 | F21: 9900002040 | G21: 200 | H21: 2173 | I21: 1135 | J21: 1038 | K21: 6019900002040200 | N21: 0
A22: 8 | B22: Функционирование местных администраций400 | C22: 601 | D22: 01 | E22: 04 | F22: 9900002040 | G22: 400 | H22: 0 | I22: 0 | J22: 0 | K22: 6019900002040400 | N22: 0
A23: 9 | B23: Другие вопросы в упарвлении200 | C23: 601 | D23: 01 | E23: 13 | F23: 0 | G23: 200 | H23: 0 | I23: 0 | J23: 0 | K23: =C23&D23&E23&F23&ROUND(G23,-2) -> 60101130200 | N23: 0
A24: 10 | B24: Другие вопросы в упарвлении400 | C24: 601 | D24: 01 | E24: 13 | F24: 0 | G24: 400 | H24: 0 | I24: 0 | J24: 0 | K24: 60101130400 | N24: 0
A25: 11 | B25: Функционирование местных администраций800 | C25: 601 | D25: 01 | E25: 04 | F25: 9900002950 | G25: 800 | H25: 2530.7 | I25: 299.4 | J25: 2231.3 | K25: =C25&F25&ROUND(G25,-2) -> 6019900002950800 | N25: 2.8
A26: 12 | B26: Функционирование местных администраций (УО)100 | C26: 611 | D26: 01 | E26: 04 | F26: 9900002040 | G26: 100 | H26: 1281.4 | I26: 1281.4 | J26: 0 | K26: 6119900002040100 | N26: 0
A27: 13 | B27: Функционирование местных администраций (УО)200 | C27: 611 | D27: 01 | E27: 04 | F27: 9900002040 | G27: 200 | H27: 67 | I27: 67 | J27: 0 | K27: 6119900002040200 | N27: 0
A28: 14 | B28: Функционирование местных администраций (УО)400 | C28: 611 | D28: 01 | E28: 04 | F28: 9900002040 | G28: 400 | H28: 0 | I28: 0 | J28: 0 | K28: 6119900002040400 | N28: 212.9
A29: 15 | B29: Функционирование местных администраций (УО)800 | C29: 611 | D29: 01 | E29: 04 | F29: 9900002950 | G29: 800 | H29: 41.4 | I29: 41.4 | J29: 0 | K29: 6119900002950800 | N29: 0
A30: 16 | B30: Функционирование местных администраций (УДМС)100 | C30: 612 | D30: 01 | E30: 04 | F30: 9900002040 | G30: 100 | H30: 682.4 | I30: 682.4 | J30: 0 | K30: 6129900002040100 | N30: 0
A31: 17 | B31: Функционирование местных администраций (УДМС)200 | C31: 612 | D31: 01 | E31: 04 | F31: 9900002040 | G31: 200 | H31: 0 | I31: 0 | J31: 0 | K31: 6129900002040200 | N31: 0
A32: 18 | B32: Функционирование местных администраций (УДМС)400 | C32: 612 | D32: 01 | E32: 04 | F32: 9900002040 | G32: 400 | H32: 0 | I32: 0 | J32: 0 | K32: 6129900002040400 | N32: -35
A33: 19 | B33: Функционирование местных администраций (УДМС)800 | C33: 612 | D33: 01 | E33: 04 | F33: 9900002950 | G33: 800 | H33: 7.1 | I33: 7.1 | J33: 0 | K33: 6129900002950800 | N33: 0
A34: 20 | B34: Функционирование местных администраций (УК)100 | C34: 613 | D34: 01 | E34: 04 | F34: 9900002040 | G34: 100 | H34: 783 | I34: 783 | J34: 0 | K34: 6139900002040100 | N34: 0
A35: 21 | B35: Функционирование местных администраций (УК)200 | C35: 613 | D35: 01 | E35: 04 | F35: 9900002040 | G35: 200 | H35: 0 | I35: 0 | J35: 0 | K35: 6139900002040200 | N35: 0
A36: 22 | B36: Функционирование местных администраций (УК)400 | C36: 613 | D36: 01 | E36: 04 | F36: 9900002040 | G36: 400 | H36: 0 | I36: 0 | J36: 0 | K36: 6139900002040400 | N36: 0
A37: 23 | B37: Функционирование местных администраций (УК)800 | C37: 613 | D37: 01 | E37: 04 | F37: 9900002950 | G37: 800 | H37: 0 | I37: 0 | J37: 0 | K37: 6139900002950800 | N37: 0
A38: 24 | B38: КСП100 | C38: 603 | D38: 01 | E38: 06 | F38: 9900002040 | G38: 100 | H38: 428 | I38: 428 | J38: 0 | K38: 6039900002040100 | N38: 0
A39: 25 | B39: КСП200 | C39: 603 | D39: 01 | E39: 06 | F39: 9900002040 | G39: 200 | H39: 25 | I39: 25 | J39: 0 | K39: 6039900002040200 | N39: 0
A40: 26 | B40: КСП400 | C40: 603 | D40: 01 | E40: 06 | F40: 9900002040 | G40: 400 | H40: 0 | I40: 0 | J40: 0 | K40: 6039900002040400 | N40: 0
A41: 27 | B41: ФБП100 | C41: 605 | D41: 01 | E41: 06 | F41: 1800102040 | G41: 100 | H41: 3346 | I41: 3346 | J41: 0 | K41: 6051800102040100 | N41: 0
A42: 28 | B42: ФБП200 | C42: 605 | D42: 01 | E42: 06 | F42: 1800102040 | G42: 200 | H42: 421 | I42: 421 | J42: 0 | K42: 6051800102040200 | N42: 0
A43: 29 | B43: ФБП400 | C43: 605 | D43: 01 | E43: 06 | F43: 1800102040 | G43: 400 | H43: 0 | I43: 0 | J43: 0 | K43: 6051800102040400 | N43: 0
A44: 30 | B44: ФБП500 | C44: 605 | D44: 01 | E44: 06 | F44: 1800102040 | G44: 500 | H44: 0 | I44: 0 | J44: 0 | K44: 6051800102040500 | N44: -1134.351
A45: 31 | B45: ФБП800 | C45: 605 | D45: 01 | E45: 06 | F45: 1800102950 | G45: 800 | H45: 0.7 | I45: 0.7 | J45: 0 | K45: 6051800102950800 | N45: 0
A46: 32 | B46: Обслуживание долга800 | C46: 605 | D46: 13 | E46: 01 | F46: 0650300 | G46: 800 | H46: 0 | I46: 0 | J46: 0 | K46: 60513010650300800 | N46: 0
A47: 33 | B47: Резервные фонды 800 | C47: 601 | D47: 01 | E47: 11 | F47: 9900007410 | G47: 800 | H47: 5845.7 | I47: 5845.7 | J47: 0 | K47: =C47&F47&ROUND(G47,-2) -> 6019900007410800 | N47: 0
A48: 34 | B48: Палата имущественных и земельных отношений100 | C48: 606 | D48: 01 | E48: 13 | F48: 1600102040 | G48: 100 | H48: 1216 | I48: 1216 | J48: 0 | K48: 6061600102040100 | N48: 0
A49: 35 | B49: Палата имущественных и земельных отношений200 | C49: 606 | D49: 01 | E49: 13 | F49: 1600102040 | G49: 200 | H49: 112 | I49: 112 | J49: 0 | K49: 6061600102040200 | N49: 0
A50: 36 | B50: Палата имущественных и земельных отношений400 | C50: 606 | D50: 01 | E50: 13 | F50: 1600102040 | G50: 400 | H50: 0 | I50: 0 | J50: 0 | K50: 6061600102040400 | N50: 146.943
A51: 37 | B51: Палата имущественных и земельных отношений800 | C51: 606 | D51: 01 | E51: 13 | F51: 1600102040 | G51: 800 | H51: 35 | I51: 35 | J51: 0 | K51: 6061600102040800 | N51: -138.663
A52: 38 | B52: ЗАГС100 | C52: 601 | D52: 01 | E52: 13 | F52: 9900059300 | G52: 100 | H52: 831 | I52: 831 | J52: 0 | K52: 6019900059300100 | N52: 0
A53: 39 | B53: ЗАГС200 | C53: 601 | D53: 01 | E53: 13 | F53: 9900059300 | G53: 200 | H53: 823 | I53: 723 | J53: 100 | K53: 6019900059300200 | N53: 1134.351
A54: 40 | B54: ЗАГС400 | C54: 601 | D54: 01 | E54: 13 | F54: 9900059300 | G54: 400 | H54: 0 | I54: 0 | J54: 0 | K54: 6019900059300400 | N54: 0
A55: 41 | B55: Централизованная бухгалтерияПИЗО100 | C55: 606 | D55: 01 | E55: 13 | F55: 1800129900 | G55: 100 | H55: 220 | I55: 220 | J55: 0 | K55: 6061800129900100 | N55: 0
A56: 42 | B56: Централизованная бухгалтерия100 | C56: 601 | D56: 01 | E56: 13 | F56: 1800129900 | G56: 100 | H56: 9892.6 | I56: 9296.6 | J56: 596 | K56: 6011800129900100 | N56: 0
A57: 43 | B57: Централизованная бухгалтерия200 | C57: 601 | D57: 01 | E57: 13 | F57: 1800129900 | G57: 200 | H57: 6840.8 | I57: 1065 | J57: 5775.8 | K57: 6011800129900200 | N57: 0
A58: 44 | B58: Централизованная бухгалтерия400 | C58: 601 | D58: 01 | E58: 13 | F58: 1800129900 | G58: 400 | H58: 0 | I58: 0 | J58: 0 | K58: 6011800129900400 | N58: 0
A59: 45 | B59: Централизованная бухгалтерия800 | C59: 601 | D59: 01 | E59: 13 | F59: 1800102950 | G59: 800 | H59: 102.7 | I59: 2.8 | J59: 99.9 | K59: 6011800102950800 | N59: 0
A60: 46 | B60: Архивный отдел100 | C60: 601 | D60: 01 | E60: 13 | F60: 08Е0144020 | G60: 100 | H60: 579 | I60: 579 | J60: 0 | K60: 60108Е0144020100 | N60: 0
A61: 47 | B61: Архивный отдел200 | C61: 601 | D61: 01 | E61: 13 | F61: 08Е0144020 | G61: 200 | H61: 47 | I61: 47 | J61: 0 | K61: 60108Е0144020200 | N61: 0
A62: 48 | B62: Архивный отдел400 | C62: 601 | D62: 01 | E62: 13 | F62: 08Е0144020 | G62: 400 | H62: 0 | I62: 0 | J62: 0 | K62: 60108Е0144020400 | N62: 0
A63: 49 | B63: Военкомат100 | C63: 601 | D63: 02 | E63: 03 | F63: 9900051180 | G63: 100 | H63: 2147.6 | I63: 0 | J63: 2147.6 | K63: 6019900051180100 | N63: 0
A64: 50 | B64: Военкомат200 | C64: 601 | D64: 02 | E64: 03 | F64: 9900051180 | G64: 200 | H64: 205.2 | I64: 0 | J64: 205.2 | K64: 6019900051180200 | N64: 0
A65: 51 | B65: Военкомат400 | C65: 601 | D65: 02 | E65: 03 | F65: 9900051180 | G65: 400 | H65: 0 | I65: 0 | J65: 0 | K65: 6019900051180400 | N65: 0
A66: 52 | B66: Военкомат800 | C66: 601 | D66: 02 | E66: 03 | F66: 9900051180 | G66: 800 | H66: 0 | I66: 0 | J66: 0 | K66: 6019900051180800 | N66: 0
A67: 53 | B67: МЧС200 | C67: 601 | D67: 03 | E67: 09 | F67: 0720107420 | G67: 200 | H67: 100 | I67: 100 | J67: 0 | K67: 6010720107420200 | N67: 0
A68: 54 | B68: МЧС400 | C68: 601 | D68: 03 | E68: 09 | F68: 0720107420 | G68: 400 | H68: 0 | I68: 0 | J68: 0 | K68: 6010720107420400 | N68: 0
A69: 55 | B69: Экология200 | C69: 605 | D69: 06 | E69: 03 | F69: 0910119100 | G69: 200 | H69: 500 | I69: 500 | J69: 0 | K69: 6050910119100200 | N69: -8.28
A70: 56 | B70: Экология400 | C70: 605 | D70: 06 | E70: 03 | F70: 0910119100 | G70: 400 | H70: 0 | I70: 0 | J70: 0 | K70: 6050910119100400 | N70: 0
A71: 57 | B71: Капремонт жилфонда200 | C71: 601 | D71: 05 | E71: 01 | F71: 0490176030 | G71: 200 | H71: 2060 | I71: 0 | J71: 2060 | K71: 6010490176030200 | N71: 0
A72: 58 | B72: Инвентаризация жилого фонда200 | C72: 601 | D72: 05 | E72: 01 | F72: 0480476040 | G72: 200 | H72: 107 | I72: 107 | J72: 0 | K72: 6010480476040200 | N72: 0
A73: 59 | B73: Подпрограмма «Повышение безопасности дорожного движения Кукморского муниципального района Республики Татарстан на 2015 год»200 | C73: 601 | D73: 05 | E73: 03 | F73: 0620178020 | G73: 200 | H73: 1500 | I73: 1500 | J73: 0 | K73: 6010620178020200 | N73: 0
A74: 60 | B74: Уличное освещение200 | C74: 601 | D74: 05 | E74: 03 | F74: 0490278010 | G74: 200 | H74: 13593.4 | I74: 0 | J74: 13593.4 | K74: 6010490278010200 | N74: 0
A75: 61 | B75: Содержание автомобильных дорог200 | C75: 601 | D75: 04 | E75: 09 | F75: 0490278020 | G75: 200 | H75: 0 | I75: 0 | J75: 0 | K75: 6010490278020200 | N75: 0
A76: 62 | B76: Озеленение200 | C76: 601 | D76: 05 | E76: 03 | F76: 0490278030 | G76: 200 | H76: 2000 | I76: 0 | J76: 2000 | K76: 6010490278030200 | N76: 0
A77: 63 | B77: Муниципальная программа "Организация и содержаение мест захоронения"200 | C77: 601 | D77: 05 | E77: 03 | F77: 0490278040 | G77: 200 | H77: 1155 | I77: 1155 | J77: 0 | K77: 6010490278040200 | N77: 0
A78: 64 | B78: Прочие мероприятия по благоустройству200 | C78: 601 | D78: 05 | E78: 03 | F78: 0490278050 | G78: 200 | H78: 41973.3 | I78: 16401.1 | J78: 25572.2 | K78: 6010490278050200 | N78: 0
A79: 65 | B79: Водонапорные башни200 | C79: 601 | D79: 05 | E79: 02 | F79: 0490378050 | G79: 200 | H79: 1760 | I79: 0 | J79: 1760 | K79: 6010490378050200 | N79: 0
A80: 66 | B80: Субвенция по соглашениям (КРЖФ)500 | C80: 605 | D80: 05 | E80: 01 | F80: 0450196010 | G80: 500 | H80: 4388 | I80: 0 | J80: 4388 | K80: 6050450196010500 | N80: 0
A81: 67 | B81: Детсады100 | C81: 611 | D81: 07 | E81: 01 | F81: 0210342000 | G81: 100 | H81: 84288.6425 | I81: 84288.6425 | J81: 0 | K81: =C81&D81&E81&F81 -> 61107010210342000 | N81: 0
A82: 68 | B82: Детсады200 | C82: 611 | D82: 07 | E82: 01 | F82: 0210342000 | G82: 200 | H82: 3835.947 | I82: 3835.947 | J82: 0 | K82: =C82&D82&E82&F82 -> 61107010210342000 | N82: 0
A83: 69 | B83: Детсады300 | C83: 611 | D83: 07 | E83: 01 | F83: 0210342000 | G83: 300 | H83: 0 | I83: 0 | J83: 0 | K83: 61107010210342000 | N83: 0
A84: 70 | B84: Детсады400 | C84: 611 | D84: 07 | E84: 01 | F84: 0210342000 | G84: 400 | H84: 0 | I84: 0 | J84: 0 | K84: 61107010210342000 | N84: 0
A85: 71 | B85: Детсады800 | C85: 611 | D85: 07 | E85: 01 | F85: 0210342000 | G85: 800 | H85: 2924.7 | I85: 2924.7 | J85: 0 | K85: 61107010210342000 | N85: 0
A86: 72 | B86: Школы100 | C86: 611 | D86: 07 | E86: 02 | F86: 0220242100 | G86: 100 | H86: 164164.8594 | I86: 164164.8594 | J86: 0 | K86: 61107020220242100 | N86: 0
A87: 73 | B87: Школы200 | C87: 611 | D87: 07 | E87: 02 | F87: 0220242100 | G87: 200 | H87: 63043.08637 | I87: 63043.08637 | J87: 0 | K87: 61107020220242100 | N87: 0
A88: 74 | B88: Школы400 | C88: 611 | D88: 07 | E88: 02 | F88: 0220242100 | G88: 400 | H88: 0 | I88: 0 | J88: 0 | K88: 61107020220242100 | N88: 0
A89: 75 | B89: Школы800 | C89: 611 | D89: 07 | E89: 02 | F89: 0220242100 | G89: 800 | H89: 13480.6 | I89: 13480.6 | J89: 0 | K89: 61107020220242100 | N89: 0
A90: 76 | B90: Учреждения по внешкольной работе (МП)100 | C90: 611 | D90: 07 | E90: 02 | F90: 0230142310 | G90: 100 | H90: 16616.25964 | I90: 16616.25964 | J90: 0 | K90: 61107020230142310 | N90: 0
A91: 77 | B91: Учреждения по внешкольной работе (МП)200 | C91: 611 | D91: 07 | E91: 02 | F91: 0230142310 | G91: 200 | H91: 960.6853 | I91: 960.6853 | J91: 0 | K91: 61107020230142310 | N91: 0
A92: 78 | B92: Учреждения по внешкольной работе (МП)400 | C92: 611 | D92: 07 | E92: 02 | F92: 0230142310 | G92: 400 | H92: 0 | I92: 0 | J92: 0 | K92: 61107020230142310 | N92: 0
A93: 79 | B93: Учреждения по внешкольной работе (МП)800 | C93: 611 | D93: 07 | E93: 02 | F93: 0230142310 | G93: 800 | H93: 30.3 | I93: 30.3 | J93: 0 | K93: 61107020230142310 | N93: 0
A94: 80 | B94: Учреждения по внешкольной работе (ХЭН)100 | C94: 613 | D94: 07 | E94: 02 | F94: 0230142320 | G94: 100 | H94: 11296 | I94: 11296 | J94: 0 | K94: 61307020230142320 | N94: 0
A95: 81 | B95: Учреждения по внешкольной работе (ХЭН)200 | C95: 613 | D95: 07 | E95: 02 | F95: 0230142320 | G95: 200 | H95: 2249.61562 | I95: 2249.61562 | J95: 0 | K95: 61307020230142320 | N95: 0
A96: 82 | B96: Учреждения по внешкольной работе (ХЭН)400 | C96: 613 | D96: 07 | E96: 02 | F96: 0230142320 | G96: 400 | H96: 0 | I96: 0 | J96: 0 | K96: 61307020230142320 | N96: 0
A97: 83 | B97: Учреждения по внешкольной работе (ХЭН)800 | C97: 613 | D97: 07 | E97: 02 | F97: 0230142320 | G97: 800 | H97: 61.9 | I97: 61.9 | J97: 0 | K97: 61307020230142320 | N97: 0
A98: 84 | B98: Учреждения по внешкольной работе (ДЮСШ)100 | C98: 612 | D98: 07 | E98: 02 | F98: 0230142330 | G98: 100 | H98: 23340 | I98: 23340 | J98: 0 | K98: 61207020230142330 | N98: 0
A99: 85 | B99: Учреждения по внешкольной работе (ДЮСШ)200 | C99: 612 | D99: 07 | E99: 02 | F99: 0230142330 | G99: 200 | H99: 13125.3552 | I99: 13125.3552 | J99: 0 | K99: 61207020230142330 | N99: 0
A100: 86 | B100: Учреждения по внешкольной работе (ДЮСШ)400 | C100: 612 | D100: 07 | E100: 02 | F100: 0230142330 | G100: 400 | H100: 0 | I100: 0 | J100: 0 | K100: 61207020230142330 | N100: 0
A101: 87 | B101: Учреждения по внешкольной работе (ДЮСШ)800 | C101: 612 | D101: 07 | E101: 02 | F101: 0230142330 | G101: 800 | H101: 4427 | I101: 4427 | J101: 0 | K101: 61207020230142330 | N101: 0
A102: 88 | B102: Субвенции на обеспечение прав на получение общедоступного и бесплатного дошкольного образования в муниципальных ДОУ100 | C102: 611 | D102: 07 | E102: 01 | F102: 0210125370 | G102: 100 | H102: 68240.6 | I102: 68240.6 | J102: 0 | K102: 61107010210125370 | N102: 0
A103: 89 | B103: Субвенции на обеспечение прав на получение общедоступного и бесплатного дошкольного образования в муниципальных ДОУ200 | C103: 611 | D103: 07 | E103: 01 | F103: 0210125370 | G103: 200 | H103: 0 | I103: 0 | J103: 0 | K103: 61107010210125370
A104: 90 | B104: Субвенции на обеспечение прав на получение общедоступного и бесплатного дошкольного образования в муниципальных ДОУ400 | C104: 611 | D104: 07 | E104: 01 | F104: 0210125370 | G104: 400 | H104: 0 | I104: 0 | J104: 0 | K104: 61107010210125370
A105: 91 | B105: Субвенции на обеспечение госгарантий прав граждан на получение общего образования, а также доп.образования в общеобраз.учреждениях 100 | C105: 611 | D105: 07 | E105: 02 | F105: 0220825280 | G105: 100 | H105: 268287.8 | I105: 268287.8 | J105: 0 | K105: 61107020220825280
A106: 92 | B106: Субвенции на обеспечение госгарантий прав граждан на получение общего образования, а также доп.образования в общеобраз.учреждениях 200 | C106: 611 | D106: 07 | E106: 02 | F106: 0220825280 | G106: 200 | H106: 0 | I106: 0 | J106: 0 | K106: 61107020220825280
A107: 93 | B107: Субвенции на обеспечение госгарантий прав граждан на получение общего образования, а также доп.образования в общеобраз.учреждениях 400 | C107: 611 | D107: 07 | E107: 02 | F107: 0220825280 | G107: 400 | H107: 0 | I107: 0 | J107: 0 | K107: 61107020220825280
A108: 94 | B108: Программа государственной национальной политики, профилактики экстремизма и укрепления межнациональных и межконфессиональных отношений в Кукморском муниципальном районе на 2015-2020годы (УДМС)100 | C108: 612 | D108: 07 | E108: 07 | F108: 2000110990 | G108: 100 | H108: 20 | I108: 20 | J108: 0 | K108: =C108&F108&ROUND(G108,-2) -> 6122000110990100
A109: 95 | B109: Программа государственной национальной политики, профилактики экстремизма и укрепления межнациональных и межконфессиональных отношений в Кукморском муниципальном районе на 2015-2020годы (УДМС)200 | C109: 612 | D109: 07 | E109: 07 | F109: 2000110990 | G109: 200 | H109: 184 | I109: 184 | J109: 0 | K109: 6122000110990200
A110: 96 | B110: Программа государственной национальной политики, профилактики экстремизма и укрепления межнациональных и межконфессиональных отношений в Кукморском муниципальном районе на 2015-2020годы (УДМС)400 | C110: 612 | D110: 07 | E110: 07 | F110: 2000110990 | G110: 400 | H110: 0 | I110: 0 | J110: 0 | K110: 6122000110990400
A111: 97 | B111: Программа государственной национальной политики, профилактики экстремизма и укрепления межнациональных и межконфессиональных отношений в Кукморском муниципальном районе на 2015-2020годы (УДМС)800 | C111: 612 | D111: 07 | E111: 07 | F111: 2000110990 | G111: 800 | H111: 0 | I111: 0 | J111: 0 | K111: 6122000110990800
A112: 98 | B112: Муниципальная программа "Развитие физической культуры, спорта в Кукморском муниципальном районе на 2009-2013 годы"100 | C112: 612 | D112: 07 | E112: 07 | F112: 1040143190 | G112: 100 | H112: 7161 | I112: 7161 | J112: 0 | K112: =C112&D112&E112&F112 -> 61207071040143190
A113: 99 | B113: Муниципальная программа "Развитие физической культуры, спорта в Кукморском муниципальном районе на 2009-2013 годы"200 | C113: 612 | D113: 07 | E113: 07 | F113: 1040143190 | G113: 200 | H113: 3442 | I113: 3442 | J113: 0 | K113: 61207071040143190
A114: 100 | B114: Муниципальная программа "Развитие физической культуры, спорта в Кукморском муниципальном районе на 2009-2013 годы"400 | C114: 612 | D114: 07 | E114: 07 | F114: 1040143190 | G114: 400 | H114: 20 | I114: 20 | J114: 0 | K114: 61207071040143190
A115: 101 | B115: Муниципальная программа "Развитие физической культуры, спорта в Кукморском муниципальном районе на 2009-2013 годы"800 | C115: 612 | D115: 07 | E115: 07 | F115: 1040143190 | G115: 800 | H115: 191.3 | I115: 191.3 | J115: 0 | K115: 61207071040143190
A116: 102 | B116: Программа государственной национальной политики, профилактики экстремизма и укрепления межнациональных и межконфессиональных отношений в Кукморском муниципальном районе на 2015-2020годы (Форпост)100 | C116: 612 | D116: 07 | E116: 07 | F116: 1040143190 | G116: 100 | H116: 589.1 | I116: 589.1 | J116: 0 | K116: 61207071040143190
A117: 103 | B117: Программа государственной национальной политики, профилактики экстремизма и укрепления межнациональных и межконфессиональных отношений в Кукморском муниципальном районе на 2015-2020годы (Форпост)200 | C117: 612 | D117: 07 | E117: 07 | F117: 1040143190 | G117: 200 | H117: 44.5 | I117: 44.5 | J117: 0 | K117: 61207071040143190
A118: 104 | B118: Программа государственной национальной политики, профилактики экстремизма и укрепления межнациональных и межконфессиональных отношений в Кукморском муниципальном районе на 2015-2020годы (Форпост)400 | C118: 612 | D118: 07 | E118: 07 | F118: 1040143190 | G118: 400 | H118: 5 | I118: 5 | J118: 0 | K118: 61207071040143190
A119: 105 | B119: Программа государственной национальной политики, профилактики экстремизма и укрепления межнациональных и межконфессиональных отношений в Кукморском муниципальном районе на 2015-2020годы (Форпост)800 | C119: 612 | D119: 07 | E119: 07 | F119: 1040143190 | G119: 800 | H119: 0 | I119: 0 | J119: 0 | K119: 61207071040143190
A120: 106 | B120: ИКМЦ100 | C120: 611 | D120: 07 | E120: 09 | F120: 0220825301 | G120: 100 | H120: 4727.4 | I120: 4727.4 | J120: 0 | K120: =C120&F120&ROUND(G120,-2) -> 6110220825301100
A121: 107 | B121: ИКМЦ200 | C121: 611 | D121: 07 | E121: 09 | F121: 0220825301 | G121: 200 | H121: 650.7 | I121: 650.7 | J121: 0 | K121: 6110220825301200
A122: 108 | B122: ИКМЦ400 | C122: 611 | D122: 07 | E122: 09 | F122: 0220825301 | G122: 400 | H122: 0 | I122: 0 | J122: 0 | K122: 6110220825301400
A123: 109 | B123: ИКМЦ800 | C123: 611 | D123: 07 | E123: 09 | F123: 0220825301 | G123: 800 | H123: 7 | I123: 7 | J123: 0 | K123: 6110220825301800
A124: 110 | B124: Услуги в образовании100 | C124: 611 | D124: 07 | E124: 09 | F124: 0250242520 | G124: 100 | H124: 3788 | I124: 3788 | J124: 0 | K124: =C124&F124&ROUND(G124,-2) -> 6110250242520100
A125: 111 | B125: Услуги в образовании200 | C125: 611 | D125: 07 | E125: 09 | F125: 0250242520 | G125: 200 | H125: 2947.049 | I125: 2947.049 | J125: 0 | K125: 6110250242520200
A126: 112 | B126: Услуги в образовании400 | C126: 611 | D126: 07 | E126: 09 | F126: 0250242520 | G126: 400 | H126: 100 | I126: 100 | J126: 0 | K126: 6110250242520400
A127: 113 | B127: Услуги в образовании800 | C127: 611 | D127: 07 | E127: 09 | F127: 0250242520 | G127: 800 | H127: 41.2 | I127: 41.2 | J127: 0 | K127: 6110250242520800
A128: 114 | B128: СДК,клубы100 | C128: 613 | D128: 08 | E128: 01 | F128: 0840144091 | G128: 100 | H128: 52245.5 | I128: 52245.5 | J128: 0 | K128: =C128&D128&E128&F128 -> 61308010840144091
A129: 115 | B129: СДК,клубы200 | C129: 613 | D129: 08 | E129: 01 | F129: 0840144091 | G129: 200 | H129: 18162.8 | I129: 18162.8 | J129: 0 | K129: 61308010840144091
A130: 116 | B130: СДК,клубы400 | C130: 613 | D130: 08 | E130: 01 | F130: 0840144091 | G130: 400 | H130: 0 | I130: 0 | J130: 0 | K130: 61308010840144091
A131: 117 | B131: СДК,клубы800 | C131: 613 | D131: 08 | E131: 01 | F131: 0840144091 | G131: 800 | H131: 4797.6 | I131: 1137.5 | J131: 3660.1 | K131: 61308010840144091
A132: 118 | B132: Музеи100 | C132: 613 | D132: 08 | E132: 01 | F132: 0810144090 | G132: 100 | H132: 2301 | I132: 2301 | J132: 0 | K132: 61308010810144090
A133: 119 | B133: Музеи200 | C133: 613 | D133: 08 | E133: 01 | F133: 0810144090 | G133: 200 | H133: 360 | I133: 360 | J133: 0 | K133: 61308010810144090
A134: 120 | B134: Музеи400 | C134: 613 | D134: 08 | E134: 01 | F134: 0810144090 | G134: 400 | H134: 0 | I134: 0 | J134: 0 | K134: 61308010810144090
A135: 121 | B135: Музеи800 | C135: 613 | D135: 08 | E135: 01 | F135: 0810144090 | G135: 800 | H135: 24 | I135: 24 | J135: 0 | K135: 61308010810144090
A136: 122 | B136: Библиотеки100 | C136: 613 | D136: 08 | E136: 01 | F136: 0830144090 | G136: 100 | H136: 16929.8 | I136: 16929.8 | J136: 0 | K136: 61308010830144090
A137: 123 | B137: Библиотеки200 | C137: 613 | D137: 08 | E137: 01 | F137: 0830144090 | G137: 200 | H137: 2060.9 | I137: 2060.9 | J137: 0 | K137: 61308010830144090
A138: 124 | B138: Библиотеки400 | C138: 613 | D138: 08 | E138: 01 | F138: 0830144090 | G138: 400 | H138: 0 | I138: 0 | J138: 0 | K138: 61308010830144090
A139: 125 | B139: Библиотеки800 | C139: 613 | D139: 08 | E139: 01 | F139: 0830144090 | G139: 800 | H139: 50 | I139: 50 | J139: 0 | K139: 61308010830144090
A140: 126 | B140: Книжные фонды200 | C140: 613 | D140: 08 | E140: 01 | F140: 0830151440 | G140: 200 | H140: 0 | I140: 0 | J140: 0 | K140: =C140&F140&ROUND(G140,-2) -> 6130830151440200
A141: 127 | B141: Книжные фонды400 | C141: 613 | D141: 08 | E141: 01 | F141: 0830151440 | G141: 400 | H141: 16.9 | I141: 16.9 | J141: 0 | K141: 6130830151440400
A142: 128 | B142: Субвенции на скотомогильники200 | C142: 601 | D142: 04 | E142: 05 | F142: 9900025360 | G142: 200 | H142: 2101.6 | I142: 2101.6 | J142: 0 | K142: 6019900025360200
A143: 129 | B143: Субвенции на скотомогильники400 | C143: 601 | D143: 04 | E143: 05 | F143: 9900025360 | G143: 400 | H143: 0 | I143: 0 | J143: 0 | K143: 6019900025360400
A144: 130 | B144: ЦГСЭН200 | C144: 601 | D144: 09 | E144: 07 | F144: 0110202110 | G144: 200 | H144: 689.5 | I144: 689.5 | J144: 0 | K144: 6010110202110200
A145: 131 | B145: Муниципальная программа "Развитие физической культуры, спорта в Кукморском муниципальном районе на 2009-2013 годы200 | C145: 612 | D145: 11 | E145: 02 | F145: 1010112870 | G145: 200 | H145: 597.7 | I145: 597.7 | J145: 0 | K145: 6121010112870200
A146: 132 | B146: Муниципальная программа "Развитие физической культуры, спорта в Кукморском муниципальном районе на 2009-2013 годы400 | C146: 612 | D146: 11 | E146: 02 | F146: 1010112870 | G146: 400 | H146: 0 | I146: 0 | J146: 0 | K146: 6121010112870400
A147: 133 | B147: Целевая программа Кукморского муниципального района «Доступная среда» на 2011-2015 годы200 | C147: 612 | D147: 11 | E147: 02 | F147: 0360112870 | G147: 200 | H147: 385.5 | I147: 385.5 | J147: 0 | K147: 6120360112870200
A148: 134 | B148: Целевая программа Кукморского муниципального района «Доступная среда» на 2011-2015 годы400 | C148: 612 | D148: 11 | E148: 02 | F148: 0360112870 | G148: 400 | H148: 0 | I148: 0 | J148: 0 | K148: 6120360112870400
A149: 135 | B149: Муниципальная программа по формированию здорового образа жизни, снижению потребления алкогольной продукции, пива и табака среди населения Кукморского муниципального района на 2011 - 2015 годы200 | C149: 612 | D149: 11 | E149: 02 | F149: 1070112870 | G149: 200 | H149: 0 | I149: 0 | J149: 0 | K149: 6121070112870200
A150: 136 | B150: Муниципальная программа по формированию здорового образа жизни, снижению потребления алкогольной продукции, пива и табака среди населения Кукморского муниципального района на 2011 - 2015 годы400 | C150: 612 | D150: 11 | E150: 02 | F150: 1070112870 | G150: 400 | H150: 0 | I150: 0 | J150: 0 | K150: 6121070112870400
A151: 137 | B151: Реализация госфункций320 | C151: 611 | D151: 10 | E151: 03 | F151: 0310205510 | G151: 320 | H151: 7258 | I151: 7258 | J151: 0 | K151: 6110310205510300
A152: 138 | B152: Программа отдыха, оздоровления, занятости детей и молодежи Кукморского муниципального района на 2013 год 100 | C152: 612 | D152: 07 | E152: 07 | F152: 1040143190 | G152: 100 | H152: 569 | I152: 569 | J152: 0 | K152: =C152&D152&E152&F152 -> 61207071040143190
A153: 139 | B153: Программа отдыха, оздоровления, занятости детей и молодежи Кукморского муниципального района на 2013 год 200 | C153: 612 | D153: 07 | E153: 07 | F153: 1040143190 | G153: 200 | H153: 151 | I153: 151 | J153: 0 | K153: 61207071040143190
A154: 140 | B154: Программа отдыха, оздоровления, занятости детей и молодежи Кукморского муниципального района на 2013 год 400 | C154: 612 | D154: 07 | E154: 07 | F154: 1040143190 | G154: 400 | H154: 0 | I154: 0 | J154: 0 | K154: 61207071040143190
A155: 141 | B155: Программа отдыха, оздоровления, занятости детей и молодежи Кукморского муниципального района на 2013 год 800 | C155: 612 | D155: 07 | E155: 07 | F155: 1040143190 | G155: 800 | H155: 15.5 | I155: 15.5 | J155: 0 | K155: 61207071040143190
A156: 142 | B156: Мероприятия в соцполитике320 | C156: 601 | D156: 10 | E156: 03 | F156: 0310105410 | G156: 320 | H156: 614 | I156: 614 | J156: 0 | K156: =C156&F156&ROUND(G156,-2) -> 6010310105410300
A157: 143 | B157: Дотации на выполнение полномочий500 | C157: 605 | D157: 14 | E157: 01 | F157: 1800380060 | G157: 500 | H157: 1792.9 | I157: 1792.9 | J157: 0 | K157: 6051800380060500
A158: 144 | B158: Дотации на выравнивание уровня бюджетной обеспеченности500 | C158: 605 | D158: 14 | E158: 01 | F158: 1800380040 | G158: 500 | H158: 22562 | I158: 22562 | J158: 0 | K158: 6051800380040500
A159: 145 | B159: Дотации по обсеспечению сбалансированности бюджетов500 | C159: 605 | D159: 14 | E159: 02 | F159: 1800380040 | G159: 500 | H159: 4561.8 | I159: 4561.8 | J159: 0 | K159: 6051800380040500
A160: 146 | B160: Субвенция на выполнение федеральных полномочий по государственной регистрации актов гражданского состояния500 | C160: 605 | D160: 01 | E160: 13 | F160: 9900059300 | G160: 500 | H160: 100 | I160: 100 | J160: 0 | K160: 6059900059300500
A161: 147 | B161: Субвенция на первичный воинский учет500 | C161: 605 | D161: 02 | E161: 03 | F161: 9900051180 | G161: 500 | H161: 2352.8 | I161: 2352.8 | J161: 0 | K161: 6059900051180500
A162: 148 | B162: Субвенция протоколы об адмнарушениях100 | C162: 601 | D162: 01 | E162: 13 | F162: 9900025350 | G162: 100 | H162: 0 | I162: 0 | J162: 0 | K162: 6019900025350100
A163: 149 | B163: Субвенция протоколы об адмнарушениях200 | C163: 601 | D163: 01 | E163: 13 | F163: 9900025350 | G163: 200 | H163: 0.37 | I163: 0.37 | J163: 0 | K163: 6019900025350200
A164: 150 | B164: Субвенции бюд.муниципальным районам и городских округов по реализации полномочий в области молодежной политики (управление) 100 | C164: 612 | D164: 01 | E164: 04 | F164: 9900025240 | G164: 100 | H164: 242.6 | I164: 242.6 | J164: 0 | K164: 6129900025240100
A165: 151 | B165: Субвенции бюд.муниципальным районам и городских округов по реализации полномочий в области молодежной политики (управление) 200 | C165: 612 | D165: 01 | E165: 04 | F165: 9900025240 | G165: 200 | H165: 13.1 | I165: 13.1 | J165: 0 | K165: 6129900025240200
A166: 152 | B166: Субвенции бюд.муниципальным районам и городских округов по реализации полномочий в области образования (управление)100 | C166: 611 | D166: 01 | E166: 04 | F166: 9900025250 | G166: 100 | H166: 242.6 | I166: 242.6 | J166: 0 | K166: 6119900025250100
A167: 153 | B167: Субвенции бюд.муниципальным районам и городских округов по реализации полномочий в области образования (управление)200 | C167: 611 | D167: 01 | E167: 04 | F167: 9900025250 | G167: 200 | H167: 13.1 | I167: 13.1 | J167: 0 | K167: 6119900025250200
A168: 154 | B168: Субвенции бюд. муниципальным районам и городских округов по реализации полномочий по образованию и организации деятельности комиссии по делам несовершеннолетних 100 | C168: 601 | D168: 01 | E168: 13 | F168: 9900025260 | G168: 100 | H168: 488 | I168: 488 | J168: 0 | K168: 6019900025260100
A169: 155 | B169: Субвенции бюд. муниципальным районам и городских округов по реализации полномочий по образованию и организации деятельности комиссии по делам несовершеннолетних 200 | C169: 601 | D169: 01 | E169: 13 | F169: 9900025260 | G169: 200 | H169: 18.5 | I169: 18.5 | J169: 0 | K169: 6019900025260200
A170: 156 | B170: Субвенции бюд. муниципальным районам и городских округов по реализации полномочий по образованию и организации деятельности административных комиссий100 | C170: 601 | D170: 01 | E170: 13 | F170: 9900025270 | G170: 100 | H170: 232 | I170: 232 | J170: 0 | K170: 6019900025270100
A171: 157 | B171: Субвенции бюд. муниципальным районам и городских округов по реализации полномочий по образованию и организации деятельности административных комиссий200 | C171: 601 | D171: 01 | E171: 13 | F171: 9900025270 | G171: 200 | H171: 12.9 | I171: 12.9 | J171: 0 | K171: 6019900025270200
A172: 158 | B172: Субвенции на опеку и попечительство100 | C172: 601 | D172: 01 | E172: 13 | F172: 0350325330 | G172: 100 | H172: 678.6 | I172: 678.6 | J172: 0 | K172: 6010350325330100
A173: 159 | B173: Субвенции на опеку и попечительство200 | C173: 601 | D173: 01 | E173: 13 | F173: 0350325330 | G173: 200 | H173: 37 | I173: 37 | J173: 0 | K173: 6010350325330200
A174: 160 | B174: Субвенции на опеку и попечительство400 | C174: 601 | D174: 01 | E174: 13 | F174: 0350325330 | G174: 400 | H174: 0 | I174: 0 | J174: 0 | K174: 6010350325330400
A175: 161 | B175: Субвенции на гос.полномочия в области архивного дела200 | C175: 601 | D175: 01 | E175: 13 | F175: 9900025340 | G175: 200 | H175: 55.9 | I175: 55.9 | J175: 0 | K175: 6019900025340200
A176: 162 | B176: Субвенции на ведение регистра200 | C176: 601 | D176: 01 | E176: 13 | F176: 2410125390 | G176: 200 | H176: 3 | I176: 3 | J176: 0 | K176: 6012410125390200
A177: 163 | B177: ЕДДС100 | C177: 601 | D177: 03 | E177: 09 | F177: 0720122670 | G177: 100 | H177: 1032 | I177: 1032 | J177: 0 | K177: 6010720122670100
A178: 164 | B178: ЕДДС200 | C178: 601 | D178: 03 | E178: 09 | F178: 0720122670 | G178: 200 | H178: 12.2 | I178: 12.2 | J178: 0 | K178: 6010720122670200
A179: 165 | B179: Субвенции присяжным200 | C179: 601 | D179: 01 | E179: 05 | F179: 9900051200 | G179: 200 | H179: 28.7 | I179: 28.7 | J179: 0 | K179: 6019900051200200
A180: 166 | B180: Субвенции перепись200 | C180: 601 | D180: 01 | E180: 13 | F180: 0012020 | G180: 200 | H180: 0 | I180: 0 | J180: 0 | K180: 6010012020200
A181: 167 | B181: КРЖФ по программе (МБ)800 | C181: 601 | D181: 05 | E181: 01 | F181: 0450196010 | G181: 800 | H181: 4388 | I181: 4388 | J181: 0 | K181: 6010450196010800
A182: 168 | B182: КРЖФ по программе (Фонд)800 | C182: 601 | D182: 05 | E182: 01 | F182: 0440195020 | G182: 800 | H182: 0 | I182: 0 | J182: 0 | K182: 6010440195020800
A183: 169 | B183: КРЖФ по программе (РТ)800 | C183: 601 | D183: 05 | E183: 01 | F183: 0440196020 | G183: 800 | H183: 0 | I183: 0 | J183: 0 | K183: 6010440196020800
A184: 170 | B184: Субсидии на образование ДОУ100 | C184: 611 | D184: 07 | E184: 01 | F184: 4208005 | G184: 100 | H184: 0 | I184: 0 | J184: 0 | K184: =C184&D184&E184&F184 -> 61107014208005
A185: 171 | B185: Субсидии на образование ДОУ200 | C185: 611 | D185: 07 | E185: 02 | F185: 4218005 | G185: 200 | H185: 0 | I185: 0 | J185: 0 | K185: 61107024218005
A186: 172 | B186: Субсидии на образование Школы100 | C186: 611 | D186: 07 | E186: 02 | F186: 4218005 | G186: 100 | H186: 0 | I186: 0 | J186: 0 | K186: 61107024218005
A187: 173 | B187: Субсидии на образование Школы200 | C187: 611 | D187: 07 | E187: 02 | F187: 4218005 | G187: 200 | H187: 0 | I187: 0 | J187: 0 | K187: 61107024218005
A188: 174 | B188: Субвенция по соглашениям (ПИЗО)500 | C188: 605 | D188: 01 | E188: 13 | F188: 9900025700 | G188: 500 | H188: 100 | I188: 0 | J188: 100 | K188: =C188&F188&ROUND(G188,-2) -> 6059900025700500
A189: 175 | B189: Дорожный фонд200 | C189: 601 | D189: 04 | E189: 09 | F189: 1360103650 | G189: 200 | H189: 16690.6 | I189: 16690.6 | J189: 0 | K189: 6011360103650200
A190: 176 | B190: Дорожный фонд400 | C190: 601 | D190: 04 | E190: 09 | F190: 1360103650 | G190: 400 | H190: 0 | I190: 0 | J190: 0 | K190: 6011360103650400
A191: 177 | B191: Субвенция по соглашениям (КСП)500 | C191: 605 | D191: 01 | E191: 06 | F191: 9900025600 | G191: 500 | H191: 375 | I191: 0 | J191: 375 | K191: 6059900025600500
A192: 178 | B192: Дотации на дорожный фонд500 | C192: 605 | D192: 05 | E192: 03 | F192: 9900025151 | G192: 500 | H192: 500 | I192: 500 | J192: 0 | K192: 6059900025151500
A193: 179 | B193: Библиотекидотация100 | C193: 613 | D193: 08 | E193: 01 | F193: 0800380030 | G193: 100 | H193: 0 | I193: 0 | J193: 0 | K193: =C193&D193&E193&F193 -> 61308010800380030
A194: 180 | B194: Централизованная бухгалтерия800 | C194: 601 | D194: 01 | E194: 13 | F194: 1800129900 | G194: 800 | H194: 3 | I194: 3 | J194: 0 | K194: =C194&F194&ROUND(G194,-2) -> 6011800129900800
A195: 181 | B195: ФБП800 | C195: 605 | D195: 01 | E195: 06 | F195: 1800102040 | G195: 800 | H195: 1.6 | I195: 1.6 | J195: 0 | K195: 6051800102040800
A196: 182 | B196: Функционирование местных администраций (УДМС)800 | C196: 612 | D196: 01 | E196: 04 | F196: 9900002040 | G196: 800 | H196: 3 | I196: 3 | J196: 0 | K196: 6129900002040800
A197: 183 | B197: Компенсация родвзноса300 | C197: 611 | D197: 10 | E197: 04 | F197: 0350113200 | G197: 300 | H197: 9715 | I197: 9715 | J197: 0 | K197: 6110350113200300
A198: 184 | B198: Муниципальная программа «Реализация антикоррупционной политики в Кукморском муниципальном районе Республики Татарстан на 2015-2020 годы» (ИК)200 | C198: 601 | D198: 01 | E198: 13 | F198: 2700110990 | G198: 200 | H198: 5 | I198: 5 | J198: 0 | K198: 6012700110990200
A199: 185 | B199: Муниципальная программа «Реализация антикоррупционной политики в Кукморском муниципальном районе Республики Татарстан на 2015-2020 годы» (УО)200 | C199: 611 | D199: 07 | E199: 09 | F199: 2700110990 | G199: 200 | H199: 10 | I199: 10 | J199: 0 | K199: 6112700110990200
A200: 186 | B200: Муниципальная программа «Реализация антикоррупционной политики в Кукморском муниципальном районе Республики Татарстан на 2015-2020 годы» (УК)200 | C200: 613 | D200: 08 | E200: 01 | F200: 2700110990 | G200: 200 | H200: 10 | I200: 10 | J200: 0 | K200: =C200&D200&E200&F200 -> 61308012700110990
A201: 187 | B201: Муниципальная программа «Реализация антикоррупционной политики в Кукморском муниципальном районе Республики Татарстан на 2015-2020 годы» (УДМС)200 | C201: 612 | D201: 07 | E201: 07 | F201: 2700110990 | G201: 200 | H201: 15 | I201: 15 | J201: 0 | K201: =C201&F201&ROUND(G201,-2) -> 6122700110990200
A202: 188 | B202: Подпрограмма «Профилактика терроризма и экстремизма в Кукморском муниципальном районе на 2015-2016гг.»200 | C202: 601 | D202: 01 | E202: 13 | F202: 0630110990 | G202: 200 | H202: 15 | I202: 15 | J202: 0 | K202: 6010630110990200
A203: 189 | B203: Подпрограмма «Профилактика терроризма и экстремизма в Кукморском муниципальном районе на 2015-2016гг.»200 | C203: 611 | D203: 07 | E203: 09 | F203: 0630110990 | G203: 200 | H203: 3.5 | I203: 3.5 | J203: 0 | K203: 6110630110990200
A204: 190 | B204: Подпрограмма «Профилактика терроризма и экстремизма в Кукморском муниципальном районе на 2015-2016гг.»200 | C204: 613 | D204: 08 | E204: 01 | F204: 0630110990 | G204: 200 | H204: 3.5 | I204: 3.5 | J204: 0 | K204: =C204&D204&E204&F204 -> 61308010630110990
A205: 191 | B205: Подпрограмма «Профилактика терроризма и экстремизма в Кукморском муниципальном районе на 2015-2016гг.»200 | C205: 612 | D205: 07 | E205: 07 | F205: 0630110990 | G205: 200 | H205: 1 | I205: 1 | J205: 0 | K205: =C205&F205&ROUND(G205,-2) -> 6120630110990200
A206: 192 | B206: Программа государственной национальной политики, профилактики экстремизма и укрепления межнациональных и межконфессиональных отношений в Кукморском муниципальном районе на 2015-2020годы (ИК)200 | C206: 601 | D206: 01 | E206: 13 | F206: 2000110990 | G206: 200 | H206: 80 | I206: 80 | J206: 0 | K206: 6012000110990200
... 3 more rows

Sheet Лист1
